Body Name,Body,Service Label,Service Code,Service Division Label,Service Division Code,Expenditure Category,Expenditure Code,CIPFA Detailed Expenditure Type,CIPFA Detailed Expenditure Code,Date,Transaction Number,CC 43 TBM Section,CCN 43 TBM Section,Net Amount,Capital and Revenue,Creditor Name
Brighton & Hove City Council,http://statistics.data.gov.uk/id/local-authority/00ML,Children`s & Education Serv,BVAEDU,Ed Special Ed,EKE,Third Party Payments,F,Other Agencies,FL,02/01/2015,PAY00727086,SEN,SEN,29446,Revenue,Northease Manor School Ltd
Brighton & Hove City Council,http://statistics.data.gov.uk/id/local-authority/00ML,Children`s & Education Serv,BVAEDU,Child Srvcs - Residential Svcs,FLR,Third Party Payments,F,Other Establishments,FH,02/01/2015,PAY00727087,AVFM,Agency Placements\VFM,14228,Revenue,Coxlease School Priory
Brighton & Hove City Council,http://statistics.data.gov.uk/id/local-authority/00ML,Non I&E,BVANON,CAP Libs Culture and Hertage,4LH,Plant Machinery n Equipment,PE2,Plant Machinery n Equipment,PE2L5,02/01/2015,PAY00727088,LIBS,Libraries,1300,Capital,Languard Alarm Co Ltd
Brighton & Hove City Council,http://statistics.data.gov.uk/id/local-authority/00ML,Children`s & Education Serv,BVAEDU,Child Srvcs Com and Scl Work,FCW,Supplies and Services,E,Miscellaneous Expenses,EM,02/01/2015,PAY00727089,SOCK,Social Work,445.55,Revenue,Coram Voice
Brighton & Hove City Council,http://statistics.data.gov.uk/id/local-authority/00ML,Children`s & Education Serv,BVAEDU,Child Srvcs - Fostering,FLF,Third Party Payments,F,Other Establishments,FH,02/01/2015,PAY00727089,CHIC,Children In Care,1214.91,Revenue,Coram Voice
Brighton & Hove City Council,http://statistics.data.gov.uk/id/local-authority/00ML,Children`s & Education Serv,BVAEDU,Child Srvcs - Other Fam Supp,FFX,Transfer Payments,G,Other Transfer Payments,GD,02/01/2015,PAY00727089,FAMP,Families\Prevention,327.05,Revenue,Coram Voice
Brighton & Hove City Council,http://statistics.data.gov.uk/id/local-authority/00ML,Children`s & Education Serv,BVAEDU,Management Services (DEC),MGT,Supplies and Services,E,Services,EF,02/01/2015,PAY00727091,SOCK,Social Work,576,Revenue,Procopio and Procopio
Brighton & Hove City Council,http://statistics.data.gov.uk/id/local-authority/00ML,Adult Social Care,BVASOC,Info & Early Intervention,PRV,Supplies and Services,E,Services,EF,02/01/2015,PAY00727092,CONT,Contracts,2786,Revenue,Payment to Individual
Brighton & Hove City Council,http://statistics.data.gov.uk/id/local-authority/00ML,Public Health,BVAPHE,Management Services (DEC),MGT,Indirect Employees,B,Training,BM,02/01/2015,PAY00727093,DIRO,Director Office,300,Revenue,Payment to Individual
Brighton & Hove City Council,http://statistics.data.gov.uk/id/local-authority/00ML,Central Support and Overheads,BVACEN,Support Services (SSC),PPT,Supplies and Services,E,Services,EF,02/01/2015,PAY00727094,LEGS,Legal Services,957.6,Revenue,McKeown Psychology Associates Ltd
Brighton & Hove City Council,http://statistics.data.gov.uk/id/local-authority/00ML,Children`s & Education Serv,BVAEDU,Management Services (DEC),MGT,Supplies and Services,E,Services,EF,02/01/2015,PAY00727095,SOCK,Social Work,1450,Revenue,Payment to Individual
Brighton & Hove City Council,http://statistics.data.gov.uk/id/local-authority/00ML,Central Support and Overheads,BVACEN,Support Services (SSC),PPT,Indirect Employees,B,Training,BM,02/01/2015,PAY00727096,SFPR,Strategic Finance and Proc,399,Revenue,Barony Consulting Group Ltd
Brighton & Hove City Council,http://statistics.data.gov.uk/id/local-authority/00ML,Central Support and Overheads,BVACEN,Support Services (SSC),PPT,Supplies and Services,E,Services,EF,02/01/2015,PAY00727097,LEGS,Legal Services,778.8,Revenue,Gary Taylor Associates Ltd
Brighton & Hove City Council,http://statistics.data.gov.uk/id/local-authority/00ML,Housing General Fund,BVAHOG,Homelessness,HML,Premises Related,C,Rents Payable,CC,02/01/2015,PAY00727099,TAAS,Temp Accom and Allocations,815,Revenue,Payment to Individual
Brighton & Hove City Council,http://statistics.data.gov.uk/id/local-authority/00ML,Housing General Fund,BVAHOG,Homelessness,HML,Premises Related,C,Rents Payable,CC,02/01/2015,PAY00727102,TAAS,Temp Accom and Allocations,630,Revenue,Payment to Individual
Brighton & Hove City Council,http://statistics.data.gov.uk/id/local-authority/00ML,Housing General Fund,BVAHOG,Homelessness,HML,Premises Related,C,Rents Payable,CC,02/01/2015,PAY00727103,TAAS,Temp Accom and Allocations,1000,Revenue,Edmonds Letting
Brighton & Hove City Council,http://statistics.data.gov.uk/id/local-authority/00ML,Housing General Fund,BVAHOG,Homelessness,HML,Premises Related,C,Rents Payable,CC,02/01/2015,PAY00727105,TAAS,Temp Accom and Allocations,1000,Revenue,Payment to Individual
Brighton & Hove City Council,http://statistics.data.gov.uk/id/local-authority/00ML,Housing General Fund,BVAHOG,Homelessness,HML,Supplies and Services,E,Services,EF,02/01/2015,PAY00727106,TAAS,Temp Accom and Allocations,5050,Revenue,Hove Wardley Company Ltd
Brighton & Hove City Council,http://statistics.data.gov.uk/id/local-authority/00ML,Adult Social Care,BVASOC,ASC Physical Support,PHY,Customer n Client Receipts,M,Fees n Charges,MB,02/01/2015,PAY00727107,PHYS,Physical Support,-1239.5,Revenue,Woodlands Nursing Home
Brighton & Hove City Council,http://statistics.data.gov.uk/id/local-authority/00ML,Adult Social Care,BVASOC,ASC Physical Support,PHY,Third Party Payments,F,Other Establishments,FH,02/01/2015,PAY00727107,PHYS,Physical Support,8661.46,Revenue,Woodlands Nursing Home
Brighton & Hove City Council,http://statistics.data.gov.uk/id/local-authority/00ML,Cultural and Related Serv,BVACUL,Culture and Heritage,CHG,Supplies and Services,E,Equip't Furniture n Materials,EA,02/01/2015,PAY00727109,RPMU,Royal Pavilion and Museums,283,Revenue,Boath Audio Visual
Brighton & Hove City Council,http://statistics.data.gov.uk/id/local-authority/00ML,Children`s & Education Serv,BVAEDU,Child Srvcs - Residential Svcs,FLR,Third Party Payments,F,Other Establishments,FH,02/01/2015,PAY00727110,DISS,Disability Services,33680,Revenue,The Loddon School Company Ltd
Brighton & Hove City Council,http://statistics.data.gov.uk/id/local-authority/00ML,Housing General Fund,BVAHOG,Hsing Benefits,HGB,Transfer Payments,G,Other Transfer Payments,GD,02/01/2015,PAY00727112,REVS,Revenues and Benefits,280.67,Revenue,Lancing Carpet Planners/Kemp Town Flooring Company
Brighton & Hove City Council,http://statistics.data.gov.uk/id/local-authority/00ML,Housing Revenue Account,BVAHOU,Hsing Management - HRA,HGM,Supplies and Services,E,Miscellaneous Expenses,EM,02/01/2015,PAY00727112,HTEN,Tenancy Services,203.33,Revenue,Lancing Carpet Planners/Kemp Town Flooring Company
Brighton & Hove City Council,http://statistics.data.gov.uk/id/local-authority/00ML,Adult Social Care,BVASOC,ASC Learning Disabilities,ALD,Supplies and Services,E,Catering,EB,02/01/2015,PAY00727116,RESP,Respite Services,391.58,Revenue,Tastables
Brighton & Hove City Council,http://statistics.data.gov.uk/id/local-authority/00ML,Adult Social Care,BVASOC,ASC Physical Support,PHY,Supplies and Services,E,Catering,EB,02/01/2015,PAY00727116,DAYS,Day Services,11.59,Revenue,Tastables
Brighton & Hove City Council,http://statistics.data.gov.uk/id/local-authority/00ML,Adult Social Care,BVASOC,ASC Physical Support,PHY,Supplies and Services,E,Catering,EB,02/01/2015,PAY00727116,RCOP,Resource Centres Older People,169.82,Revenue,Tastables
Brighton & Hove City Council,http://statistics.data.gov.uk/id/local-authority/00ML,Highways and Transportation,BVAHRT,Parking Services,PRK,Third Party Payments,F,Private Contractors,FJ,02/01/2015,PAY00727117,PARK,Parking,26516.07,Revenue,NSL Ltd
Brighton & Hove City Council,http://statistics.data.gov.uk/id/local-authority/00ML,Children`s & Education Serv,BVAEDU,Ed Special Ed,EKE,Third Party Payments,F,Other Agencies,FL,02/01/2015,PAY00727119,SEN,SEN,3983.25,Revenue,Girls Day School Trust
Brighton & Hove City Council,http://statistics.data.gov.uk/id/local-authority/00ML,Non I&E,BVANON,CAP Mgmnt and Suppt Services,4PT,Plant Machinery n Equipment,PE2,Plant Machinery n Equipment,PE2L5,02/01/2015,PAY00727120,PROP,Property and Design,717.2,Capital,Portsdown Office Ltd
Brighton & Hove City Council,http://statistics.data.gov.uk/id/local-authority/00ML,Children`s & Education Serv,BVAEDU,Child Srvcs - Fostering,FLF,Third Party Payments,F,Other Establishments,FH,02/01/2015,PAY00727122,AVFM,Agency Placements\VFM,21378.8,Revenue,Foster Care Associates Ltd
Brighton & Hove City Council,http://statistics.data.gov.uk/id/local-authority/00ML,Environment & Regulatory Serv,BVAERS,Cem Crem and Mortuary Services,CCM,Supplies and Services,E,Catering,EB,02/01/2015,PAY00727123,LIFE,Life Events,219,Revenue,Siemens Financial Services Ltd
Brighton & Hove City Council,http://statistics.data.gov.uk/id/local-authority/00ML,Children`s & Education Serv,BVAEDU,Child Srvcs - Fostering,FLF,Third Party Payments,F,Other Establishments,FH,02/01/2015,PAY00727124,AVFM,Agency Placements\VFM,12072,Revenue,Hillcrest Care Ltd
Brighton & Hove City Council,http://statistics.data.gov.uk/id/local-authority/00ML,Children`s & Education Serv,BVAEDU,Child Srvcs - Residential Svcs,FLR,Third Party Payments,F,Other Establishments,FH,02/01/2015,PAY00727124,AVFM,Agency Placements\VFM,13812,Revenue,Hillcrest Care Ltd
Brighton & Hove City Council,http://statistics.data.gov.uk/id/local-authority/00ML,Central Support and Overheads,BVACEN,Support Services (SSC),PPT,Premises Related,C,Repair Maint n Alterations,CA,02/01/2015,PAY00727125,PROP,Property and Design,7831.51,Revenue,Amey OW Limited
Brighton & Hove City Council,http://statistics.data.gov.uk/id/local-authority/00ML,Housing Revenue Account,BVAHOU,Hsing Management - HRA,HGM,Supplies and Services,E,Equip't Furniture n Materials,EA,02/01/2015,PAY00727126,HTEN,Tenancy Services,315,Revenue,City Electrical Factors Ltd
Brighton & Hove City Council,http://statistics.data.gov.uk/id/local-authority/00ML,Adult Social Care,BVASOC,ASC Learning Disabilities,ALD,Customer n Client Receipts,M,Fees n Charges,MB,02/01/2015,PAY00727127,LDIS,Learning Disabilities,-44,Revenue,Care Co-operatives Ltd
Brighton & Hove City Council,http://statistics.data.gov.uk/id/local-authority/00ML,Adult Social Care,BVASOC,ASC Learning Disabilities,ALD,Third Party Payments,F,Other Establishments,FH,02/01/2015,PAY00727127,LDIS,Learning Disabilities,4811.32,Revenue,Care Co-operatives Ltd
Brighton & Hove City Council,http://statistics.data.gov.uk/id/local-authority/00ML,Adult Social Care,BVASOC,ASC Mental Health Support,MHP,Third Party Payments,F,Other Establishments,FH,02/01/2015,PAY00727127,MENH,Mental Health Support,1545.2,Revenue,Care Co-operatives Ltd
Brighton & Hove City Council,http://statistics.data.gov.uk/id/local-authority/00ML,Adult Social Care,BVASOC,ASC Learning Disabilities,ALD,Supplies and Services,E,Catering,EB,02/01/2015,PAY00727128,RESP,Respite Services,323.4,Revenue,Brakes Catering Equipment
Brighton & Hove City Council,http://statistics.data.gov.uk/id/local-authority/00ML,Cultural and Related Serv,BVACUL,Recreation and Sport,REC,Premises Related,C,Repair Maint n Alterations,CA,02/01/2015,PAY00727130,SEAS,Seafront Services,397.99,Revenue,A J Taylor Electrical Contractors Ltd
Brighton & Hove City Council,http://statistics.data.gov.uk/id/local-authority/00ML,Cultural and Related Serv,BVACUL,Culture and Heritage,CHG,Supplies and Services,E,Miscellaneous Expenses,EM,02/01/2015,PAY00727131,RPMU,Royal Pavilion and Museums,2480,Revenue,Artifax Software Ltd
Brighton & Hove City Council,http://statistics.data.gov.uk/id/local-authority/00ML,Adult Social Care,BVASOC,ASC Learning Disabilities,ALD,Supplies and Services,E,Equip't Furniture n Materials,EA,02/01/2015,PAY00727132,SUPE,Supported Employment,33.51,Revenue,Courier Express Ltd
Brighton & Hove City Council,http://statistics.data.gov.uk/id/local-authority/00ML,Central Support and Overheads,BVACEN,Holding Accounts,PPH,Supplies and Services,E,Communications n Computing,EH,02/01/2015,PAY00727132,PROP,Property and Design,187.4,Revenue,Courier Express Ltd
Brighton & Hove City Council,http://statistics.data.gov.uk/id/local-authority/00ML,Cultural and Related Serv,BVACUL,Open Spaces,PEN,Supplies and Services,E,Equip't Furniture n Materials,EA,02/01/2015,PAY00727133,CIPK,City Parks,63.74,Revenue,Greenham Trading Ltd
Brighton & Hove City Council,http://statistics.data.gov.uk/id/local-authority/00ML,Environment & Regulatory Serv,BVAERS,Street Cleansing,CLE,Supplies and Services,E,Equip't Furniture n Materials,EA,02/01/2015,PAY00727133,CICL,City Clean,5019,Revenue,Greenham Trading Ltd
Brighton & Hove City Council,http://statistics.data.gov.uk/id/local-authority/00ML,Highways and Transportation,BVAHRT,Highways and Roads - Mntnce,HRM,Supplies and Services,E,Equip't Furniture n Materials,EA,02/01/2015,PAY00727133,HIGH,Highways,83.23,Revenue,Greenham Trading Ltd
Brighton & Hove City Council,http://statistics.data.gov.uk/id/local-authority/00ML,Highways and Transportation,BVAHRT,Highways and Roads - Mntnce,HRM,Supplies and Services,E,Equip't Furniture n Materials,EA,02/01/2015,PAY00727133,HWEN,Highways Engineering,269.28,Revenue,Greenham Trading Ltd
Brighton & Hove City Council,http://statistics.data.gov.uk/id/local-authority/00ML,Planning and Development,BVAPLA,Building Control,BLD,Supplies and Services,E,Clothing Uniforms n Laundry,EC,02/01/2015,PAY00727133,DEVP,Development Planning,64.11,Revenue,Greenham Trading Ltd
Brighton & Hove City Council,http://statistics.data.gov.uk/id/local-authority/00ML,Housing General Fund,BVAHOG,Homelessness,HML,Premises Related,C,Rents Payable,CC,02/01/2015,PAY00727134,ASSA,Hostel Accommodation,11946.42,Revenue,Forward Properties Limited
Brighton & Hove City Council,http://statistics.data.gov.uk/id/local-authority/00ML,Children`s & Education Serv,BVAEDU,Child Srvcs - Fostering,FLF,Third Party Payments,F,Other Establishments,FH,02/01/2015,PAY00727135,AVFM,Agency Placements\VFM,9931.71,Revenue,Asphaleia Ltd
Brighton & Hove City Council,http://statistics.data.gov.uk/id/local-authority/00ML,Environment & Regulatory Serv,BVAERS,Environmental Health,EVH,Third Party Payments,F,Private Contractors,FJ,02/01/2015,PAY00727136,CICL,City Clean,69191.76,Revenue,Wetton Cleaning Services Ltd
Brighton & Hove City Council,http://statistics.data.gov.uk/id/local-authority/00ML,Planning and Development,BVAPLA,Economic Development,ECD,Supplies and Services,E,Services,EF,02/01/2015,PAY00727137,PROP,Property and Design,678.3,Revenue,Flude Commercial
Brighton & Hove City Council,http://statistics.data.gov.uk/id/local-authority/00ML,Cultural and Related Serv,BVACUL,Culture and Heritage,CHG,Supplies and Services,E,Miscellaneous Expenses,EM,02/01/2015,PAY00727138,VENU,Venues,1200,Revenue,UBM Information Ltd 
Brighton & Hove City Council,http://statistics.data.gov.uk/id/local-authority/00ML,Children`s & Education Serv,BVAEDU,Child Srvcs - Fostering,FLF,Third Party Payments,F,Other Establishments,FH,02/01/2015,PAY00727140,AVFM,Agency Placements\VFM,3100,Revenue,Kindercare Fostering
Brighton & Hove City Council,http://statistics.data.gov.uk/id/local-authority/00ML,Children`s & Education Serv,BVAEDU,Child Srvcs - Other Fam Supp,FFX,Transfer Payments,G,Other Transfer Payments,GD,02/01/2015,PAY00727141,FAMP,Families\Prevention,1057.6,Revenue,Vandu Language Services Ltd
Brighton & Hove City Council,http://statistics.data.gov.uk/id/local-authority/00ML,Central Support and Overheads,BVACEN,Support Services (SSC),PPT,Supplies and Services,E,Communications n Computing,EH,02/01/2015,PAY00727142,ICTA,ICT,24852.67,Revenue,Virgin Media Business Ltd
Brighton & Hove City Council,http://statistics.data.gov.uk/id/local-authority/00ML,Housing Revenue Account,BVAHOU,Hsing Management - HRA,HGM,Supplies and Services,E,Communications n Computing,EH,02/01/2015,PAY00727142,HPAI,Property & Investment,407.99,Revenue,Virgin Media Business Ltd
Brighton & Hove City Council,http://statistics.data.gov.uk/id/local-authority/00ML,Library Services,BVACUL,Library Service,LBR,Supplies and Services,E,Goods for Resale,EG,02/01/2015,PAY00727143,LIBS,Libraries,420.22,Revenue,Bookspeed
Brighton & Hove City Council,http://statistics.data.gov.uk/id/local-authority/00ML,Cultural and Related Serv,BVACUL,Culture and Heritage,CHG,Supplies and Services,E,Communications n Computing,EH,02/01/2015,PAY00727144,VENU,Venues,988.8,Revenue,Dataline Software Ltd
Brighton & Hove City Council,http://statistics.data.gov.uk/id/local-authority/00ML,Central Support and Overheads,BVACEN,Support Services (SSC),PPT,Premises Related,C,Repair Maint n Alterations,CA,02/01/2015,PAY00727145,PROP,Property and Design,233.3,Revenue,Fireline Ltd
Brighton & Hove City Council,http://statistics.data.gov.uk/id/local-authority/00ML,Cultural and Related Serv,BVACUL,Culture and Heritage,CHG,Premises Related,C,Repair Maint n Alterations,CA,02/01/2015,PAY00727145,RPMU,Royal Pavilion and Museums,194.84,Revenue,Fireline Ltd
Brighton & Hove City Council,http://statistics.data.gov.uk/id/local-authority/00ML,Cultural and Related Serv,BVACUL,Recreation and Sport,REC,Premises Related,C,Repair Maint n Alterations,CA,02/01/2015,PAY00727145,SEAS,Seafront Services,36.34,Revenue,Fireline Ltd
Brighton & Hove City Council,http://statistics.data.gov.uk/id/local-authority/00ML,Highways and Transportation,BVAHRT,Parking Services,PRK,Premises Related,C,Repair Maint n Alterations,CA,02/01/2015,PAY00727145,PARK,Parking,32.46,Revenue,Fireline Ltd
Brighton & Hove City Council,http://statistics.data.gov.uk/id/local-authority/00ML,Housing Revenue Account,BVAHOU,Hsing Management - HRA,HGM,Premises Related,C,Repair Maint n Alterations,CA,02/01/2015,PAY00727145,HIII,Income Involvement Improvement,13.87,Revenue,Fireline Ltd
Brighton & Hove City Council,http://statistics.data.gov.uk/id/local-authority/00ML,Housing Revenue Account,BVAHOU,Hsing Management - HRA,HGM,Premises Related,C,Repair Maint n Alterations,CA,02/01/2015,PAY00727145,HPAI,Property & Investment,83.22,Revenue,Fireline Ltd
Brighton & Hove City Council,http://statistics.data.gov.uk/id/local-authority/00ML,Housing General Fund,BVAHOG,Homelessness,HML,Premises Related,C,Rents Payable,CC,02/01/2015,PAY00727146,TAAS,Temp Accom and Allocations,2000,Revenue,Payment to Individual
Brighton & Hove City Council,http://statistics.data.gov.uk/id/local-authority/00ML,Children`s & Education Serv,BVAEDU,Child Srvcs Com and Scl Work,FCW,Supplies and Services,E,Communications n Computing,EH,02/01/2015,PAY00727147,SOCK,Social Work,25.33,Revenue,Petty Cash
Brighton & Hove City Council,http://statistics.data.gov.uk/id/local-authority/00ML,Children`s & Education Serv,BVAEDU,Child Srvcs Com and Scl Work,FCW,Transport Related,D,Public Transport,DD,02/01/2015,PAY00727147,SOCK,Social Work,7,Revenue,Petty Cash
Brighton & Hove City Council,http://statistics.data.gov.uk/id/local-authority/00ML,Children`s & Education Serv,BVAEDU,Child Srvcs Leaving Care,FAL,Supplies and Services,E,Equip't Furniture n Materials,EA,02/01/2015,PAY00727147,CHIC,Children In Care,132.66,Revenue,Petty Cash
Brighton & Hove City Council,http://statistics.data.gov.uk/id/local-authority/00ML,Children`s & Education Serv,BVAEDU,Child Srvcs Leaving Care,FAL,Transfer Payments,G,Other Transfer Payments,GD,02/01/2015,PAY00727147,CHIC,Children In Care,4592.68,Revenue,Petty Cash
Brighton & Hove City Council,http://statistics.data.gov.uk/id/local-authority/00ML,Children`s & Education Serv,BVAEDU,Child Srvcs - Other Fam Supp,FFX,Transfer Payments,G,Other Transfer Payments,GD,02/01/2015,PAY00727147,FAMP,Families\Prevention,19,Revenue,Petty Cash
Brighton & Hove City Council,http://statistics.data.gov.uk/id/local-authority/00ML,Children`s & Education Serv,BVAEDU,Child Srvcs - Othr LAC Svcs,FLX,Supplies and Services,E,Equip't Furniture n Materials,EA,02/01/2015,PAY00727147,CHIC,Children In Care,25.86,Revenue,Petty Cash
Brighton & Hove City Council,http://statistics.data.gov.uk/id/local-authority/00ML,Children`s & Education Serv,BVAEDU,Child Srvcs - Othr LAC Svcs,FLX,Transfer Payments,G,Other Transfer Payments,GD,02/01/2015,PAY00727147,CHIC,Children In Care,1558.26,Revenue,Petty Cash
Brighton & Hove City Council,http://statistics.data.gov.uk/id/local-authority/00ML,Central Services to the Public,BVACEN,Elections,ELE,Supplies and Services,E,Communications n Computing,EH,02/01/2015,PAY00727149,LIFE,Life Events,1438.04,Revenue,Royal Mail Group Ltd
Brighton & Hove City Council,http://statistics.data.gov.uk/id/local-authority/00ML,Central Support and Overheads,BVACEN,Holding Accounts,PPH,Supplies and Services,E,Communications n Computing,EH,02/01/2015,PAY00727149,PROP,Property and Design,4236.87,Revenue,Royal Mail Group Ltd
Brighton & Hove City Council,http://statistics.data.gov.uk/id/local-authority/00ML,Environment & Regulatory Serv,BVAERS,Environmental Health,EVH,Supplies and Services,E,Communications n Computing,EH,02/01/2015,PAY00727149,PUPO,Public Protection,42.64,Revenue,Royal Mail Group Ltd
Brighton & Hove City Council,http://statistics.data.gov.uk/id/local-authority/00ML,Non I&E,BVANON,CAP Transport,4TR,New Construction n Conversion,PB,New Construction n Conversion,PBL5,02/01/2015,PAY00727149,HWEN,Highways Engineering,914.48,Capital,Royal Mail Group Ltd
Brighton & Hove City Council,http://statistics.data.gov.uk/id/local-authority/00ML,Children`s & Education Serv,BVAEDU,Child Srvcs - Fostering,FLF,Third Party Payments,F,Other Establishments,FH,02/01/2015,PAY00727150,AVFM,Agency Placements\VFM,6494.68,Revenue,Barnardo`s
Brighton & Hove City Council,http://statistics.data.gov.uk/id/local-authority/00ML,Children`s & Education Serv,BVAEDU,Child Srvcs Com and Scl Work,FCW,Supplies and Services,E,Miscellaneous Expenses,EM,02/01/2015,PAY00727152,SOCK,Social Work,234.16,Revenue,Big Box Storage Co Ltd
Brighton & Hove City Council,http://statistics.data.gov.uk/id/local-authority/00ML,Housing General Fund,BVAHOG,Homelessness,HML,Premises Related,C,Rents Payable,CC,02/01/2015,PAY00727153,TAAS,Temp Accom and Allocations,2425,Revenue,Payment to Individual
Brighton & Hove City Council,http://statistics.data.gov.uk/id/local-authority/00ML,Adult Social Care,BVASOC,ASC Physical Support,PHY,Third Party Payments,F,Other Establishments,FH,02/01/2015,PAY00727154,PHYS,Physical Support,149.1,Revenue,Sussex Interpreting Services
Brighton & Hove City Council,http://statistics.data.gov.uk/id/local-authority/00ML,Environment & Regulatory Serv,BVAERS,Environmental Health,EVH,Supplies and Services,E,Services,EF,02/01/2015,PAY00727154,PUPO,Public Protection,580,Revenue,Sussex Interpreting Services
Brighton & Hove City Council,http://statistics.data.gov.uk/id/local-authority/00ML,Central Support and Overheads,BVACEN,Support Services (SSC),PPT,Indirect Employees,B,Training,BM,02/01/2015,PAY00727155,AUDB,Audit and Business Risk,1695,Revenue,Chartered Institute of Internal Auditors
Brighton & Hove City Council,http://statistics.data.gov.uk/id/local-authority/00ML,Highways and Transportation,BVAHRT,Highways and Roads - Mntnce,HRM,Supplies and Services,E,Services,EF,02/01/2015,PAY00727158,HWEN,Highways Engineering,989.42,Revenue,T J Evans Ltd
Brighton & Hove City Council,http://statistics.data.gov.uk/id/local-authority/00ML,Children`s & Education Serv,BVAEDU,Child Srvcs - Fostering,FLF,Third Party Payments,F,Other Establishments,FH,02/01/2015,PAY00727159,CHIC,Children In Care,324,Revenue,Orchid Cellmark Ltd
Brighton & Hove City Council,http://statistics.data.gov.uk/id/local-authority/00ML,Housing Revenue Account,BVAHOU,Hsing Management - HRA,HGM,Premises Related,C,Repair Maint n Alterations,CA,02/01/2015,PAY00727160,HTEN,Tenancy Services,2520,Revenue,Greenacre Recycling Ltd
Brighton & Hove City Council,http://statistics.data.gov.uk/id/local-authority/00ML,Housing Revenue Account,BVAHOU,Hsing Management - HRA,HGM,Supplies and Services,E,Equip't Furniture n Materials,EA,02/01/2015,PAY00727160,HTEN,Tenancy Services,165,Revenue,Greenacre Recycling Ltd
Brighton & Hove City Council,http://statistics.data.gov.uk/id/local-authority/00ML,Cultural and Related Serv,BVACUL,Culture and Heritage,CHG,Supplies and Services,E,Services,EF,02/01/2015,PAY00727161,RPMU,Royal Pavilion and Museums,300,Revenue,S.W.A.T Marketing Ltd
Brighton & Hove City Council,http://statistics.data.gov.uk/id/local-authority/00ML,Children`s & Education Serv,BVAEDU,Child Srvcs - Residential Svcs,FLR,Third Party Payments,F,Other Establishments,FH,02/01/2015,PAY00727162,AVFM,Agency Placements\VFM,45343.2,Revenue,My Choice Children`s Homes Ltd
Brighton & Hove City Council,http://statistics.data.gov.uk/id/local-authority/00ML,Children`s & Education Serv,BVAEDU,Child Srvcs - Residential Svcs,FLR,Third Party Payments,F,Other Establishments,FH,02/01/2015,PAY00727162,DISS,Disability Services,45343.2,Revenue,My Choice Children`s Homes Ltd
Brighton & Hove City Council,http://statistics.data.gov.uk/id/local-authority/00ML,Central Support and Overheads,BVACEN,Holding Accounts,PPH,Transport Related,D,Direct Transport Costs,DA,02/01/2015,PAY00727164,CICL,City Clean,340,Revenue,Barnes DAF
Brighton & Hove City Council,http://statistics.data.gov.uk/id/local-authority/00ML,Housing General Fund,BVAHOG,Homelessness,HML,Premises Related,C,Repair Maint n Alterations,CA,02/01/2015,PAY00727165,TAAS,Temp Accom and Allocations,365.1,Revenue,B & Q Plc
Brighton & Hove City Council,http://statistics.data.gov.uk/id/local-authority/00ML,Non I&E,BVANON,CAP Social Services,4RV,Plant Machinery n Equipment,PE2,Plant Machinery n Equipment,PE2L5,02/01/2015,PAY00727165,ASIT,Assessment and SIT,3.96,Capital,B & Q Plc
Brighton & Hove City Council,http://statistics.data.gov.uk/id/local-authority/00ML,Adult Social Care,BVASOC,Info & Early Intervention,PRV,Third Party Payments,F,Other Establishments,FH,02/01/2015,PAY00727166,CCGC,CCG Commissioned Services,44029.95,Revenue,MIND in Brighton & Hove
Brighton & Hove City Council,http://statistics.data.gov.uk/id/local-authority/00ML,Public Health,BVAPHE,Public Health,PHE,Third Party Payments,F,Voluntary Associations,FG,02/01/2015,PAY00727166,PHCM,PH Commissioning,25233.5,Revenue,MIND in Brighton & Hove
Brighton & Hove City Council,http://statistics.data.gov.uk/id/local-authority/00ML,Children`s & Education Serv,BVAEDU,Ed EY Central,EAE,Third Party Payments,F,Other Establishments,FH,02/01/2015,PAY00727167,SOCK,Social Work,5000,Revenue,Brighton Oasis Project
Brighton & Hove City Council,http://statistics.data.gov.uk/id/local-authority/00ML,Children`s & Education Serv,BVAEDU,Child Srvcs - Fostering,FLF,Third Party Payments,F,Other Establishments,FH,02/01/2015,PAY00727168,AVFM,Agency Placements\VFM,35197.28,Revenue,The Foster Care Agency Ltd
Brighton & Hove City Council,http://statistics.data.gov.uk/id/local-authority/00ML,Adult Social Care,BVASOC,ASC Physical Support,PHY,Supplies and Services,E,Equip't Furniture n Materials,EA,02/01/2015,PAY00727169,RCOP,Resource Centres Older People,2709,Revenue,Allsop & Francis Ltd
Brighton & Hove City Council,http://statistics.data.gov.uk/id/local-authority/00ML,Central Support and Overheads,BVACEN,Holding Accounts,PPH,Premises Related,C,Repair Maint n Alterations,CA,02/01/2015,PAY00727169,PROP,Property and Design,133.75,Revenue,Allsop & Francis Ltd
Brighton & Hove City Council,http://statistics.data.gov.uk/id/local-authority/00ML,Cultural and Related Serv,BVACUL,Highways and Roads - Mntnce,HRM,Premises Related,C,Repair Maint n Alterations,CA,02/01/2015,PAY00727170,PROP,Property and Design,560,Revenue,FJS Building & Property Maintenance Ltd
Brighton & Hove City Council,http://statistics.data.gov.uk/id/local-authority/00ML,Environment & Regulatory Serv,BVAERS,Management Services (DEC),MGT,Premises Related,C,Repair Maint n Alterations,CA,02/01/2015,PAY00727170,CICL,City Clean,525,Revenue,FJS Building & Property Maintenance Ltd
Brighton & Hove City Council,http://statistics.data.gov.uk/id/local-authority/00ML,Environment & Regulatory Serv,BVAERS,Management Services (DEC),MGT,Third Party Payments,F,Private Contractors,FJ,02/01/2015,PAY00727170,CICL,City Clean,525,Revenue,FJS Building & Property Maintenance Ltd
Brighton & Hove City Council,http://statistics.data.gov.uk/id/local-authority/00ML,Cultural and Related Serv,BVACUL,Recreation and Sport,REC,Third Party Payments,F,Independent Units of Council,FA,02/01/2015,PAY00727171,SFAC,Sports Facilities,2421,Revenue,Freedom Leisure
Brighton & Hove City Council,http://statistics.data.gov.uk/id/local-authority/00ML,Central Support and Overheads,BVACEN,Support Services (SSC),PPT,Supplies and Services,E,Miscellaneous Expenses,EM,02/01/2015,PAY00727172,BIPR,Bulk Insurance Premia,72924.66,Revenue,JLT Speciality Ltd
Brighton & Hove City Council,http://statistics.data.gov.uk/id/local-authority/00ML,Central Support and Overheads,BVACEN,Support Services (SSC),PPT,Premises Related,C,Repair Maint n Alterations,CA,02/01/2015,PAY00727173,PROP,Property and Design,288.01,Revenue,Plumbase
Brighton & Hove City Council,http://statistics.data.gov.uk/id/local-authority/00ML,Housing General Fund,BVAHOG,Homelessness,HML,Supplies and Services,E,Services,EF,02/01/2015,PAY00727174,TAAS,Temp Accom and Allocations,10182.5,Revenue,Solutions
Brighton & Hove City Council,http://statistics.data.gov.uk/id/local-authority/00ML,Adult Social Care,BVASOC,ASC Mental Health Support,MHP,Customer n Client Receipts,M,Fees n Charges,MB,02/01/2015,PAY00727175,MENH,Mental Health Support,-397.2,Revenue,Clifton Court Development Company
Brighton & Hove City Council,http://statistics.data.gov.uk/id/local-authority/00ML,Adult Social Care,BVASOC,ASC Mental Health Support,MHP,Third Party Payments,F,Other Establishments,FH,02/01/2015,PAY00727175,MENH,Mental Health Support,1486.72,Revenue,Clifton Court Development Company
Brighton & Hove City Council,http://statistics.data.gov.uk/id/local-authority/00ML,Adult Social Care,BVASOC,ASC Learning Disabilities,ALD,Customer n Client Receipts,M,Fees n Charges,MB,02/01/2015,PAY00727177,LDIS,Learning Disabilities,-335,Revenue,Modus Care (Plymouth) Ltd
Brighton & Hove City Council,http://statistics.data.gov.uk/id/local-authority/00ML,Adult Social Care,BVASOC,ASC Learning Disabilities,ALD,Third Party Payments,F,Other Establishments,FH,02/01/2015,PAY00727177,LDIS,Learning Disabilities,25623.04,Revenue,Modus Care (Plymouth) Ltd
Brighton & Hove City Council,http://statistics.data.gov.uk/id/local-authority/00ML,Children`s & Education Serv,BVAEDU,Child Srvcs - Fostering,FLF,Third Party Payments,F,Other Establishments,FH,02/01/2015,PAY00727178,AVFM,Agency Placements\VFM,25699.95,Revenue,The National Fostering Agency Ltd
Brighton & Hove City Council,http://statistics.data.gov.uk/id/local-authority/00ML,Non I&E,BVANON,CAP Social Services,4RV,New Construction n Conversion,PB,New Construction n Conversion,PBL5,02/01/2015,PAY00727179,DISS,Disability Services,1139,Capital,Tough Furniture Ltd
Brighton & Hove City Council,http://statistics.data.gov.uk/id/local-authority/00ML,Adult Social Care,BVASOC,ASC Physical Support,PHY,Premises Related,C,Cleaning n Domestic Supps,CH,02/01/2015,PAY00727180,HOME,Home Care,720.5,Revenue,Topak Marketing
Brighton & Hove City Council,http://statistics.data.gov.uk/id/local-authority/00ML,Non I&E,BVANON,Cap - Housing Services - HRA,4HR,New Construction n Conversion,PB,New Construction n Conversion,PBL5,02/01/2015,PAY00727182,HSTR,Housing Strategy,800,Capital,Focus Consulting
Brighton & Hove City Council,http://statistics.data.gov.uk/id/local-authority/00ML,Children`s & Education Serv,BVAEDU,Child Srvcs - Other Fam Supp,FFX,Transfer Payments,G,Other Transfer Payments,GD,02/01/2015,PAY00727183,FAMP,Families\Prevention,371,Revenue,Crime Reduction Initiatives Ltd
Brighton & Hove City Council,http://statistics.data.gov.uk/id/local-authority/00ML,Adult Social Care,BVASOC,ASC Physical Support,PHY,Supplies and Services,E,Catering,EB,02/01/2015,PAY00727184,RCOP,Resource Centres Older People,437.36,Revenue,K D Catering Butchers Ltd
Brighton & Hove City Council,http://statistics.data.gov.uk/id/local-authority/00ML,Adult Social Care,BVASOC,ASC Mental Health Support,MHP,Customer n Client Receipts,M,Fees n Charges,MB,02/01/2015,PAY00727185,MENH,Mental Health Support,-204,Revenue,Sussex Oakleaf Housing Association
Brighton & Hove City Council,http://statistics.data.gov.uk/id/local-authority/00ML,Adult Social Care,BVASOC,ASC Mental Health Support,MHP,Third Party Payments,F,Other Establishments,FH,02/01/2015,PAY00727185,MENH,Mental Health Support,1835.4,Revenue,Sussex Oakleaf Housing Association
Brighton & Hove City Council,http://statistics.data.gov.uk/id/local-authority/00ML,Cultural and Related Serv,BVACUL,Culture and Heritage,CHG,Supplies and Services,E,Equip't Furniture n Materials,EA,02/01/2015,PAY00727186,RPMU,Royal Pavilion and Museums,189.66,Revenue,Payment to Individual
Brighton & Hove City Council,http://statistics.data.gov.uk/id/local-authority/00ML,Cultural and Related Serv,BVACUL,Culture and Heritage,CHG,Supplies and Services,E,Miscellaneous Expenses,EM,02/01/2015,PAY00727186,RPMU,Royal Pavilion and Museums,130.18,Revenue,Payment to Individual
Brighton & Hove City Council,http://statistics.data.gov.uk/id/local-authority/00ML,Cultural and Related Serv,BVACUL,Culture and Heritage,CHG,Supplies and Services,E,Services,EF,02/01/2015,PAY00727186,RPMU,Royal Pavilion and Museums,16,Revenue,Payment to Individual
Brighton & Hove City Council,http://statistics.data.gov.uk/id/local-authority/00ML,Cultural and Related Serv,BVACUL,Culture and Heritage,CHG,Transport Related,D,Public Transport,DD,02/01/2015,PAY00727186,RPMU,Royal Pavilion and Museums,111.05,Revenue,Payment to Individual
Brighton & Hove City Council,http://statistics.data.gov.uk/id/local-authority/00ML,Central Support and Overheads,BVACEN,Support Services (SSC),PPT,Transport Related,D,Public Transport,DD,02/01/2015,PAY00727187,PROP,Property and Design,28.95,Revenue,City Car Club Ltd
Brighton & Hove City Council,http://statistics.data.gov.uk/id/local-authority/00ML,Environment & Regulatory Serv,BVAERS,Environmental Health,EVH,Transport Related,D,Public Transport,DD,02/01/2015,PAY00727187,PUPO,Public Protection,22.34,Revenue,City Car Club Ltd
Brighton & Hove City Council,http://statistics.data.gov.uk/id/local-authority/00ML,Housing General Fund,BVAHOG,Private Sector Hsing Renewal,PHR,Transport Related,D,Car Allowances,DE,02/01/2015,PAY00727187,PSHG,Private Sector Housing,21.1,Revenue,City Car Club Ltd
Brighton & Hove City Council,http://statistics.data.gov.uk/id/local-authority/00ML,Planning and Development,BVAPLA,Development Control,DEV,Transport Related,D,Public Transport,DD,02/01/2015,PAY00727187,DEVP,Development Planning,617.67,Revenue,City Car Club Ltd
Brighton & Hove City Council,http://statistics.data.gov.uk/id/local-authority/00ML,Housing General Fund,BVAHOG,Homelessness,HML,Premises Related,C,Rents Payable,CC,02/01/2015,PAY00727188,TAAS,Temp Accom and Allocations,1093.94,Revenue,Sanctuary Housing Association
Brighton & Hove City Council,http://statistics.data.gov.uk/id/local-authority/00ML,Housing General Fund,BVAHOG,Homelessness,HML,Premises Related,C,Rents Payable,CC,02/01/2015,PAY00727189,TAAS,Temp Accom and Allocations,25055.08,Revenue,KEM Property Services Ltd
Brighton & Hove City Council,http://statistics.data.gov.uk/id/local-authority/00ML,Adult Social Care,BVASOC,ASC Memory Cognition Support,MEM,Transport Related,D,Direct Transport Costs,DA,02/01/2015,PAY00727190,DAYS,Day Services,60.5,Revenue,Petty Cash
Brighton & Hove City Council,http://statistics.data.gov.uk/id/local-authority/00ML,Adult Social Care,BVASOC,Social Care Activities,ACM,Indirect Employees,B,Misc Employee Costs,BP,02/01/2015,PAY00727190,ASIT,Assessment and SIT,12.14,Revenue,Petty Cash
Brighton & Hove City Council,http://statistics.data.gov.uk/id/local-authority/00ML,Central Services to the Public,BVACEN,Elections,ELE,Indirect Employees,B,Misc Employee Costs,BP,02/01/2015,PAY00727190,LIFE,Life Events,10,Revenue,Petty Cash
Brighton & Hove City Council,http://statistics.data.gov.uk/id/local-authority/00ML,Central Services to the Public,BVACEN,Elections,ELE,Transport Related,D,Public Transport,DD,02/01/2015,PAY00727190,LIFE,Life Events,37.8,Revenue,Petty Cash
Brighton & Hove City Council,http://statistics.data.gov.uk/id/local-authority/00ML,Central Services to the Public,BVACEN,Local Tax Collection,LTC,Transport Related,D,Public Transport,DD,02/01/2015,PAY00727190,REVS,Revenues and Benefits,9.2,Revenue,Petty Cash
Brighton & Hove City Council,http://statistics.data.gov.uk/id/local-authority/00ML,Central Services to the Public,BVACEN,Reg - Birth Death and Marriage,RBD,Supplies and Services,E,Miscellaneous Expenses,EM,02/01/2015,PAY00727190,LIFE,Life Events,4.65,Revenue,Petty Cash
Brighton & Hove City Council,http://statistics.data.gov.uk/id/local-authority/00ML,Central Services to the Public,BVACEN,Reg - Birth Death and Marriage,RBD,Supplies and Services,E,Print Stat & Gen Office Exps,ED,02/01/2015,PAY00727190,LIFE,Life Events,17.62,Revenue,Petty Cash
Brighton & Hove City Council,http://statistics.data.gov.uk/id/local-authority/00ML,Central Services to the Public,BVACEN,Reg - Birth Death and Marriage,RBD,Transport Related,D,Public Transport,DD,02/01/2015,PAY00727190,LIFE,Life Events,54.4,Revenue,Petty Cash
Brighton & Hove City Council,http://statistics.data.gov.uk/id/local-authority/00ML,Central Services to the Public,BVACEN,Support Services (SSC),PPT,Supplies and Services,E,Clothing Uniforms n Laundry,EC,02/01/2015,PAY00727190,REVS,Revenues and Benefits,48,Revenue,Petty Cash
Brighton & Hove City Council,http://statistics.data.gov.uk/id/local-authority/00ML,Central Support and Overheads,BVACEN,Support Services (SSC),PPT,Indirect Employees,B,Training,BM,02/01/2015,PAY00727190,FINS,Financial Services,18.9,Revenue,Petty Cash
Brighton & Hove City Council,http://statistics.data.gov.uk/id/local-authority/00ML,Central Support and Overheads,BVACEN,Support Services (SSC),PPT,Supplies and Services,E,Clothing Uniforms n Laundry,EC,02/01/2015,PAY00727190,LIFE,Life Events,10.83,Revenue,Petty Cash
Brighton & Hove City Council,http://statistics.data.gov.uk/id/local-authority/00ML,Central Support and Overheads,BVACEN,Support Services (SSC),PPT,Supplies and Services,E,Miscellaneous Expenses,EM,02/01/2015,PAY00727190,POLY,Policy,73.71,Revenue,Petty Cash
Brighton & Hove City Council,http://statistics.data.gov.uk/id/local-authority/00ML,Central Support and Overheads,BVACEN,Support Services (SSC),PPT,Supplies and Services,E,Print Stat & Gen Office Exps,ED,02/01/2015,PAY00727190,ICTA,ICT,16.5,Revenue,Petty Cash
Brighton & Hove City Council,http://statistics.data.gov.uk/id/local-authority/00ML,Central Support and Overheads,BVACEN,Support Services (SSC),PPT,Transport Related,D,Public Transport,DD,02/01/2015,PAY00727190,FINS,Financial Services,37.5,Revenue,Petty Cash
Brighton & Hove City Council,http://statistics.data.gov.uk/id/local-authority/00ML,Central Support and Overheads,BVACEN,Support Services (SSC),PPT,Transport Related,D,Public Transport,DD,02/01/2015,PAY00727190,ORGD,Organisational Development,31.4,Revenue,Petty Cash
Brighton & Hove City Council,http://statistics.data.gov.uk/id/local-authority/00ML,Children`s & Education Serv,BVAEDU,Child Srvcs - Other Yth Jstce,FYX,Supplies and Services,E,Miscellaneous Expenses,EM,02/01/2015,PAY00727190,FAMP,Families\Prevention,25.18,Revenue,Petty Cash
Brighton & Hove City Council,http://statistics.data.gov.uk/id/local-authority/00ML,Children`s & Education Serv,BVAEDU,Child Srvcs - Other Yth Jstce,FYX,Transport Related,D,Other Transport Costs,DG,02/01/2015,PAY00727190,FAMP,Families\Prevention,52.5,Revenue,Petty Cash
Brighton & Hove City Council,http://statistics.data.gov.uk/id/local-authority/00ML,Children`s & Education Serv,BVAEDU,Child Srvcs - Other Yth Jstce,FYX,Transport Related,D,Public Transport,DD,02/01/2015,PAY00727190,FAMP,Families\Prevention,247.6,Revenue,Petty Cash
Brighton & Hove City Council,http://statistics.data.gov.uk/id/local-authority/00ML,Children`s & Education Serv,BVAEDU,Ed Srvcs YP Ad and Cmty Ln,ENA,Supplies and Services,E,Miscellaneous Expenses,EM,02/01/2015,PAY00727190,OEDS,Other Education Support,4.05,Revenue,Petty Cash
Brighton & Hove City Council,http://statistics.data.gov.uk/id/local-authority/00ML,Cultural and Related Serv,BVACUL,Tourism,TRM,Supplies and Services,E,Miscellaneous Expenses,EM,02/01/2015,PAY00727190,TOMA,Tourism and Marketing,7.3,Revenue,Petty Cash
Brighton & Hove City Council,http://statistics.data.gov.uk/id/local-authority/00ML,Environment & Regulatory Serv,BVAERS,Community Safety,CMY,Transport Related,D,Other Transport Costs,DG,02/01/2015,PAY00727190,CSTP,Comm Safety Team & Partnership,37,Revenue,Petty Cash
Brighton & Hove City Council,http://statistics.data.gov.uk/id/local-authority/00ML,Environment & Regulatory Serv,BVAERS,Community Safety,CMY,Transport Related,D,Public Transport,DD,02/01/2015,PAY00727190,CSTP,Comm Safety Team & Partnership,22.5,Revenue,Petty Cash
Brighton & Hove City Council,http://statistics.data.gov.uk/id/local-authority/00ML,Environment & Regulatory Serv,BVAERS,Consumer Protection,CNP,Transport Related,D,Public Transport,DD,02/01/2015,PAY00727190,PUPO,Public Protection,25.6,Revenue,Petty Cash
Brighton & Hove City Council,http://statistics.data.gov.uk/id/local-authority/00ML,Environment & Regulatory Serv,BVAERS,Environmental Health,EVH,Supplies and Services,E,Clothing Uniforms n Laundry,EC,02/01/2015,PAY00727190,PUPO,Public Protection,10,Revenue,Petty Cash
Brighton & Hove City Council,http://statistics.data.gov.uk/id/local-authority/00ML,Environment & Regulatory Serv,BVAERS,Environmental Health,EVH,Supplies and Services,E,Equip't Furniture n Materials,EA,02/01/2015,PAY00727190,PUPO,Public Protection,19.98,Revenue,Petty Cash
Brighton & Hove City Council,http://statistics.data.gov.uk/id/local-authority/00ML,Environment & Regulatory Serv,BVAERS,Environmental Health,EVH,Supplies and Services,E,Miscellaneous Expenses,EM,02/01/2015,PAY00727190,PUPO,Public Protection,42.73,Revenue,Petty Cash
Brighton & Hove City Council,http://statistics.data.gov.uk/id/local-authority/00ML,Environment & Regulatory Serv,BVAERS,Environmental Health,EVH,Transport Related,D,Direct Transport Costs,DA,02/01/2015,PAY00727190,PUPO,Public Protection,5,Revenue,Petty Cash
Brighton & Hove City Council,http://statistics.data.gov.uk/id/local-authority/00ML,Environment & Regulatory Serv,BVAERS,Environmental Health,EVH,Transport Related,D,Other Transport Costs,DG,02/01/2015,PAY00727190,PUPO,Public Protection,2.5,Revenue,Petty Cash
Brighton & Hove City Council,http://statistics.data.gov.uk/id/local-authority/00ML,Environment & Regulatory Serv,BVAERS,Environmental Health,EVH,Transport Related,D,Public Transport,DD,02/01/2015,PAY00727190,PUPO,Public Protection,208.4,Revenue,Petty Cash
Brighton & Hove City Council,http://statistics.data.gov.uk/id/local-authority/00ML,Highways and Transportation,BVAHRT,Parking Services,PRK,Supplies and Services,E,Equip't Furniture n Materials,EA,02/01/2015,PAY00727190,PARK,Parking,10.75,Revenue,Petty Cash
Brighton & Hove City Council,http://statistics.data.gov.uk/id/local-authority/00ML,Housing General Fund,BVAHOG,Homelessness,HML,Indirect Employees,B,Misc Employee Costs,BP,02/01/2015,PAY00727190,TAAS,Temp Accom and Allocations,25,Revenue,Petty Cash
Brighton & Hove City Council,http://statistics.data.gov.uk/id/local-authority/00ML,Housing General Fund,BVAHOG,Homelessness,HML,Premises Related,C,Energy Costs,CB,02/01/2015,PAY00727190,TAAS,Temp Accom and Allocations,70,Revenue,Petty Cash
Brighton & Hove City Council,http://statistics.data.gov.uk/id/local-authority/00ML,Housing General Fund,BVAHOG,Homelessness,HML,Supplies and Services,E,Print Stat & Gen Office Exps,ED,02/01/2015,PAY00727190,TAAS,Temp Accom and Allocations,14.15,Revenue,Petty Cash
Brighton & Hove City Council,http://statistics.data.gov.uk/id/local-authority/00ML,Housing General Fund,BVAHOG,Homelessness,HML,Transport Related,D,Other Transport Costs,DG,02/01/2015,PAY00727190,TAAS,Temp Accom and Allocations,0.6,Revenue,Petty Cash
Brighton & Hove City Council,http://statistics.data.gov.uk/id/local-authority/00ML,Housing General Fund,BVAHOG,Homelessness,HML,Transport Related,D,Public Transport,DD,02/01/2015,PAY00727190,HOPT,Housing Options,128.8,Revenue,Petty Cash
Brighton & Hove City Council,http://statistics.data.gov.uk/id/local-authority/00ML,Housing General Fund,BVAHOG,Homelessness,HML,Transport Related,D,Public Transport,DD,02/01/2015,PAY00727190,TAAS,Temp Accom and Allocations,257.7,Revenue,Petty Cash
Brighton & Hove City Council,http://statistics.data.gov.uk/id/local-authority/00ML,Housing General Fund,BVAHOG,Hsing Benefits,HGB,Supplies and Services,E,Equip't Furniture n Materials,EA,02/01/2015,PAY00727190,REVS,Revenues and Benefits,83.29,Revenue,Petty Cash
Brighton & Hove City Council,http://statistics.data.gov.uk/id/local-authority/00ML,Housing General Fund,BVAHOG,Hsing Benefits,HGB,Transport Related,D,Public Transport,DD,02/01/2015,PAY00727190,REVS,Revenues and Benefits,9.4,Revenue,Petty Cash
Brighton & Hove City Council,http://statistics.data.gov.uk/id/local-authority/00ML,Housing General Fund,BVAHOG,Hsing Strat Advice and RSLs,HGR,Supplies and Services,E,Print Stat & Gen Office Exps,ED,02/01/2015,PAY00727190,TAAS,Temp Accom and Allocations,59.8,Revenue,Petty Cash
Brighton & Hove City Council,http://statistics.data.gov.uk/id/local-authority/00ML,Housing General Fund,BVAHOG,Hsing Welfare,HGW,Supplies and Services,E,Print Stat & Gen Office Exps,ED,02/01/2015,PAY00727190,ASSA,Hostel Accommodation,44.45,Revenue,Petty Cash
Brighton & Hove City Council,http://statistics.data.gov.uk/id/local-authority/00ML,Housing General Fund,BVAHOG,Hsing Welfare,HGW,Supplies and Services,E,Print Stat & Gen Office Exps,ED,02/01/2015,PAY00727190,SUPP,Related Housing Services,5.83,Revenue,Petty Cash
Brighton & Hove City Council,http://statistics.data.gov.uk/id/local-authority/00ML,Housing General Fund,BVAHOG,Hsing Welfare,HGW,Transport Related,D,Public Transport,DD,02/01/2015,PAY00727190,SUPP,Related Housing Services,7.5,Revenue,Petty Cash
Brighton & Hove City Council,http://statistics.data.gov.uk/id/local-authority/00ML,Non-BHC Organisations,BVANON,Trusts,TRT,Supplies and Services,E,Miscellaneous Expenses,EM,02/01/2015,PAY00727190,NBHC,Non Council,369,Revenue,Petty Cash
Brighton & Hove City Council,http://statistics.data.gov.uk/id/local-authority/00ML,Planning and Development,BVAPLA,Community Development,CDV,Supplies and Services,E,Miscellaneous Expenses,EM,02/01/2015,PAY00727190,CMNY,Communities and Equalities,46.58,Revenue,Petty Cash
Brighton & Hove City Council,http://statistics.data.gov.uk/id/local-authority/00ML,Adult Social Care,BVASOC,ASC Learning Disabilities,ALD,Premises Related,C,Cleaning n Domestic Supps,CH,02/01/2015,PAY00727191,RESP,Respite Services,48.35,Revenue,Infinity Foods Co-Op Ltd
Brighton & Hove City Council,http://statistics.data.gov.uk/id/local-authority/00ML,Adult Social Care,BVASOC,ASC Learning Disabilities,ALD,Supplies and Services,E,Catering,EB,02/01/2015,PAY00727191,RESP,Respite Services,418.26,Revenue,Infinity Foods Co-Op Ltd
Brighton & Hove City Council,http://statistics.data.gov.uk/id/local-authority/00ML,Housing General Fund,BVAHOG,Homelessness,HML,Premises Related,C,Rents Payable,CC,02/01/2015,PAY00727194,TAAS,Temp Accom and Allocations,13420,Revenue,W P Properties Ltd
Brighton & Hove City Council,http://statistics.data.gov.uk/id/local-authority/00ML,Housing General Fund,BVAHOG,Homelessness,HML,Premises Related,C,Rents Payable,CC,02/01/2015,PAY00727195,TAAS,Temp Accom and Allocations,660,Revenue,Payment to Individual
Brighton & Hove City Council,http://statistics.data.gov.uk/id/local-authority/00ML,Children`s & Education Serv,BVAEDU,Child Srvcs - Fostering,FLF,Third Party Payments,F,Other Establishments,FH,02/01/2015,PAY00727197,CHIC,Children In Care,1446.4,Revenue,Sussex Central YMCA (Trading) Ltd 
Brighton & Hove City Council,http://statistics.data.gov.uk/id/local-authority/00ML,Housing General Fund,BVAHOG,Hsing Benefits,HGB,Transfer Payments,G,Other Transfer Payments,GD,02/01/2015,PAY00727197,REVS,Revenues and Benefits,2931,Revenue,Sussex Central YMCA (Trading) Ltd 
Brighton & Hove City Council,http://statistics.data.gov.uk/id/local-authority/00ML,Central Support and Overheads,BVACEN,Support Services (SSC),PPT,Supplies and Services,E,Print Stat & Gen Office Exps,ED,02/01/2015,PAY00727198,PROP,Property and Design,440,Revenue,Westcountry Corporate Ltd t/a Westcountry Group
Brighton & Hove City Council,http://statistics.data.gov.uk/id/local-authority/00ML,Housing General Fund,BVAHOG,Homelessness,HML,Premises Related,C,Rents Payable,CC,02/01/2015,PAY00727199,TAAS,Temp Accom and Allocations,825,Revenue,Payment to Individual
Brighton & Hove City Council,http://statistics.data.gov.uk/id/local-authority/00ML,Cultural and Related Serv,BVACUL,Culture and Heritage,CHG,Supplies and Services,E,Miscellaneous Expenses,EM,02/01/2015,PAY00727201,RPMU,Royal Pavilion and Museums,350,Revenue,2Upfront Design
Brighton & Hove City Council,http://statistics.data.gov.uk/id/local-authority/00ML,Children`s & Education Serv,BVAEDU,Child Srvcs - Other Fam Supp,FFX,Transfer Payments,G,Other Transfer Payments,GD,02/01/2015,PAY00727202,FAMP,Families\Prevention,1060,Revenue,Seven Ways (Support) Ltd
Brighton & Hove City Council,http://statistics.data.gov.uk/id/local-authority/00ML,Cultural and Related Serv,BVACUL,Culture and Heritage,CHG,Supplies and Services,E,Catering,EB,02/01/2015,PAY00727203,VENU,Venues,690.1,Revenue,Kudos Catering (UK) Ltd
Brighton & Hove City Council,http://statistics.data.gov.uk/id/local-authority/00ML,Cultural and Related Serv,BVACUL,Culture and Heritage,CHG,Supplies and Services,E,Equip't Furniture n Materials,EA,02/01/2015,PAY00727203,VENU,Venues,50,Revenue,Kudos Catering (UK) Ltd
Brighton & Hove City Council,http://statistics.data.gov.uk/id/local-authority/00ML,Housing General Fund,BVAHOG,Homelessness,HML,Premises Related,C,Rents Payable,CC,02/01/2015,PAY00727206,TAAS,Temp Accom and Allocations,950,Revenue,Avon Estates (London) Ltd
Brighton & Hove City Council,http://statistics.data.gov.uk/id/local-authority/00ML,Environment & Regulatory Serv,BVAERS,Court Services,CRT,Supplies and Services,E,Equip't Furniture n Materials,EA,02/01/2015,PAY00727207,LIFE,Life Events,2516.8,Revenue,Payment to Individual
Brighton & Hove City Council,http://statistics.data.gov.uk/id/local-authority/00ML,Central Support and Overheads,BVACEN,Support Services (SSC),PPT,Supplies and Services,E,Miscellaneous Expenses,EM,02/01/2015,PAY00727208,ICTA,ICT,3000,Revenue,AWCFA Limited
Brighton & Hove City Council,http://statistics.data.gov.uk/id/local-authority/00ML,Central Support and Overheads,BVACEN,Support Services (SSC),PPT,Premises Related,C,Cleaning n Domestic Supps,CH,02/01/2015,PAY00727210,PROP,Property and Design,187620.89,Revenue,Nviro
Brighton & Hove City Council,http://statistics.data.gov.uk/id/local-authority/00ML,Central Support and Overheads,BVACEN,Support Services (SSC),PPT,Supplies and Services,E,Services,EF,02/01/2015,PAY00727211,LEGS,Legal Services,1800,Revenue,Alere Toxicology PLC
Brighton & Hove City Council,http://statistics.data.gov.uk/id/local-authority/00ML,Children`s & Education Serv,BVAEDU,Management Services (DEC),MGT,Supplies and Services,E,Services,EF,02/01/2015,PAY00727211,SOCK,Social Work,598,Revenue,Alere Toxicology PLC
Brighton & Hove City Council,http://statistics.data.gov.uk/id/local-authority/00ML,Environment & Regulatory Serv,BVAERS,Agricultural and Fisheries,AGF,Third Party Payments,F,Independent Units of Council,FA,02/01/2015,PAY00727213,PROP,Property and Design,1630.54,Revenue,Smiths Gore
Brighton & Hove City Council,http://statistics.data.gov.uk/id/local-authority/00ML,Housing General Fund,BVAHOG,Homelessness,HML,Premises Related,C,Rents Payable,CC,02/01/2015,PAY00727214,ASSA,Hostel Accommodation,6993.4,Revenue,West Pier Services Limited
Brighton & Hove City Council,http://statistics.data.gov.uk/id/local-authority/00ML,Central Support and Overheads,BVACEN,Holding Accounts,PPH,Premises Related,C,Repair Maint n Alterations,CA,02/01/2015,PAY00727215,PROP,Property and Design,190,Revenue,Lee Sullivan Contract Flooring Limited
Brighton & Hove City Council,http://statistics.data.gov.uk/id/local-authority/00ML,Central Support and Overheads,BVACEN,Support Services (SSC),PPT,Premises Related,C,Repair Maint n Alterations,CA,02/01/2015,PAY00727215,PROP,Property and Design,775.5,Revenue,Lee Sullivan Contract Flooring Limited
Brighton & Hove City Council,http://statistics.data.gov.uk/id/local-authority/00ML,Children`s & Education Serv,BVAEDU,Ed Ed Other Other,ENF,Premises Related,C,Repair Maint n Alterations,CA,02/01/2015,PAY00727215,PROP,Property and Design,72,Revenue,Lee Sullivan Contract Flooring Limited
Brighton & Hove City Council,http://statistics.data.gov.uk/id/local-authority/00ML,Cultural and Related Serv,BVACUL,Open Spaces,PEN,Premises Related,C,Repair Maint n Alterations,CA,02/01/2015,PAY00727216,CIPK,City Parks,1759,Revenue,Blachere Illumination UK Ltd
Brighton & Hove City Council,http://statistics.data.gov.uk/id/local-authority/00ML,Central Support and Overheads,BVACEN,Trading Services,TRD,Premises Related,C,Rents Payable,CC,02/01/2015,PAY00727217,PROP,Property and Design,11929.75,Revenue,Cluttons LLP
Brighton & Hove City Council,http://statistics.data.gov.uk/id/local-authority/00ML,Planning and Development,BVAPLA,Economic Development,ECD,Premises Related,C,Rents Payable,CC,02/01/2015,PAY00727217,PROP,Property and Design,6199.36,Revenue,Cluttons LLP
Brighton & Hove City Council,http://statistics.data.gov.uk/id/local-authority/00ML,Housing General Fund,BVAHOG,Homelessness,HML,Premises Related,C,Rents Payable,CC,02/01/2015,PAY00727218,TAAS,Temp Accom and Allocations,2100,Revenue,Payment to Individual
Brighton & Hove City Council,http://statistics.data.gov.uk/id/local-authority/00ML,Highways and Transportation,BVAHRT,Parking Services,PRK,Supplies and Services,E,Equip't Furniture n Materials,EA,02/01/2015,PAY00727219,PARK,Parking,413.04,Revenue,Parkeon Ltd
Brighton & Hove City Council,http://statistics.data.gov.uk/id/local-authority/00ML,Environment & Regulatory Serv,BVAERS,Agricultural and Fisheries,AGF,Premises Related,C,Repair Maint n Alterations,CA,02/01/2015,PAY00727220,PROP,Property and Design,729,Revenue,Station Farm
Brighton & Hove City Council,http://statistics.data.gov.uk/id/local-authority/00ML,Children`s & Education Serv,BVAEDU,Child Srvcs - Fostering,FLF,Third Party Payments,F,Other Establishments,FH,02/01/2015,PAY00727221,CHIC,Children In Care,60.6,Revenue,Pixies Childcare Ltd
Brighton & Hove City Council,http://statistics.data.gov.uk/id/local-authority/00ML,Children`s & Education Serv,BVAEDU,Child Srvcs - Other Fam Supp,FFX,Transfer Payments,G,Other Transfer Payments,GD,02/01/2015,PAY00727221,FAMP,Families\Prevention,620,Revenue,Pixies Childcare Ltd
Brighton & Hove City Council,http://statistics.data.gov.uk/id/local-authority/00ML,Adult Social Care,BVASOC,ASC Learning Disabilities,ALD,Third Party Payments,F,Other Establishments,FH,02/01/2015,PAY00727222,LDIS,Learning Disabilities,705.47,Revenue,The Aldingbourne Trust
Brighton & Hove City Council,http://statistics.data.gov.uk/id/local-authority/00ML,Non I&E,BVANON,CAP Other Env Services,4EV,New Construction n Conversion,PB,New Construction n Conversion,PBL5,02/01/2015,PAY00727223,MJPR,Major Projects,280,Capital,E N V Surveys Ltd
Brighton & Hove City Council,http://statistics.data.gov.uk/id/local-authority/00ML,Non I&E,BVANON,CAP Sport and Recreation,4RC,Plant Machinery n Equipment,PE2,Plant Machinery n Equipment,PE2L5,02/01/2015,PAY00727225,MJPR,Major Projects,275,Capital,Virgin Media Ltd
Brighton & Hove City Council,http://statistics.data.gov.uk/id/local-authority/00ML,Environment & Regulatory Serv,BVAERS,Management Services (DEC),MGT,Transport Related,D,Direct Transport Costs,DA,02/01/2015,PAY00727226,CICL,City Clean,700,Revenue,Heil Farid European Company Ltd
Brighton & Hove City Council,http://statistics.data.gov.uk/id/local-authority/00ML,Adult Social Care,BVASOC,ASC Physical Support,PHY,Supplies and Services,E,Catering,EB,02/01/2015,PAY00727227,RCOP,Resource Centres Older People,370.69,Revenue,West Horsley Dairy Ltd
Brighton & Hove City Council,http://statistics.data.gov.uk/id/local-authority/00ML,Environment & Regulatory Serv,BVAERS,Cem Crem and Mortuary Services,CCM,Supplies and Services,E,Goods for Resale,EG,02/01/2015,PAY00727228,LIFE,Life Events,590,Revenue,High Weald Furniture Ltd
Brighton & Hove City Council,http://statistics.data.gov.uk/id/local-authority/00ML,Housing General Fund,BVAHOG,Homelessness,HML,Premises Related,C,Rents Payable,CC,02/01/2015,PAY00727229,TAAS,Temp Accom and Allocations,650,Revenue,Payment to Individual
Brighton & Hove City Council,http://statistics.data.gov.uk/id/local-authority/00ML,Non I&E,BVANON,CAP Social Services,4RV,New Construction n Conversion,PB,New Construction n Conversion,PBL5,02/01/2015,PAY00727230,ASIT,Assessment and SIT,1229.5,Capital,T Brown Group Ltd
Brighton & Hove City Council,http://statistics.data.gov.uk/id/local-authority/00ML,Housing General Fund,BVAHOG,Homelessness,HML,Premises Related,C,Rents Payable,CC,02/01/2015,PAY00727231,TAAS,Temp Accom and Allocations,600,Revenue,Home & Coastal Developments Limited
Brighton & Hove City Council,http://statistics.data.gov.uk/id/local-authority/00ML,Children`s & Education Serv,BVAEDU,Child Srvcs - Residential Svcs,FLR,Third Party Payments,F,Other Establishments,FH,02/01/2015,PAY00727232,AVFM,Agency Placements\VFM,26000,Revenue,Springfield Road Childrens Homes Ltd
Brighton & Hove City Council,http://statistics.data.gov.uk/id/local-authority/00ML,Children`s & Education Serv,BVAEDU,Child Srvcs - Residential Svcs,FLR,Third Party Payments,F,Other Establishments,FH,02/01/2015,PAY00727232,DISS,Disability Services,13000,Revenue,Springfield Road Childrens Homes Ltd
Brighton & Hove City Council,http://statistics.data.gov.uk/id/local-authority/00ML,Cultural and Related Serv,BVACUL,Open Spaces,PEN,Third Party Payments,F,Private Contractors,FJ,02/01/2015,PAY00727234,CIPK,City Parks,7281,Revenue,Playsafe Playgrounds Ltd
Brighton & Hove City Council,http://statistics.data.gov.uk/id/local-authority/00ML,Public Health,BVAPHE,Public Health,PHE,Supplies and Services,E,Miscellaneous Expenses,EM,02/01/2015,PAY00727236,PHCM,PH Commissioning,2750,Revenue,AgeUK Brighton & Hove
Brighton & Hove City Council,http://statistics.data.gov.uk/id/local-authority/00ML,Children`s & Education Serv,BVAEDU,Child Srvcs - Residential Svcs,FLR,Third Party Payments,F,Other Establishments,FH,02/01/2015,PAY00727238,AVFM,Agency Placements\VFM,79685.71,Revenue,ARC Adventure (Sussex) Ltd
Brighton & Hove City Council,http://statistics.data.gov.uk/id/local-authority/00ML,Cultural and Related Serv,BVACUL,Highways and Roads - Mntnce,HRM,Premises Related,C,Repair Maint n Alterations,CA,02/01/2015,PAY00727239,PROP,Property and Design,718.2,Revenue,J P Garrett Electrical Ltd
Brighton & Hove City Council,http://statistics.data.gov.uk/id/local-authority/00ML,Non I&E,BVANON,CAP Sport and Recreation,4RC,New Construction n Conversion,PB,New Construction n Conversion,PBL5,02/01/2015,PAY00727239,PROP,Property and Design,23000,Capital,J P Garrett Electrical Ltd
Brighton & Hove City Council,http://statistics.data.gov.uk/id/local-authority/00ML,Public Health,BVAPHE,Public Health,PHE,Third Party Payments,F,Voluntary Associations,FG,02/01/2015,PAY00727241,PHCM,PH Commissioning,18686,Revenue,The Sussex Beacon Ltd
Brighton & Hove City Council,http://statistics.data.gov.uk/id/local-authority/00ML,Planning and Development,BVAPLA,Development Control,DEV,Supplies and Services,E,Miscellaneous Expenses,EM,02/01/2015,PAY00727242,DEVP,Development Planning,1401.7,Revenue,Alexander Advertising(International)Ltd
Brighton & Hove City Council,http://statistics.data.gov.uk/id/local-authority/00ML,Central Support and Overheads,BVACEN,Support Services (SSC),PPT,Premises Related,C,Repair Maint n Alterations,CA,02/01/2015,PAY00727243,PROP,Property and Design,3374.13,Revenue,AM Fire & Security Group
Brighton & Hove City Council,http://statistics.data.gov.uk/id/local-authority/00ML,Housing Revenue Account,BVAHOU,Hsing Management - HRA,HGM,Supplies and Services,E,Services,EF,02/01/2015,PAY00727243,HPAI,Property & Investment,415.42,Revenue,AM Fire & Security Group
Brighton & Hove City Council,http://statistics.data.gov.uk/id/local-authority/00ML,Adult Social Care,BVASOC,ASC Physical Support,PHY,Supplies and Services,E,Catering,EB,02/01/2015,PAY00727244,RCOP,Resource Centres Older People,2012.58,Revenue,3663 BFS Group Ltd
Brighton & Hove City Council,http://statistics.data.gov.uk/id/local-authority/00ML,Housing General Fund,BVAHOG,Homelessness,HML,Supplies and Services,E,Catering,EB,02/01/2015,PAY00727244,ASSA,Hostel Accommodation,749.44,Revenue,3663 BFS Group Ltd
Brighton & Hove City Council,http://statistics.data.gov.uk/id/local-authority/00ML,Environment & Regulatory Serv,BVAERS,Court Services,CRT,Supplies and Services,E,Equip't Furniture n Materials,EA,02/01/2015,PAY00727246,LIFE,Life Events,6179.5,Revenue,Brighton & Sussex University Hospitals NHS Trust
Brighton & Hove City Council,http://statistics.data.gov.uk/id/local-authority/00ML,Children`s & Education Serv,BVAEDU,Child Srvcs Other,FAX,Indirect Employees,B,Training,BM,02/01/2015,PAY00727248,CHIP,Child Protection,543.5,Revenue,Brighthelm Trading Ltd
Brighton & Hove City Council,http://statistics.data.gov.uk/id/local-authority/00ML,Planning and Development,BVAPLA,Building Control,BLD,Supplies and Services,E,Services,EF,02/01/2015,PAY00727249,DEVP,Development Planning,551,Revenue,British Standards Institution
Brighton & Hove City Council,http://statistics.data.gov.uk/id/local-authority/00ML,Central Support and Overheads,BVACEN,Trading Services,TRD,Third Party Payments,F,Independent Units of Council,FA,02/01/2015,PAY00727251,PROP,Property and Design,12533.49,Revenue,Cluttons
Brighton & Hove City Council,http://statistics.data.gov.uk/id/local-authority/00ML,Central Support and Overheads,BVACEN,Support Services (SSC),PPT,Premises Related,C,Repair Maint n Alterations,CA,02/01/2015,PAY00727253,PROP,Property and Design,536,Revenue,Convenient Hire Ltd
Brighton & Hove City Council,http://statistics.data.gov.uk/id/local-authority/00ML,Cultural and Related Serv,BVACUL,Culture and Heritage,CHG,Premises Related,C,Repair Maint n Alterations,CA,02/01/2015,PAY00727254,RPMU,Royal Pavilion and Museums,1400,Revenue,Connick Tree Care Brighton Ltd
Brighton & Hove City Council,http://statistics.data.gov.uk/id/local-authority/00ML,Central Services to the Public,BVACEN,Local Tax Collection,LTC,Supplies and Services,E,Print Stat & Gen Office Exps,ED,02/01/2015,PAY00727255,REVS,Revenues and Benefits,358,Revenue,Computastat Limited
Brighton & Hove City Council,http://statistics.data.gov.uk/id/local-authority/00ML,Housing General Fund,BVAHOG,Homelessness,HML,Premises Related,C,Rents Payable,CC,02/01/2015,PAY00727256,TAAS,Temp Accom and Allocations,900,Revenue,Payment to Individual
Brighton & Hove City Council,http://statistics.data.gov.uk/id/local-authority/00ML,Children`s & Education Serv,BVAEDU,Management Services (DEC),MGT,Supplies and Services,E,Services,EF,02/01/2015,PAY00727258,SOCK,Social Work,4670,Revenue,Payment to Individual
Brighton & Hove City Council,http://statistics.data.gov.uk/id/local-authority/00ML,Cultural and Related Serv,BVACUL,Open Spaces,PEN,Premises Related,C,Repair Maint n Alterations,CA,02/01/2015,PAY00727259,CIPK,City Parks,1449,Revenue,Europlants Interiors  Ltd
Brighton & Hove City Council,http://statistics.data.gov.uk/id/local-authority/00ML,Non I&E,BVANON,CAP Other Env Services,4EV,New Construction n Conversion,PB,New Construction n Conversion,PBL5,02/01/2015,PAY00727260,PROP,Property and Design,32038.95,Capital,Fowler Building Contractors Ltd
Brighton & Hove City Council,http://statistics.data.gov.uk/id/local-authority/00ML,Central Support and Overheads,BVACEN,Support Services (SSC),PPT,Supplies and Services,E,Services,EF,02/01/2015,PAY00727261,PROP,Property and Design,3597,Revenue,F T Allen Limited
Brighton & Hove City Council,http://statistics.data.gov.uk/id/local-authority/00ML,Children`s & Education Serv,BVAEDU,Ed Ed Other Other,ENF,Third Party Payments,F,Other Local Authorities,FB,02/01/2015,PAY00727261,PROP,Property and Design,5134.69,Revenue,F T Allen Limited
Brighton & Hove City Council,http://statistics.data.gov.uk/id/local-authority/00ML,Central Support and Overheads,BVACEN,Support Services (SSC),PPT,Supplies and Services,E,Services,EF,02/01/2015,PAY00727263,PROP,Property and Design,10698.75,Revenue,Hemsley Orrell P/ship
Brighton & Hove City Council,http://statistics.data.gov.uk/id/local-authority/00ML,Non I&E,BVANON,CAP Other Env Services,4EV,Plant Machinery n Equipment,PE2,Plant Machinery n Equipment,PE2L5,02/01/2015,PAY00727264,CIPK,City Parks,2119.7,Capital,Hi Way Services Ltd
Brighton & Hove City Council,http://statistics.data.gov.uk/id/local-authority/00ML,Children`s & Education Serv,BVAEDU,Management Services (DEC),MGT,Supplies and Services,E,Services,EF,02/01/2015,PAY00727265,SOCK,Social Work,3000,Revenue,Payment to Individual
Brighton & Hove City Council,http://statistics.data.gov.uk/id/local-authority/00ML,Central Support and Overheads,BVACEN,Support Services (SSC),PPT,Supplies and Services,E,Print Stat & Gen Office Exps,ED,02/01/2015,PAY00727266,FINS,Financial Services,833.75,Revenue,CIPFA Business Ltd
Brighton & Hove City Council,http://statistics.data.gov.uk/id/local-authority/00ML,Central Support and Overheads,BVACEN,Support Services (SSC),PPT,Premises Related,C,Repair Maint n Alterations,CA,02/01/2015,PAY00727268,PROP,Property and Design,1118.43,Revenue,J Davies Building Ltd
Brighton & Hove City Council,http://statistics.data.gov.uk/id/local-authority/00ML,Children`s & Education Serv,BVAEDU,Ed Ed Other Other,ENF,Premises Related,C,Repair Maint n Alterations,CA,02/01/2015,PAY00727268,PROP,Property and Design,1350,Revenue,J Davies Building Ltd
Brighton & Hove City Council,http://statistics.data.gov.uk/id/local-authority/00ML,Cultural and Related Serv,BVACUL,Highways and Roads - Mntnce,HRM,Premises Related,C,Repair Maint n Alterations,CA,02/01/2015,PAY00727268,PROP,Property and Design,860,Revenue,J Davies Building Ltd
Brighton & Hove City Council,http://statistics.data.gov.uk/id/local-authority/00ML,Central Support and Overheads,BVACEN,Support Services (SSC),PPT,Premises Related,C,Repair Maint n Alterations,CA,02/01/2015,PAY00727269,PROP,Property and Design,1050.05,Revenue,J G & J R Langridge Ltd
Brighton & Hove City Council,http://statistics.data.gov.uk/id/local-authority/00ML,Children`s & Education Serv,BVAEDU,Child Srvcs - Fostering,FLF,Third Party Payments,F,Other Establishments,FH,02/01/2015,PAY00727270,CHIC,Children In Care,1734.77,Revenue,John Proctor Travel Ltd
Brighton & Hove City Council,http://statistics.data.gov.uk/id/local-authority/00ML,Adult Social Care,BVASOC,ASC Learning Disabilities,ALD,Supplies and Services,E,Catering,EB,02/01/2015,PAY00727271,DAYS,Day Services,36,Revenue,Kent County Council Commercial Services
Brighton & Hove City Council,http://statistics.data.gov.uk/id/local-authority/00ML,Central Support and Overheads,BVACEN,Holding Accounts,PPH,Transport Related,D,Direct Transport Costs,DA,02/01/2015,PAY00727271,CICL,City Clean,362.82,Revenue,Kent County Council Commercial Services
Brighton & Hove City Council,http://statistics.data.gov.uk/id/local-authority/00ML,Children`s & Education Serv,BVAEDU,Child Srvcs Other,FAX,Supplies and Services,E,Miscellaneous Expenses,EM,02/01/2015,PAY00727271,YOTS,Youth Service,3.56,Revenue,Kent County Council Commercial Services
Brighton & Hove City Council,http://statistics.data.gov.uk/id/local-authority/00ML,Children`s & Education Serv,BVAEDU,Ed Special Ed,EKE,Supplies and Services,E,Equip't Furniture n Materials,EA,02/01/2015,PAY00727271,SENS,Special Educational Needs,26.48,Revenue,Kent County Council Commercial Services
Brighton & Hove City Council,http://statistics.data.gov.uk/id/local-authority/00ML,Non I&E,BVANON,CAP Education Services,4ED,Plant Machinery n Equipment,PE2,Plant Machinery n Equipment,PE2L5,02/01/2015,PAY00727271,OEDS,Other Education Support,2520,Capital,Kent County Council Commercial Services
Brighton & Hove City Council,http://statistics.data.gov.uk/id/local-authority/00ML,Cultural and Related Serv,BVACUL,Culture and Heritage,CHG,Supplies and Services,E,Miscellaneous Expenses,EM,02/01/2015,PAY00727276,VENU,Venues,12397.22,Revenue,Performing Right Society Ltd
Brighton & Hove City Council,http://statistics.data.gov.uk/id/local-authority/00ML,Housing Revenue Account,BVAHOU,Hsing Management - HRA,HGM,Third Party Payments,F,Independent Units of Council,FA,02/01/2015,PAY00727277,HTEN,Tenancy Services,13611,Revenue,PHS Group Plc
Brighton & Hove City Council,http://statistics.data.gov.uk/id/local-authority/00ML,Children`s & Education Serv,BVAEDU,Ed Ed Other Other,ENF,Premises Related,C,Repair Maint n Alterations,CA,02/01/2015,PAY00727280,PROP,Property and Design,1915,Revenue,P & R Building Contractors Ltd
Brighton & Hove City Council,http://statistics.data.gov.uk/id/local-authority/00ML,Adult Social Care,BVASOC,ASC Physical Support,PHY,Supplies and Services,E,Equip't Furniture n Materials,EA,02/01/2015,PAY00727283,RCOP,Resource Centres Older People,198,Revenue,Southern Mobility Centres Ltd
Brighton & Hove City Council,http://statistics.data.gov.uk/id/local-authority/00ML,Housing Revenue Account,BVAHOU,Hsing Management - HRA,HGM,Supplies and Services,E,Equip't Furniture n Materials,EA,02/01/2015,PAY00727283,HTEN,Tenancy Services,300,Revenue,Southern Mobility Centres Ltd
Brighton & Hove City Council,http://statistics.data.gov.uk/id/local-authority/00ML,Children`s & Education Serv,BVAEDU,Ed Mgmt and Support Services,EMG,Supplies and Services,E,Print Stat & Gen Office Exps,ED,02/01/2015,PAY00727285,OEDS,Other Education Support,1196.81,Revenue,Sussex Community NHS Trust
Brighton & Hove City Council,http://statistics.data.gov.uk/id/local-authority/00ML,Central Support and Overheads,BVACEN,Support Services (SSC),PPT,Supplies and Services,E,Equip't Furniture n Materials,EA,02/01/2015,PAY00727287,POLY,Policy,1135,Revenue,Technical Engineering Ltd
Brighton & Hove City Council,http://statistics.data.gov.uk/id/local-authority/00ML,Cultural and Related Serv,BVACUL,Recreation and Sport,REC,Premises Related,C,Repair Maint n Alterations,CA,02/01/2015,PAY00727287,SEAS,Seafront Services,640,Revenue,Technical Engineering Ltd
Brighton & Hove City Council,http://statistics.data.gov.uk/id/local-authority/00ML,Non I&E,BVANON,CAP Social Services,4RV,Plant Machinery n Equipment,PE2,Plant Machinery n Equipment,PE2L5,02/01/2015,PAY00727288,ASIT,Assessment and SIT,7605.5,Capital,Tunstall Healthcare (UK) Ltd
Brighton & Hove City Council,http://statistics.data.gov.uk/id/local-authority/00ML,Adult Social Care,BVASOC,ASC Learning Disabilities,ALD,Supplies and Services,E,Catering,EB,02/01/2015,PAY00727289,DAYS,Day Services,35.04,Revenue,Dairy Crest Ltd
Brighton & Hove City Council,http://statistics.data.gov.uk/id/local-authority/00ML,Adult Social Care,BVASOC,ASC Learning Disabilities,ALD,Supplies and Services,E,Catering,EB,02/01/2015,PAY00727289,RESP,Respite Services,121.12,Revenue,Dairy Crest Ltd
Brighton & Hove City Council,http://statistics.data.gov.uk/id/local-authority/00ML,Adult Social Care,BVASOC,ASC Physical Support,PHY,Supplies and Services,E,Catering,EB,02/01/2015,PAY00727289,DAYS,Day Services,31.56,Revenue,Dairy Crest Ltd
Brighton & Hove City Council,http://statistics.data.gov.uk/id/local-authority/00ML,Adult Social Care,BVASOC,ASC Physical Support,PHY,Supplies and Services,E,Catering,EB,02/01/2015,PAY00727289,RCOP,Resource Centres Older People,127.47,Revenue,Dairy Crest Ltd
Brighton & Hove City Council,http://statistics.data.gov.uk/id/local-authority/00ML,Children`s & Education Serv,BVAEDU,Child Srvcs - Residential Svcs,FLR,Supplies and Services,E,Catering,EB,02/01/2015,PAY00727289,DISS,Disability Services,10.64,Revenue,Dairy Crest Ltd
Brighton & Hove City Council,http://statistics.data.gov.uk/id/local-authority/00ML,Children`s & Education Serv,BVAEDU,Ed EY Central,EAE,Supplies and Services,E,Catering,EB,02/01/2015,PAY00727289,EYRS,Early Years,33.16,Revenue,Dairy Crest Ltd
Brighton & Hove City Council,http://statistics.data.gov.uk/id/local-authority/00ML,Children`s & Education Serv,BVAEDU,Ed Special Ed,EKE,Supplies and Services,E,Catering,EB,02/01/2015,PAY00727289,SENS,Special Educational Needs,6.39,Revenue,Dairy Crest Ltd
Brighton & Hove City Council,http://statistics.data.gov.uk/id/local-authority/00ML,Adult Social Care,BVASOC,ASC Physical Support,PHY,Premises Related,C,Cleaning n Domestic Supps,CH,02/01/2015,PAY00727290,RCOP,Resource Centres Older People,65.44,Revenue,Wightman & Parrish Ltd
Brighton & Hove City Council,http://statistics.data.gov.uk/id/local-authority/00ML,Central Support and Overheads,BVACEN,Support Services (SSC),PPT,Premises Related,C,Cleaning n Domestic Supps,CH,02/01/2015,PAY00727290,PROP,Property and Design,8367.72,Revenue,Wightman & Parrish Ltd
Brighton & Hove City Council,http://statistics.data.gov.uk/id/local-authority/00ML,Children`s & Education Serv,BVAEDU,Ed EY Central,EAE,Premises Related,C,Cleaning n Domestic Supps,CH,02/01/2015,PAY00727290,EYRS,Early Years,62.38,Revenue,Wightman & Parrish Ltd
Brighton & Hove City Council,http://statistics.data.gov.uk/id/local-authority/00ML,Housing General Fund,BVAHOG,Homelessness,HML,Premises Related,C,Cleaning n Domestic Supps,CH,02/01/2015,PAY00727290,ASSA,Hostel Accommodation,345.76,Revenue,Wightman & Parrish Ltd
Brighton & Hove City Council,http://statistics.data.gov.uk/id/local-authority/00ML,Housing General Fund,BVAHOG,Homelessness,HML,Supplies and Services,E,Equip't Furniture n Materials,EA,02/01/2015,PAY00727290,ASSA,Hostel Accommodation,58.4,Revenue,Wightman & Parrish Ltd
Brighton & Hove City Council,http://statistics.data.gov.uk/id/local-authority/00ML,Adult Social Care,BVASOC,ASC Memory Cognition Support,MEM,Third Party Payments,F,Other Establishments,FH,02/01/2015,PAY00727291,COGN,Memory Cognition Support,1649.14,Revenue,Grosvenor Lodge
Brighton & Hove City Council,http://statistics.data.gov.uk/id/local-authority/00ML,Adult Social Care,BVASOC,ASC Learning Disabilities,ALD,Customer n Client Receipts,M,Fees n Charges,MB,02/01/2015,PAY00727292,LDIS,Learning Disabilities,-351,Revenue,Carewatch (Brighton & Hove)
Brighton & Hove City Council,http://statistics.data.gov.uk/id/local-authority/00ML,Adult Social Care,BVASOC,ASC Learning Disabilities,ALD,Third Party Payments,F,Other Establishments,FH,02/01/2015,PAY00727292,LDIS,Learning Disabilities,2830.7,Revenue,Carewatch (Brighton & Hove)
Brighton & Hove City Council,http://statistics.data.gov.uk/id/local-authority/00ML,Adult Social Care,BVASOC,ASC Memory Cognition Support,MEM,Customer n Client Receipts,M,Fees n Charges,MB,02/01/2015,PAY00727292,COGN,Memory Cognition Support,-5362.86,Revenue,Carewatch (Brighton & Hove)
Brighton & Hove City Council,http://statistics.data.gov.uk/id/local-authority/00ML,Adult Social Care,BVASOC,ASC Memory Cognition Support,MEM,Third Party Payments,F,Other Establishments,FH,02/01/2015,PAY00727292,COGN,Memory Cognition Support,24430,Revenue,Carewatch (Brighton & Hove)
Brighton & Hove City Council,http://statistics.data.gov.uk/id/local-authority/00ML,Adult Social Care,BVASOC,ASC Mental Health Support,MHP,Customer n Client Receipts,M,Fees n Charges,MB,02/01/2015,PAY00727292,MENH,Mental Health Support,-731,Revenue,Carewatch (Brighton & Hove)
Brighton & Hove City Council,http://statistics.data.gov.uk/id/local-authority/00ML,Adult Social Care,BVASOC,ASC Mental Health Support,MHP,Third Party Payments,F,Other Establishments,FH,02/01/2015,PAY00727292,MENH,Mental Health Support,5994.8,Revenue,Carewatch (Brighton & Hove)
Brighton & Hove City Council,http://statistics.data.gov.uk/id/local-authority/00ML,Adult Social Care,BVASOC,ASC Physical Support,PHY,Customer n Client Receipts,M,Fees n Charges,MB,02/01/2015,PAY00727292,PHYS,Physical Support,-32712,Revenue,Carewatch (Brighton & Hove)
Brighton & Hove City Council,http://statistics.data.gov.uk/id/local-authority/00ML,Adult Social Care,BVASOC,ASC Physical Support,PHY,Third Party Payments,F,Other Establishments,FH,02/01/2015,PAY00727292,PHYS,Physical Support,227932.56,Revenue,Carewatch (Brighton & Hove)
Brighton & Hove City Council,http://statistics.data.gov.uk/id/local-authority/00ML,Children`s & Education Serv,BVAEDU,Child Srvcs - Fostering,FLF,Third Party Payments,F,Other Establishments,FH,02/01/2015,PAY00727293,AVFM,Agency Placements\VFM,28592.37,Revenue,Integrated Services Programme
Brighton & Hove City Council,http://statistics.data.gov.uk/id/local-authority/00ML,Adult Social Care,BVASOC,ASC Learning Disabilities,ALD,Premises Related,C,Cleaning n Domestic Supps,CH,02/01/2015,PAY00727294,RESP,Respite Services,422.96,Revenue,Nursing & Hygiene Group
Brighton & Hove City Council,http://statistics.data.gov.uk/id/local-authority/00ML,Adult Social Care,BVASOC,ASC Physical Support,PHY,Premises Related,C,Cleaning n Domestic Supps,CH,02/01/2015,PAY00727294,RCOP,Resource Centres Older People,82.17,Revenue,Nursing & Hygiene Group
Brighton & Hove City Council,http://statistics.data.gov.uk/id/local-authority/00ML,Adult Social Care,BVASOC,ASC Physical Support,PHY,Supplies and Services,E,Equip't Furniture n Materials,EA,02/01/2015,PAY00727294,RCOP,Resource Centres Older People,892.15,Revenue,Nursing & Hygiene Group
Brighton & Hove City Council,http://statistics.data.gov.uk/id/local-authority/00ML,Children`s & Education Serv,BVAEDU,Child Srvcs - Other Fam Supp,FFX,Transfer Payments,G,Other Transfer Payments,GD,02/01/2015,PAY00727295,FAMP,Families\Prevention,361.9,Revenue,Oak Cottage Nursery
Brighton & Hove City Council,http://statistics.data.gov.uk/id/local-authority/00ML,Adult Social Care,BVASOC,ASC Physical Support,PHY,Third Party Payments,F,Other Establishments,FH,02/01/2015,PAY00727296,PHYS,Physical Support,2873.57,Revenue,Swanborough House
Brighton & Hove City Council,http://statistics.data.gov.uk/id/local-authority/00ML,Adult Social Care,BVASOC,ASC Physical Support,PHY,Customer n Client Receipts,M,Fees n Charges,MB,02/01/2015,PAY00727297,PHYS,Physical Support,0,Revenue,Victoria Nursing Homes Ltd
Brighton & Hove City Council,http://statistics.data.gov.uk/id/local-authority/00ML,Adult Social Care,BVASOC,ASC Physical Support,PHY,Third Party Payments,F,Other Establishments,FH,02/01/2015,PAY00727297,PHYS,Physical Support,743.4,Revenue,Victoria Nursing Homes Ltd
Brighton & Hove City Council,http://statistics.data.gov.uk/id/local-authority/00ML,Adult Social Care,BVASOC,Support to Carer,CAR,Third Party Payments,F,Other Establishments,FH,02/01/2015,PAY00727298,CONT,Contracts,29659.42,Revenue,"East Sussex, Brighton & Hove Crossroads Ltd"
Brighton & Hove City Council,http://statistics.data.gov.uk/id/local-authority/00ML,Children`s & Education Serv,BVAEDU,Ed Special Ed,EKE,Supplies and Services,E,Grants n Subscriptions,EK,02/01/2015,PAY00727299,SEN,SEN,38395.07,Revenue,National Star Foundation
Brighton & Hove City Council,http://statistics.data.gov.uk/id/local-authority/00ML,Adult Social Care,BVASOC,ASC Memory Cognition Support,MEM,Customer n Client Receipts,M,Fees n Charges,MB,02/01/2015,PAY00727300,COGN,Memory Cognition Support,-662.68,Revenue,BUPA Care Services
Brighton & Hove City Council,http://statistics.data.gov.uk/id/local-authority/00ML,Adult Social Care,BVASOC,ASC Memory Cognition Support,MEM,Third Party Payments,F,Other Establishments,FH,02/01/2015,PAY00727300,COGN,Memory Cognition Support,2457.56,Revenue,BUPA Care Services
Brighton & Hove City Council,http://statistics.data.gov.uk/id/local-authority/00ML,Children`s & Education Serv,BVAEDU,Child Srvcs - Residential Svcs,FLR,Third Party Payments,F,Other Establishments,FH,02/01/2015,PAY00727301,DISS,Disability Services,15384,Revenue,Cambian Autism Services Ltd
Brighton & Hove City Council,http://statistics.data.gov.uk/id/local-authority/00ML,Adult Social Care,BVASOC,Info & Early Intervention,PRV,Third Party Payments,F,Other Establishments,FH,02/01/2015,PAY00727302,CONT,Contracts,2327,Revenue,Hallifax Care Ltd
Brighton & Hove City Council,http://statistics.data.gov.uk/id/local-authority/00ML,Central Support and Overheads,BVACEN,Support Services (SSC),PPT,Transport Related,D,Transport Insurance,DF,02/01/2015,PAY00727304,BIPR,Bulk Insurance Premia,17816.6,Revenue,Zurich Municipal
Brighton & Hove City Council,http://statistics.data.gov.uk/id/local-authority/00ML,Non I&E,BVANON,CAP Education Services,4ED,New Construction n Conversion,PB,New Construction n Conversion,PBL5,02/01/2015,PAY00727305,OEDS,Other Education Support,41212.4,Capital,RB Construction Group Ltd
Brighton & Hove City Council,http://statistics.data.gov.uk/id/local-authority/00ML,Housing Revenue Account,BVAHOU,Hsing Management - HRA,HGM,Supplies and Services,E,Equip't Furniture n Materials,EA,02/01/2015,PAY00727306,HTEN,Tenancy Services,1159.28,Revenue,Appello
Brighton & Hove City Council,http://statistics.data.gov.uk/id/local-authority/00ML,Non I&E,BVANON,CAP Transport,4TR,New Construction n Conversion,PB,New Construction n Conversion,PBL5,02/01/2015,PAY00727307,HWEN,Highways Engineering,7563.42,Capital,Siemens PLC
Brighton & Hove City Council,http://statistics.data.gov.uk/id/local-authority/00ML,Adult Social Care,BVASOC,ASC Learning Disabilities,ALD,Transport Related,D,Direct Transport Costs,DA,02/01/2015,PAY00727308,DAYS,Day Services,122.78,Revenue,Colas Limited
Brighton & Hove City Council,http://statistics.data.gov.uk/id/local-authority/00ML,Adult Social Care,BVASOC,ASC Learning Disabilities,ALD,Transport Related,D,Direct Transport Costs,DA,02/01/2015,PAY00727308,LDAS,LD Accommodation Services,2248.13,Revenue,Colas Limited
Brighton & Hove City Council,http://statistics.data.gov.uk/id/local-authority/00ML,Adult Social Care,BVASOC,ASC Physical Support,PHY,Transport Related,D,Direct Transport Costs,DA,02/01/2015,PAY00727308,DAYS,Day Services,1660.15,Revenue,Colas Limited
Brighton & Hove City Council,http://statistics.data.gov.uk/id/local-authority/00ML,Children`s & Education Serv,BVAEDU,Child Srvcs Com and Scl Work,FCW,Transport Related,D,Direct Transport Costs,DA,02/01/2015,PAY00727308,SOCK,Social Work,89.31,Revenue,Colas Limited
Brighton & Hove City Council,http://statistics.data.gov.uk/id/local-authority/00ML,Children`s & Education Serv,BVAEDU,Support Services (SSC),PPT,Transport Related,D,Direct Transport Costs,DA,02/01/2015,PAY00727308,OEDS,Other Education Support,89.73,Revenue,Colas Limited
Brighton & Hove City Council,http://statistics.data.gov.uk/id/local-authority/00ML,Environment & Regulatory Serv,BVAERS,Waste Management,WMT,Transport Related,D,Direct Transport Costs,DA,02/01/2015,PAY00727308,CICL,City Clean,612.5,Revenue,Colas Limited
Brighton & Hove City Council,http://statistics.data.gov.uk/id/local-authority/00ML,Highways and Transportation,BVAHRT,Highways and Roads - Mntnce,HRM,Premises Related,C,Repair Maint n Alterations,CA,02/01/2015,PAY00727309,HIGH,Highways,2573.93,Revenue,Edburton Contractors Ltd
Brighton & Hove City Council,http://statistics.data.gov.uk/id/local-authority/00ML,Highways and Transportation,BVAHRT,Highways and Roads - Mntnce,HRM,Supplies and Services,E,Highways,EN,02/01/2015,PAY00727309,HIGH,Highways,2370.8,Revenue,Edburton Contractors Ltd
Brighton & Hove City Council,http://statistics.data.gov.uk/id/local-authority/00ML,Highways and Transportation,BVAHRT,Highways and Roads - Mntnce,HRM,Premises Related,C,Repair Maint n Alterations,CA,02/01/2015,PAY00727312,HIGH,Highways,74002.67,Revenue,R J Dance (Contractors) Ltd
Brighton & Hove City Council,http://statistics.data.gov.uk/id/local-authority/00ML,Planning and Development,BVAPLA,Building Control,BLD,Supplies and Services,E,Services,EF,02/01/2015,PAY00727312,DEVP,Development Planning,200,Revenue,R J Dance (Contractors) Ltd
Brighton & Hove City Council,http://statistics.data.gov.uk/id/local-authority/00ML,Central Support and Overheads,BVACEN,Support Services (SSC),PPT,Premises Related,C,Repair Maint n Alterations,CA,02/01/2015,PAY00727313,PROP,Property and Design,985.45,Revenue,Westridge Construction Ltd
Brighton & Hove City Council,http://statistics.data.gov.uk/id/local-authority/00ML,Central Support and Overheads,BVACEN,Support Services (SSC),PPT,Supplies and Services,E,Services,EF,02/01/2015,PAY00727313,PROP,Property and Design,8694.39,Revenue,Westridge Construction Ltd
Brighton & Hove City Council,http://statistics.data.gov.uk/id/local-authority/00ML,Central Support and Overheads,BVACEN,Support Services (SSC),PPT,Supplies and Services,E,Communications n Computing,EH,02/01/2015,PAY00727315,PERR,Performance & Improvement,680.28,Revenue,Specialist Computer Centres Plc
Brighton & Hove City Council,http://statistics.data.gov.uk/id/local-authority/00ML,Children`s & Education Serv,BVAEDU,Ed Mgmt and Support Services,EMG,Supplies and Services,E,Communications n Computing,EH,02/01/2015,PAY00727315,SEN,SEN,3269.04,Revenue,Specialist Computer Centres Plc
Brighton & Hove City Council,http://statistics.data.gov.uk/id/local-authority/00ML,Highways and Transportation,BVAHRT,Highways and Roads - Mntnce,HRM,Supplies and Services,E,Communications n Computing,EH,02/01/2015,PAY00727316,HIGH,Highways,1340.44,Revenue,British Telecommunications Plc
Brighton & Hove City Council,http://statistics.data.gov.uk/id/local-authority/00ML,Housing Revenue Account,BVAHOU,Hsing Management - HRA,HGM,Supplies and Services,E,Communications n Computing,EH,02/01/2015,PAY00727316,HTEN,Tenancy Services,80,Revenue,British Telecommunications Plc
Brighton & Hove City Council,http://statistics.data.gov.uk/id/local-authority/00ML,Central Support and Overheads,BVACEN,Support Services (SSC),PPT,Transport Related,D,Public Transport,DD,02/01/2015,PAY00727317,DEMO,Democratic Services,468,Revenue,Brighton & Hove Bus and Coach Co Ltd
Brighton & Hove City Council,http://statistics.data.gov.uk/id/local-authority/00ML,Children`s & Education Serv,BVAEDU,Child Srvcs - Other Fam Supp,FFX,Transfer Payments,G,Other Transfer Payments,GD,02/01/2015,PAY00727317,FAMP,Families\Prevention,1701,Revenue,Brighton & Hove Bus and Coach Co Ltd
Brighton & Hove City Council,http://statistics.data.gov.uk/id/local-authority/00ML,Environment & Regulatory Serv,BVAERS,Environmental Health,EVH,Transport Related,D,Contract Hire n Operating Leas,DB,02/01/2015,PAY00727317,PUPO,Public Protection,749.22,Revenue,Brighton & Hove Bus and Coach Co Ltd
Brighton & Hove City Council,http://statistics.data.gov.uk/id/local-authority/00ML,Highways and Transportation,BVAHRT,Public Transport,PTR,Third Party Payments,F,Private Contractors,FJ,02/01/2015,PAY00727317,TPRS,Transport Plan and Road Safety,45502.78,Revenue,Brighton & Hove Bus and Coach Co Ltd
Brighton & Hove City Council,http://statistics.data.gov.uk/id/local-authority/00ML,Highways and Transportation,BVAHRT,Transport Plan Policy Strategy,TPP,Third Party Payments,F,Private Contractors,FJ,02/01/2015,PAY00727317,TPRS,Transport Plan and Road Safety,6318.13,Revenue,Brighton & Hove Bus and Coach Co Ltd
Brighton & Hove City Council,http://statistics.data.gov.uk/id/local-authority/00ML,Planning and Development,BVAPLA,Community Development,CDV,Supplies and Services,E,Miscellaneous Expenses,EM,02/01/2015,PAY00727317,CMNY,Communities and Equalities,150,Revenue,Brighton & Hove Bus and Coach Co Ltd
Brighton & Hove City Council,http://statistics.data.gov.uk/id/local-authority/00ML,Children`s & Education Serv,BVAEDU,Ed Special Ed,EKE,Indirect Employees,B,Training,BM,02/01/2015,PAY00727319,SEN,SEN,3190,Revenue,University of Brighton
Brighton & Hove City Council,http://statistics.data.gov.uk/id/local-authority/00ML,Housing General Fund,BVAHOG,Homelessness,HML,Premises Related,C,Rents Payable,CC,02/01/2015,PAY00727320,TAAS,Temp Accom and Allocations,850,Revenue,Payment to Individual
Brighton & Hove City Council,http://statistics.data.gov.uk/id/local-authority/00ML,Children`s & Education Serv,BVAEDU,Child Srvcs - Fostering,FLF,Direct Employees,A,Salaries,AA,02/01/2015,PAY00727321,CHIC,Children In Care,495.34,Revenue,Time Out Fostering Ltd
Brighton & Hove City Council,http://statistics.data.gov.uk/id/local-authority/00ML,Children`s & Education Serv,BVAEDU,Child Srvcs - Fostering,FLF,Third Party Payments,F,Other Establishments,FH,02/01/2015,PAY00727321,AVFM,Agency Placements\VFM,33951.03,Revenue,Time Out Fostering Ltd
Brighton & Hove City Council,http://statistics.data.gov.uk/id/local-authority/00ML,Children`s & Education Serv,BVAEDU,Child Srvcs - Other Fam Supp,FFX,Direct Employees,A,Salaries,AA,02/01/2015,PAY00727321,FAMP,Families\Prevention,42.28,Revenue,Time Out Fostering Ltd
Brighton & Hove City Council,http://statistics.data.gov.uk/id/local-authority/00ML,Central Support and Overheads,BVACEN,Support Services (SSC),PPT,Premises Related,C,Repair Maint n Alterations,CA,02/01/2015,PAY00727322,PROP,Property and Design,3326,Revenue,A.W. Matthews Ornamental Fabrication
Brighton & Hove City Council,http://statistics.data.gov.uk/id/local-authority/00ML,Housing General Fund,BVAHOG,Homelessness,HML,Premises Related,C,Rents Payable,CC,02/01/2015,PAY00727323,TAAS,Temp Accom and Allocations,2400,Revenue,First Charterhouse Enterprises Ltd
Brighton & Hove City Council,http://statistics.data.gov.uk/id/local-authority/00ML,Central Support and Overheads,BVACEN,Support Services (SSC),PPT,Supplies and Services,E,Services,EF,02/01/2015,PAY00727324,LEGS,Legal Services,370.83,Revenue,Jurys Inn
Brighton & Hove City Council,http://statistics.data.gov.uk/id/local-authority/00ML,Housing General Fund,BVAHOG,Homelessness,HML,Premises Related,C,Rents Payable,CC,02/01/2015,PAY00727325,TAAS,Temp Accom and Allocations,950,Revenue,Payment to Individual
Brighton & Hove City Council,http://statistics.data.gov.uk/id/local-authority/00ML,Housing General Fund,BVAHOG,Homelessness,HML,Premises Related,C,Rents Payable,CC,02/01/2015,PAY00727326,TAAS,Temp Accom and Allocations,805,Revenue,Payment to Individual
Brighton & Hove City Council,http://statistics.data.gov.uk/id/local-authority/00ML,Children`s & Education Serv,BVAEDU,Management Services (DEC),MGT,Supplies and Services,E,Services,EF,02/01/2015,PAY00727329,SOCK,Social Work,800,Revenue,Payment to Individual
Brighton & Hove City Council,http://statistics.data.gov.uk/id/local-authority/00ML,Children`s & Education Serv,BVAEDU,Child Srvcs - Fostering,FLF,Third Party Payments,F,Other Establishments,FH,02/01/2015,PAY00727330,AVFM,Agency Placements\VFM,17280.64,Revenue,Achieving Together 
Brighton & Hove City Council,http://statistics.data.gov.uk/id/local-authority/00ML,Children`s & Education Serv,BVAEDU,Child Srvcs - Residential Svcs,FLR,Third Party Payments,F,Other Establishments,FH,02/01/2015,PAY00727330,AVFM,Agency Placements\VFM,8250,Revenue,Achieving Together 
Brighton & Hove City Council,http://statistics.data.gov.uk/id/local-authority/00ML,Children`s & Education Serv,BVAEDU,Child Srvcs - Other Fam Supp,FFX,Transfer Payments,G,Other Transfer Payments,GD,02/01/2015,PAY00727332,FAMP,Families\Prevention,920,Revenue,Payment to Individual
Brighton & Hove City Council,http://statistics.data.gov.uk/id/local-authority/00ML,Housing General Fund,BVAHOG,Homelessness,HML,Premises Related,C,Rents Payable,CC,02/01/2015,PAY00727333,TAAS,Temp Accom and Allocations,885,Revenue,Sareen Properties & Co
Brighton & Hove City Council,http://statistics.data.gov.uk/id/local-authority/00ML,Housing General Fund,BVAHOG,Homelessness,HML,Premises Related,C,Rents Payable,CC,02/01/2015,PAY00727334,TAAS,Temp Accom and Allocations,1730,Revenue,Payment to Individual
Brighton & Hove City Council,http://statistics.data.gov.uk/id/local-authority/00ML,Children`s & Education Serv,BVAEDU,Child Srvcs - Fostering,FLF,Third Party Payments,F,Other Establishments,FH,02/01/2015,PAY00727335,AVFM,Agency Placements\VFM,3036.36,Revenue,Sussex Fostering & Children`s Services
Brighton & Hove City Council,http://statistics.data.gov.uk/id/local-authority/00ML,Children`s & Education Serv,BVAEDU,Ed Ed Other LA Attrib Sch,ELA,Transport Related,D,Public Transport,DD,02/01/2015,PAY00727336,OEDS,Other Education Support,1040,Revenue,Payment to Individual
Brighton & Hove City Council,http://statistics.data.gov.uk/id/local-authority/00ML,Adult Social Care,BVASOC,ASC Learning Disabilities,ALD,Supplies and Services,E,Equip't Furniture n Materials,EA,02/01/2015,PAY00727337,SUPE,Supported Employment,225.3,Revenue,Ralawise Ltd
Brighton & Hove City Council,http://statistics.data.gov.uk/id/local-authority/00ML,Public Health,BVAPHE,Public Health,PHE,Third Party Payments,F,Voluntary Associations,FG,02/01/2015,PAY00727339,PHCM,PH Commissioning,6000,Revenue,Friends Families & Travellers
Brighton & Hove City Council,http://statistics.data.gov.uk/id/local-authority/00ML,Housing General Fund,BVAHOG,Homelessness,HML,Premises Related,C,Rents Payable,CC,02/01/2015,PAY00727341,TAAS,Temp Accom and Allocations,880,Revenue,Payment to Individual
Brighton & Hove City Council,http://statistics.data.gov.uk/id/local-authority/00ML,Housing General Fund,BVAHOG,Homelessness,HML,Premises Related,C,Rents Payable,CC,02/01/2015,PAY00727342,TAAS,Temp Accom and Allocations,600,Revenue,NewCoast Ltd
Brighton & Hove City Council,http://statistics.data.gov.uk/id/local-authority/00ML,Children`s & Education Serv,BVAEDU,Child Srvcs - Other Fam Supp,FFX,Third Party Payments,F,Other Establishments,FH,02/01/2015,PAY00727343,SFSC,Stronger Families Stronger Com,1171.05,Revenue,Payment to Individual
Brighton & Hove City Council,http://statistics.data.gov.uk/id/local-authority/00ML,Adult Social Care,BVASOC,ASC Learning Disabilities,ALD,Third Party Payments,F,Other Establishments,FH,02/01/2015,PAY00727344,LDIS,Learning Disabilities,1750,Revenue,Palm Court Guest House 
Brighton & Hove City Council,http://statistics.data.gov.uk/id/local-authority/00ML,Housing General Fund,BVAHOG,Homelessness,HML,Premises Related,C,Rents Payable,CC,02/01/2015,PAY00727345,TAAS,Temp Accom and Allocations,650,Revenue,Payment to Individual
Brighton & Hove City Council,http://statistics.data.gov.uk/id/local-authority/00ML,Housing General Fund,BVAHOG,Homelessness,HML,Premises Related,C,Rents Payable,CC,02/01/2015,PAY00727346,TAAS,Temp Accom and Allocations,850,Revenue,Payment to Individual
Brighton & Hove City Council,http://statistics.data.gov.uk/id/local-authority/00ML,Central Support and Overheads,BVACEN,Support Services (SSC),PPT,Supplies and Services,E,Services,EF,02/01/2015,PAY00727347,LEGS,Legal Services,650,Revenue,Payment to Individual
Brighton & Hove City Council,http://statistics.data.gov.uk/id/local-authority/00ML,Housing General Fund,BVAHOG,Homelessness,HML,Premises Related,C,Rents Payable,CC,02/01/2015,PAY00727348,TAAS,Temp Accom and Allocations,1100,Revenue,Eagle Estates Ltd
Brighton & Hove City Council,http://statistics.data.gov.uk/id/local-authority/00ML,Children`s & Education Serv,BVAEDU,Child Srvcs Com and Scl Work,FCW,Transport Related,D,Direct Transport Costs,DA,02/01/2015,PAY00727350,SOCK,Social Work,252.62,Revenue,Rivervale Cars Ltd
Brighton & Hove City Council,http://statistics.data.gov.uk/id/local-authority/00ML,Adult Social Care,BVASOC,Info & Early Intervention,PRV,Supplies and Services,E,Services,EF,02/01/2015,PAY00727351,CONT,Contracts,1925.7,Revenue,Payment to Individual
Brighton & Hove City Council,http://statistics.data.gov.uk/id/local-authority/00ML,Housing General Fund,BVAHOG,Homelessness,HML,Premises Related,C,Rents Payable,CC,02/01/2015,PAY00727352,TAAS,Temp Accom and Allocations,850,Revenue,Geneva Investment Group Ltd
Brighton & Hove City Council,http://statistics.data.gov.uk/id/local-authority/00ML,Housing General Fund,BVAHOG,Homelessness,HML,Supplies and Services,E,Services,EF,02/01/2015,PAY00727353,TAAS,Temp Accom and Allocations,2847,Revenue,The Wolsey Hotel (Worthing) Ltd
Brighton & Hove City Council,http://statistics.data.gov.uk/id/local-authority/00ML,Housing General Fund,BVAHOG,Homelessness,HML,Premises Related,C,Rents Payable,CC,02/01/2015,PAY00727355,TAAS,Temp Accom and Allocations,875,Revenue,Payment to Individual
Brighton & Hove City Council,http://statistics.data.gov.uk/id/local-authority/00ML,Environment & Regulatory Serv,BVAERS,Management Services (DEC),MGT,Third Party Payments,F,Private Contractors,FJ,02/01/2015,PAY00727356,CICL,City Clean,12474,Revenue,F M Conway Ltd
Brighton & Hove City Council,http://statistics.data.gov.uk/id/local-authority/00ML,Children`s & Education Serv,BVAEDU,Child Srvcs - Yth Offender Tm,FYY,Indirect Employees,B,Training,BM,02/01/2015,PAY00727357,FAMP,Families\Prevention,260,Revenue,The AIM Project
Brighton & Hove City Council,http://statistics.data.gov.uk/id/local-authority/00ML,Children`s & Education Serv,BVAEDU,Ed Mgmt and Support Services,EMG,Supplies and Services,E,Services,EF,02/01/2015,PAY00727358,SACH,Standards and Achievement,1600,Revenue,Payment to Individual
Brighton & Hove City Council,http://statistics.data.gov.uk/id/local-authority/00ML,Housing General Fund,BVAHOG,Homelessness,HML,Premises Related,C,Rents Payable,CC,02/01/2015,PAY00727362,TAAS,Temp Accom and Allocations,870,Revenue,Payment to Individual
Brighton & Hove City Council,http://statistics.data.gov.uk/id/local-authority/00ML,Cultural and Related Serv,BVACUL,Management Services (DEC),MGT,Transport Related,D,Direct Transport Costs,DA,02/01/2015,PAY00727363,CIPK,City Parks,84.25,Revenue,Lifestyle Ford Ltd
Brighton & Hove City Council,http://statistics.data.gov.uk/id/local-authority/00ML,Environment & Regulatory Serv,BVAERS,Management Services (DEC),MGT,Transport Related,D,Contract Hire n Operating Leas,DB,02/01/2015,PAY00727363,CICL,City Clean,272.04,Revenue,Lifestyle Ford Ltd
Brighton & Hove City Council,http://statistics.data.gov.uk/id/local-authority/00ML,Environment & Regulatory Serv,BVAERS,Management Services (DEC),MGT,Transport Related,D,Direct Transport Costs,DA,02/01/2015,PAY00727363,CICL,City Clean,49.2,Revenue,Lifestyle Ford Ltd
Brighton & Hove City Council,http://statistics.data.gov.uk/id/local-authority/00ML,Children`s & Education Serv,BVAEDU,Ed Mgmt and Support Services,EMG,Supplies and Services,E,Services,EF,02/01/2015,PAY00727364,SACH,Standards and Achievement,5200,Revenue,Payment to Individual
Brighton & Hove City Council,http://statistics.data.gov.uk/id/local-authority/00ML,Housing General Fund,BVAHOG,Homelessness,HML,Premises Related,C,Rents Payable,CC,02/01/2015,PAY00727365,TAAS,Temp Accom and Allocations,610,Revenue,Payment to Individual
Brighton & Hove City Council,http://statistics.data.gov.uk/id/local-authority/00ML,Children`s & Education Serv,BVAEDU,Child Srvcs - Residential Svcs,FLR,Third Party Payments,F,Other Establishments,FH,02/01/2015,PAY00727366,AVFM,Agency Placements\VFM,34800,Revenue,Child First Ltd
Brighton & Hove City Council,http://statistics.data.gov.uk/id/local-authority/00ML,Adult Social Care,BVASOC,ASC Learning Disabilities,ALD,Third Party Payments,F,Other Establishments,FH,02/01/2015,PAY00727367,LDIS,Learning Disabilities,306,Revenue,Payment to Individual
Brighton & Hove City Council,http://statistics.data.gov.uk/id/local-authority/00ML,Housing General Fund,BVAHOG,Homelessness,HML,Premises Related,C,Rents Payable,CC,02/01/2015,PAY00727368,TAAS,Temp Accom and Allocations,1550,Revenue,Pepita Investments Ltd
Brighton & Hove City Council,http://statistics.data.gov.uk/id/local-authority/00ML,Housing General Fund,BVAHOG,Homelessness,HML,Premises Related,C,Rents Payable,CC,02/01/2015,PAY00727369,TAAS,Temp Accom and Allocations,900,Revenue,Payment to Individual
Brighton & Hove City Council,http://statistics.data.gov.uk/id/local-authority/00ML,Adult Social Care,BVASOC,Support to Carer,CAR,Third Party Payments,F,Other Establishments,FH,02/01/2015,PAY00727370,CONT,Contracts,250,Revenue,Payment to Individual
Brighton & Hove City Council,http://statistics.data.gov.uk/id/local-authority/00ML,Housing General Fund,BVAHOG,Homelessness,HML,Premises Related,C,Rents Payable,CC,02/01/2015,PAY00727371,TAAS,Temp Accom and Allocations,1000,Revenue,Payment to Individual
Brighton & Hove City Council,http://statistics.data.gov.uk/id/local-authority/00ML,Housing General Fund,BVAHOG,Homelessness,HML,Premises Related,C,Rents Payable,CC,02/01/2015,PAY00727372,TAAS,Temp Accom and Allocations,850,Revenue,Payment to Individual
Brighton & Hove City Council,http://statistics.data.gov.uk/id/local-authority/00ML,Housing General Fund,BVAHOG,Homelessness,HML,Premises Related,C,Rents Payable,CC,02/01/2015,PAY00727373,TAAS,Temp Accom and Allocations,860,Revenue,Payment to Individual
Brighton & Hove City Council,http://statistics.data.gov.uk/id/local-authority/00ML,Children`s & Education Serv,BVAEDU,Child Srvcs - Fostering,FLF,Third Party Payments,F,Other Establishments,FH,02/01/2015,PAY00727374,AVFM,Agency Placements\VFM,29764.8,Revenue,Brighter Futures Foster Care Ltd
Brighton & Hove City Council,http://statistics.data.gov.uk/id/local-authority/00ML,Cultural and Related Serv,BVACUL,Culture and Heritage,CHG,Supplies and Services,E,Equip't Furniture n Materials,EA,02/01/2015,PAY00727375,RPMU,Royal Pavilion and Museums,2980,Revenue,TOR Systems Ltd
Brighton & Hove City Council,http://statistics.data.gov.uk/id/local-authority/00ML,Housing General Fund,BVAHOG,Homelessness,HML,Premises Related,C,Rents Payable,CC,02/01/2015,PAY00727376,TAAS,Temp Accom and Allocations,910,Revenue,Payment to Individual
Brighton & Hove City Council,http://statistics.data.gov.uk/id/local-authority/00ML,Children`s & Education Serv,BVAEDU,Child Srvcs - Fostering,FLF,Third Party Payments,F,Other Establishments,FH,02/01/2015,PAY00727377,AVFM,Agency Placements\VFM,89858.78,Revenue,Blue Sky Fostering Limited
Brighton & Hove City Council,http://statistics.data.gov.uk/id/local-authority/00ML,Children`s & Education Serv,BVAEDU,Ed EY Central,EAE,Supplies and Services,E,Communications n Computing,EH,02/01/2015,PAY00727378,EYRS,Early Years,10259.8,Revenue,Groupcall Ltd
Brighton & Hove City Council,http://statistics.data.gov.uk/id/local-authority/00ML,Children`s & Education Serv,BVAEDU,Child Srvcs - Residential Svcs,FLR,Third Party Payments,F,Other Establishments,FH,02/01/2015,PAY00727379,DISS,Disability Services,10692,Revenue,PJL Healthcare Ltd
Brighton & Hove City Council,http://statistics.data.gov.uk/id/local-authority/00ML,Housing General Fund,BVAHOG,Homelessness,HML,Premises Related,C,Rents Payable,CC,02/01/2015,PAY00727382,TAAS,Temp Accom and Allocations,1000,Revenue,Payment to Individual
Brighton & Hove City Council,http://statistics.data.gov.uk/id/local-authority/00ML,Housing General Fund,BVAHOG,Homelessness,HML,Premises Related,C,Rents Payable,CC,02/01/2015,PAY00727383,TAAS,Temp Accom and Allocations,775,Revenue,Payment to Individual
Brighton & Hove City Council,http://statistics.data.gov.uk/id/local-authority/00ML,Housing General Fund,BVAHOG,Homelessness,HML,Premises Related,C,Rents Payable,CC,02/01/2015,PAY00727384,TAAS,Temp Accom and Allocations,1950,Revenue,Payment to Individual
Brighton & Hove City Council,http://statistics.data.gov.uk/id/local-authority/00ML,Housing General Fund,BVAHOG,Homelessness,HML,Premises Related,C,Rents Payable,CC,02/01/2015,PAY00727386,TAAS,Temp Accom and Allocations,850,Revenue,Payment to Individual
Brighton & Hove City Council,http://statistics.data.gov.uk/id/local-authority/00ML,Children`s & Education Serv,BVAEDU,Child Srvcs - Residential Svcs,FLR,Third Party Payments,F,Other Establishments,FH,02/01/2015,PAY00727387,AVFM,Agency Placements\VFM,15800,Revenue,The Amicus Community (Arundel) Ltd
Brighton & Hove City Council,http://statistics.data.gov.uk/id/local-authority/00ML,Housing General Fund,BVAHOG,Homelessness,HML,Premises Related,C,Rents Payable,CC,02/01/2015,PAY00727388,TAAS,Temp Accom and Allocations,650,Revenue,Payment to Individual
Brighton & Hove City Council,http://statistics.data.gov.uk/id/local-authority/00ML,Adult Social Care,BVASOC,ASC Memory Cognition Support,MEM,Premises Related,C,Repair Maint n Alterations,CA,02/01/2015,PAY00727389,RCOP,Resource Centres Older People,218.25,Revenue,SRCL Ltd
Brighton & Hove City Council,http://statistics.data.gov.uk/id/local-authority/00ML,Adult Social Care,BVASOC,ASC Physical Support,PHY,Premises Related,C,Repair Maint n Alterations,CA,02/01/2015,PAY00727389,RCOP,Resource Centres Older People,506.12,Revenue,SRCL Ltd
Brighton & Hove City Council,http://statistics.data.gov.uk/id/local-authority/00ML,Children`s & Education Serv,BVAEDU,Child Srvcs - Residential Svcs,FLR,Third Party Payments,F,Other Establishments,FH,02/01/2015,PAY00727390,AVFM,Agency Placements\VFM,13200,Revenue,The Cuckfield Care Consultancy Limited
Brighton & Hove City Council,http://statistics.data.gov.uk/id/local-authority/00ML,Children`s & Education Serv,BVAEDU,Child Srvcs - Residential Svcs,FLR,Third Party Payments,F,Other Establishments,FH,02/01/2015,PAY00727391,AVFM,Agency Placements\VFM,14562.1,Revenue,Cornerways Childrens Services Ltd
Brighton & Hove City Council,http://statistics.data.gov.uk/id/local-authority/00ML,Housing General Fund,BVAHOG,Homelessness,HML,Premises Related,C,Rents Payable,CC,02/01/2015,PAY00727392,TAAS,Temp Accom and Allocations,1025,Revenue,Payment to Individual
Brighton & Hove City Council,http://statistics.data.gov.uk/id/local-authority/00ML,Children`s & Education Serv,BVAEDU,Child Srvcs - Fostering,FLF,Third Party Payments,F,Other Establishments,FH,02/01/2015,PAY00727393,AVFM,Agency Placements\VFM,15008.04,Revenue,Cornerways Fostering Services Limited
Brighton & Hove City Council,http://statistics.data.gov.uk/id/local-authority/00ML,Children`s & Education Serv,BVAEDU,Child Srvcs - Residential Svcs,FLR,Third Party Payments,F,Other Establishments,FH,02/01/2015,PAY00727393,AVFM,Agency Placements\VFM,11649.68,Revenue,Cornerways Fostering Services Limited
Brighton & Hove City Council,http://statistics.data.gov.uk/id/local-authority/00ML,Housing General Fund,BVAHOG,Homelessness,HML,Premises Related,C,Rents Payable,CC,02/01/2015,PAY00727394,TAAS,Temp Accom and Allocations,800,Revenue,Payment to Individual
Brighton & Hove City Council,http://statistics.data.gov.uk/id/local-authority/00ML,Housing General Fund,BVAHOG,Homelessness,HML,Premises Related,C,Rents Payable,CC,02/01/2015,PAY00727396,TAAS,Temp Accom and Allocations,1120,Revenue,Payment to Individual
Brighton & Hove City Council,http://statistics.data.gov.uk/id/local-authority/00ML,Housing General Fund,BVAHOG,Homelessness,HML,Premises Related,C,Rents Payable,CC,02/01/2015,PAY00727397,TAAS,Temp Accom and Allocations,950,Revenue,L B Longley Investments Limited (1)
Brighton & Hove City Council,http://statistics.data.gov.uk/id/local-authority/00ML,Housing General Fund,BVAHOG,Homelessness,HML,Premises Related,C,Rents Payable,CC,02/01/2015,PAY00727398,TAAS,Temp Accom and Allocations,875,Revenue,Payment to Individual
Brighton & Hove City Council,http://statistics.data.gov.uk/id/local-authority/00ML,Central Services to the Public,BVACEN,Support Services (SSC),PPT,Supplies and Services,E,Services,EF,02/01/2015,PAY00727399,REVS,Revenues and Benefits,308,Revenue,Wilkin Chapman LLP
Brighton & Hove City Council,http://statistics.data.gov.uk/id/local-authority/00ML,Housing General Fund,BVAHOG,Homelessness,HML,Premises Related,C,Rents Payable,CC,02/01/2015,PAY00727400,TAAS,Temp Accom and Allocations,800,Revenue,Payment to Individual
Brighton & Hove City Council,http://statistics.data.gov.uk/id/local-authority/00ML,Housing General Fund,BVAHOG,Homelessness,HML,Premises Related,C,Rents Payable,CC,02/01/2015,PAY00727402,TAAS,Temp Accom and Allocations,800,Revenue,Payment to Individual
Brighton & Hove City Council,http://statistics.data.gov.uk/id/local-authority/00ML,Environment & Regulatory Serv,BVAERS,Management Services (DEC),MGT,Transport Related,D,Contract Hire n Operating Leas,DB,02/01/2015,PAY00727403,CICL,City Clean,725,Revenue,Fiveways Municipal Vehicle Hire Ltd
Brighton & Hove City Council,http://statistics.data.gov.uk/id/local-authority/00ML,Children`s & Education Serv,BVAEDU,Child Srvcs - Fostering,FLF,Third Party Payments,F,Other Establishments,FH,02/01/2015,PAY00727404,AVFM,Agency Placements\VFM,3515.43,Revenue,Capstone Foster Care (South East) Ltd
Brighton & Hove City Council,http://statistics.data.gov.uk/id/local-authority/00ML,Housing General Fund,BVAHOG,Homelessness,HML,Premises Related,C,Rents Payable,CC,02/01/2015,PAY00727406,TAAS,Temp Accom and Allocations,849,Revenue,Payment to Individual
Brighton & Hove City Council,http://statistics.data.gov.uk/id/local-authority/00ML,Children`s & Education Serv,BVAEDU,Management Services (DEC),MGT,Supplies and Services,E,Services,EF,02/01/2015,PAY00727407,SOCK,Social Work,575,Revenue,Payment to Individual
Brighton & Hove City Council,http://statistics.data.gov.uk/id/local-authority/00ML,Housing General Fund,BVAHOG,Homelessness,HML,Premises Related,C,Rents Payable,CC,02/01/2015,PAY00727409,TAAS,Temp Accom and Allocations,900,Revenue,Payment to Individual
Brighton & Hove City Council,http://statistics.data.gov.uk/id/local-authority/00ML,Non I&E,BVANON,CAP Education Services,4ED,New Construction n Conversion,PB,New Construction n Conversion,PBL5,02/01/2015,PAY00727410,OEDS,Other Education Support,5657.66,Capital,Hertel Solutions Ltd
Brighton & Hove City Council,http://statistics.data.gov.uk/id/local-authority/00ML,Environment & Regulatory Serv,BVAERS,Court Services,CRT,Supplies and Services,E,Equip't Furniture n Materials,EA,02/01/2015,PAY00727412,LIFE,Life Events,954.5,Revenue,Payment to Individual
Brighton & Hove City Council,http://statistics.data.gov.uk/id/local-authority/00ML,Housing General Fund,BVAHOG,Homelessness,HML,Premises Related,C,Rents Payable,CC,02/01/2015,PAY00727413,TAAS,Temp Accom and Allocations,950,Revenue,Payment to Individual
Brighton & Hove City Council,http://statistics.data.gov.uk/id/local-authority/00ML,Adult Social Care,BVASOC,ASC Learning Disabilities,ALD,Customer n Client Receipts,M,Fees n Charges,MB,02/01/2015,PAY00727415,LDIS,Learning Disabilities,-360,Revenue,Ashmeadows House Ltd
Brighton & Hove City Council,http://statistics.data.gov.uk/id/local-authority/00ML,Adult Social Care,BVASOC,ASC Learning Disabilities,ALD,Third Party Payments,F,Other Establishments,FH,02/01/2015,PAY00727415,LDIS,Learning Disabilities,2974,Revenue,Ashmeadows House Ltd
Brighton & Hove City Council,http://statistics.data.gov.uk/id/local-authority/00ML,Children`s & Education Serv,BVAEDU,Child Srvcs - Other Fam Supp,FFX,Transfer Payments,G,Other Transfer Payments,GD,02/01/2015,PAY00727416,FAMP,Families\Prevention,400,Revenue,Create a Connection Play Therapy
Brighton & Hove City Council,http://statistics.data.gov.uk/id/local-authority/00ML,Housing Revenue Account,BVAHOU,Hsing Management - HRA,HGM,Premises Related,C,Rents Payable,CC,02/01/2015,PAY00727417,HPAI,Property & Investment,41250,Revenue,Friends Life Company Ltd (APUP)
Brighton & Hove City Council,http://statistics.data.gov.uk/id/local-authority/00ML,Housing Revenue Account,BVAHOU,Hsing Management - HRA,HGM,Premises Related,C,Repair Maint n Alterations,CA,02/01/2015,PAY00727417,HPAI,Property & Investment,5497.69,Revenue,Friends Life Company Ltd (APUP)
Brighton & Hove City Council,http://statistics.data.gov.uk/id/local-authority/00ML,Central Support and Overheads,BVACEN,Support Services (SSC),PPT,Premises Related,C,Repair Maint n Alterations,CA,02/01/2015,PAY00727418,PROP,Property and Design,530.12,Revenue,Kew Electrical (Distributors) Limited
Brighton & Hove City Council,http://statistics.data.gov.uk/id/local-authority/00ML,Central Support and Overheads,BVACEN,Support Services (SSC),PPT,Supplies and Services,E,Services,EF,02/01/2015,PAY00727420,PROP,Property and Design,300,Revenue,Resolve Security Solutions Ltd
Brighton & Hove City Council,http://statistics.data.gov.uk/id/local-authority/00ML,Housing General Fund,BVAHOG,Homelessness,HML,Premises Related,C,Rents Payable,CC,02/01/2015,PAY00727422,TAAS,Temp Accom and Allocations,972,Revenue,Payment to Individual
Brighton & Hove City Council,http://statistics.data.gov.uk/id/local-authority/00ML,Housing General Fund,BVAHOG,Homelessness,HML,Premises Related,C,Rents Payable,CC,02/01/2015,PAY00727425,TAAS,Temp Accom and Allocations,800,Revenue,Payment to Individual
Brighton & Hove City Council,http://statistics.data.gov.uk/id/local-authority/00ML,Housing General Fund,BVAHOG,Homelessness,HML,Premises Related,C,Rents Payable,CC,02/01/2015,PAY00727426,TAAS,Temp Accom and Allocations,1100,Revenue,Payment to Individual
Brighton & Hove City Council,http://statistics.data.gov.uk/id/local-authority/00ML,Children`s & Education Serv,BVAEDU,Child Srvcs - Fostering,FLF,Third Party Payments,F,Other Establishments,FH,02/01/2015,PAY00727429,AVFM,Agency Placements\VFM,7169.28,Revenue,Fostering Outcomes Ltd
Brighton & Hove City Council,http://statistics.data.gov.uk/id/local-authority/00ML,Adult Social Care,BVASOC,ASC Memory Cognition Support,MEM,Customer n Client Receipts,M,Fees n Charges,MB,02/01/2015,PAY00727430,COGN,Memory Cognition Support,-99,Revenue,Martlets Care
Brighton & Hove City Council,http://statistics.data.gov.uk/id/local-authority/00ML,Adult Social Care,BVASOC,ASC Memory Cognition Support,MEM,Third Party Payments,F,Other Establishments,FH,02/01/2015,PAY00727430,COGN,Memory Cognition Support,107.1,Revenue,Martlets Care
Brighton & Hove City Council,http://statistics.data.gov.uk/id/local-authority/00ML,Adult Social Care,BVASOC,ASC Physical Support,PHY,Customer n Client Receipts,M,Fees n Charges,MB,02/01/2015,PAY00727430,PHYS,Physical Support,-310,Revenue,Martlets Care
Brighton & Hove City Council,http://statistics.data.gov.uk/id/local-authority/00ML,Adult Social Care,BVASOC,ASC Physical Support,PHY,Third Party Payments,F,Other Establishments,FH,02/01/2015,PAY00727430,PHYS,Physical Support,1022.8,Revenue,Martlets Care
Brighton & Hove City Council,http://statistics.data.gov.uk/id/local-authority/00ML,Non I&E,BVANON,CAP Social Services,4RV,Plant Machinery n Equipment,PE2,Plant Machinery n Equipment,PE2L5,02/01/2015,PAY00727432,ASIT,Assessment and SIT,2879,Capital,Possum Ltd
Brighton & Hove City Council,http://statistics.data.gov.uk/id/local-authority/00ML,Housing General Fund,BVAHOG,Homelessness,HML,Premises Related,C,Rents Payable,CC,02/01/2015,PAY00727434,TAAS,Temp Accom and Allocations,975,Revenue,Payment to Individual
Brighton & Hove City Council,http://statistics.data.gov.uk/id/local-authority/00ML,Housing General Fund,BVAHOG,Homelessness,HML,Premises Related,C,Rents Payable,CC,02/01/2015,PAY00727435,TAAS,Temp Accom and Allocations,800,Revenue,Payment to Individual
Brighton & Hove City Council,http://statistics.data.gov.uk/id/local-authority/00ML,Library Services,BVACUL,Library Service,LBR,Supplies and Services,E,Services,EF,02/01/2015,PAY00727436,LIBS,Libraries,1750,Revenue,Exploring Senses CIC
Brighton & Hove City Council,http://statistics.data.gov.uk/id/local-authority/00ML,Children`s & Education Serv,BVAEDU,Child Srvcs - Other Fam Supp,FFX,Direct Employees,A,Salaries,AA,02/01/2015,PAY00727437,FAMP,Families\Prevention,630,Revenue,Little Angels Contact Centre
Brighton & Hove City Council,http://statistics.data.gov.uk/id/local-authority/00ML,Housing General Fund,BVAHOG,Homelessness,HML,Premises Related,C,Rents Payable,CC,02/01/2015,PAY00727439,TAAS,Temp Accom and Allocations,875,Revenue,Payment to Individual
Brighton & Hove City Council,http://statistics.data.gov.uk/id/local-authority/00ML,Public Health,BVAPHE,Public Health,PHE,Third Party Payments,F,Voluntary Associations,FG,02/01/2015,PAY00727441,PHCM,PH Commissioning,1343.5,Revenue,MindOut LGB&T Mental Health Project
Brighton & Hove City Council,http://statistics.data.gov.uk/id/local-authority/00ML,Central Support and Overheads,BVACEN,Support Services (SSC),PPT,Premises Related,C,Repair Maint n Alterations,CA,02/01/2015,PAY00727442,PROP,Property and Design,469,Revenue,XL Plumbing & Heating Ltd
Brighton & Hove City Council,http://statistics.data.gov.uk/id/local-authority/00ML,Housing General Fund,BVAHOG,Homelessness,HML,Premises Related,C,Rents Payable,CC,02/01/2015,PAY00727443,TAAS,Temp Accom and Allocations,670,Revenue,Payment to Individual
Brighton & Hove City Council,http://statistics.data.gov.uk/id/local-authority/00ML,Housing General Fund,BVAHOG,Homelessness,HML,Premises Related,C,Rents Payable,CC,02/01/2015,PAY00727444,TAAS,Temp Accom and Allocations,925,Revenue,Payment to Individual
Brighton & Hove City Council,http://statistics.data.gov.uk/id/local-authority/00ML,Highways and Transportation,BVAHRT,Highways and Roads - Mntnce,HRM,Customer n Client Receipts,M,Fees n Charges,MB,02/01/2015,PAY00727445,HIGH,Highways,397,Revenue,TMP Worldwide
Brighton & Hove City Council,http://statistics.data.gov.uk/id/local-authority/00ML,Highways and Transportation,BVAHRT,Parking Services,PRK,Premises Related,C,Repair Maint n Alterations,CA,02/01/2015,PAY00727445,HIGH,Highways,540,Revenue,TMP Worldwide
Brighton & Hove City Council,http://statistics.data.gov.uk/id/local-authority/00ML,Housing General Fund,BVAHOG,Homelessness,HML,Premises Related,C,Rents Payable,CC,02/01/2015,PAY00727446,TAAS,Temp Accom and Allocations,900,Revenue,Payment to Individual
Brighton & Hove City Council,http://statistics.data.gov.uk/id/local-authority/00ML,Housing General Fund,BVAHOG,Homelessness,HML,Premises Related,C,Rents Payable,CC,02/01/2015,PAY00727447,TAAS,Temp Accom and Allocations,925,Revenue,Payment to Individual
Brighton & Hove City Council,http://statistics.data.gov.uk/id/local-authority/00ML,Highways and Transportation,BVAHRT,Parking Services,PRK,Supplies and Services,E,Equip't Furniture n Materials,EA,02/01/2015,PAY00727449,PARK,Parking,832.5,Revenue,Pyle Car Park Consultants
Brighton & Hove City Council,http://statistics.data.gov.uk/id/local-authority/00ML,Housing General Fund,BVAHOG,Homelessness,HML,Premises Related,C,Rents Payable,CC,02/01/2015,PAY00727450,TAAS,Temp Accom and Allocations,825,Revenue,Payment to Individual
Brighton & Hove City Council,http://statistics.data.gov.uk/id/local-authority/00ML,Housing General Fund,BVAHOG,Homelessness,HML,Premises Related,C,Rents Payable,CC,02/01/2015,PAY00727452,TAAS,Temp Accom and Allocations,1075,Revenue,Payment to Individual
Brighton & Hove City Council,http://statistics.data.gov.uk/id/local-authority/00ML,Housing General Fund,BVAHOG,Homelessness,HML,Premises Related,C,Rents Payable,CC,02/01/2015,PAY00727453,TAAS,Temp Accom and Allocations,1000,Revenue,Payment to Individual
Brighton & Hove City Council,http://statistics.data.gov.uk/id/local-authority/00ML,Central Services to the Public,BVACEN,Support Services (SSC),PPT,Transport Related,D,Public Transport,DD,02/01/2015,PAY00727454,REVS,Revenues and Benefits,49361.56,Revenue,Ford Retail Ltd t/a TrustFord
Brighton & Hove City Council,http://statistics.data.gov.uk/id/local-authority/00ML,Public Health,BVAPHE,Public Health,PHE,Third Party Payments,F,Health Authorities,FC,02/01/2015,PAY00727455,PHCM,PH Commissioning,2506.89,Revenue,East Sussex Healthcare NHS Trust
Brighton & Hove City Council,http://statistics.data.gov.uk/id/local-authority/00ML,Library Services,BVACUL,Library Service,LBR,Supplies and Services,E,Services,EF,02/01/2015,PAY00727456,LIBS,Libraries,600,Revenue,Culture Shift CIC
Brighton & Hove City Council,http://statistics.data.gov.uk/id/local-authority/00ML,Children`s & Education Serv,BVAEDU,Ed Ed Other LA Attrib Sch,ELA,Transport Related,D,Public Transport,DD,02/01/2015,PAY00727459,OEDS,Other Education Support,680,Revenue,Payment to Individual
Brighton & Hove City Council,http://statistics.data.gov.uk/id/local-authority/00ML,Children`s & Education Serv,BVAEDU,Child Srvcs - Fostering,FLF,Third Party Payments,F,Other Establishments,FH,02/01/2015,PAY00727460,AVFM,Agency Placements\VFM,3099.88,Revenue,Fostering Solutions
Brighton & Hove City Council,http://statistics.data.gov.uk/id/local-authority/00ML,Housing General Fund,BVAHOG,Homelessness,HML,Premises Related,C,Rents Payable,CC,02/01/2015,PAY00727462,TAAS,Temp Accom and Allocations,950,Revenue,Payment to Individual
Brighton & Hove City Council,http://statistics.data.gov.uk/id/local-authority/00ML,Children`s & Education Serv,BVAEDU,Management Services (DEC),MGT,Supplies and Services,E,Services,EF,02/01/2015,PAY00727463,SOCK,Social Work,379,Revenue,Expert Associates Ltd
Brighton & Hove City Council,http://statistics.data.gov.uk/id/local-authority/00ML,Public Health,BVAPHE,Public Health,PHE,Supplies and Services,E,Miscellaneous Expenses,EM,02/01/2015,PAY00727465,PHCM,PH Commissioning,5495,Revenue,Purple Moon
Brighton & Hove City Council,http://statistics.data.gov.uk/id/local-authority/00ML,Housing General Fund,BVAHOG,Homelessness,HML,Premises Related,C,Rents Payable,CC,02/01/2015,PAY00727466,TAAS,Temp Accom and Allocations,1825,Revenue,First Charterhouse Investments Ltd
Brighton & Hove City Council,http://statistics.data.gov.uk/id/local-authority/00ML,Adult Social Care,BVASOC,ASC Learning Disabilities,ALD,Supplies and Services,E,Equip't Furniture n Materials,EA,02/01/2015,PAY00727467,SUPE,Supported Employment,354.03,Revenue,AD Colour Ltd
Brighton & Hove City Council,http://statistics.data.gov.uk/id/local-authority/00ML,Children`s & Education Serv,BVAEDU,Child Srvcs - Fostering,FLF,Third Party Payments,F,Other Establishments,FH,02/01/2015,PAY00727468,AVFM,Agency Placements\VFM,4472.28,Revenue,Fostercare UK Ltd
Brighton & Hove City Council,http://statistics.data.gov.uk/id/local-authority/00ML,Environment & Regulatory Serv,BVAERS,Court Services,CRT,Supplies and Services,E,Services,EF,02/01/2015,PAY00727470,LIFE,Life Events,312,Revenue,Payment to Individual
Brighton & Hove City Council,http://statistics.data.gov.uk/id/local-authority/00ML,Housing General Fund,BVAHOG,Homelessness,HML,Premises Related,C,Rents Payable,CC,02/01/2015,PAY00727471,TAAS,Temp Accom and Allocations,825,Revenue,Payment to Individual
Brighton & Hove City Council,http://statistics.data.gov.uk/id/local-authority/00ML,Housing General Fund,BVAHOG,Homelessness,HML,Premises Related,C,Rents Payable,CC,02/01/2015,PAY00727473,TAAS,Temp Accom and Allocations,550,Revenue,Mayco Properties Ltd 
Brighton & Hove City Council,http://statistics.data.gov.uk/id/local-authority/00ML,Highways and Transportation,BVAHRT,Parking Services,PRK,Customer n Client Receipts,M,Fees n Charges,MB,02/01/2015,PAY00727474,PARK,Parking,584,Revenue,Payment to Individual
Brighton & Hove City Council,http://statistics.data.gov.uk/id/local-authority/00ML,Housing General Fund,BVAHOG,Homelessness,HML,Premises Related,C,Rents Payable,CC,02/01/2015,PAY00727476,TAAS,Temp Accom and Allocations,750,Revenue,Payment to Individual
Brighton & Hove City Council,http://statistics.data.gov.uk/id/local-authority/00ML,Central Support and Overheads,BVACEN,Support Services (SSC),PPT,Supplies and Services,E,Services,EF,02/01/2015,PAY00727480,PROP,Property and Design,250,Revenue,Brighton Energy Services
Brighton & Hove City Council,http://statistics.data.gov.uk/id/local-authority/00ML,Children`s & Education Serv,BVAEDU,Child Srvcs - Other Fam Supp,FFX,Transfer Payments,G,Other Transfer Payments,GD,02/01/2015,PAY00727483,FAMP,Families\Prevention,240,Revenue,Absolute Translations Ltd
Brighton & Hove City Council,http://statistics.data.gov.uk/id/local-authority/00ML,Central Support and Overheads,BVACEN,Holding Accounts,PPH,Supplies and Services,E,Miscellaneous Expenses,EM,02/01/2015,PAY00727485,PROP,Property and Design,945,Revenue,New Leaf Removals Ltd
Brighton & Hove City Council,http://statistics.data.gov.uk/id/local-authority/00ML,Children`s & Education Serv,BVAEDU,Ed Ed Other LA Attrib Sch,ELA,Transport Related,D,Public Transport,DD,02/01/2015,PAY00727487,OEDS,Other Education Support,1650,Revenue,Payment to Individual
Brighton & Hove City Council,http://statistics.data.gov.uk/id/local-authority/00ML,Cultural and Related Serv,BVACUL,Highways and Roads - Mntnce,HRM,Premises Related,C,Repair Maint n Alterations,CA,02/01/2015,PAY00727489,PROP,Property and Design,2118.83,Revenue,R J Meaker Fencing Ltd
Brighton & Hove City Council,http://statistics.data.gov.uk/id/local-authority/00ML,Housing General Fund,BVAHOG,Homelessness,HML,Premises Related,C,Rents Payable,CC,02/01/2015,PAY00727494,TAAS,Temp Accom and Allocations,1500,Revenue,Payment to Individual
Brighton & Hove City Council,http://statistics.data.gov.uk/id/local-authority/00ML,Housing General Fund,BVAHOG,Homelessness,HML,Premises Related,C,Rents Payable,CC,02/01/2015,PAY00727495,TAAS,Temp Accom and Allocations,1000,Revenue,Payment to Individual
Brighton & Hove City Council,http://statistics.data.gov.uk/id/local-authority/00ML,Housing General Fund,BVAHOG,Homelessness,HML,Premises Related,C,Rents Payable,CC,02/01/2015,PAY00727497,TAAS,Temp Accom and Allocations,990,Revenue,Payment to Individual
Brighton & Hove City Council,http://statistics.data.gov.uk/id/local-authority/00ML,Housing General Fund,BVAHOG,Homelessness,HML,Premises Related,C,Rents Payable,CC,02/01/2015,PAY00727499,TAAS,Temp Accom and Allocations,850,Revenue,Payment to Individual
Brighton & Hove City Council,http://statistics.data.gov.uk/id/local-authority/00ML,Central Support and Overheads,BVACEN,Support Services (SSC),PPT,Supplies and Services,E,Services,EF,02/01/2015,PAY00727500,PROP,Property and Design,4790.47,Revenue,Faithorn Farrell Timms
Brighton & Hove City Council,http://statistics.data.gov.uk/id/local-authority/00ML,Housing General Fund,BVAHOG,Homelessness,HML,Premises Related,C,Rents Payable,CC,02/01/2015,PAY00727501,TAAS,Temp Accom and Allocations,700,Revenue,Payment to Individual
Brighton & Hove City Council,http://statistics.data.gov.uk/id/local-authority/00ML,Central Support and Overheads,BVACEN,Support Services (SSC),PPT,Premises Related,C,Repair Maint n Alterations,CA,02/01/2015,PAY00727502,PROP,Property and Design,297,Revenue,Clearway Environmental Services Ltd
Brighton & Hove City Council,http://statistics.data.gov.uk/id/local-authority/00ML,Corporate Income & Expenditure,BVAOEX,Non Service Costs,NVC,Premises Related,C,Departmental Administration,CHA,02/01/2015,PAY00727502,FINS,Financial Services,2985.75,Revenue,Clearway Environmental Services Ltd
Brighton & Hove City Council,http://statistics.data.gov.uk/id/local-authority/00ML,Housing General Fund,BVAHOG,Homelessness,HML,Premises Related,C,Rents Payable,CC,02/01/2015,PAY00727503,TAAS,Temp Accom and Allocations,1050,Revenue,Payment to Individual
Brighton & Hove City Council,http://statistics.data.gov.uk/id/local-authority/00ML,Children`s & Education Serv,BVAEDU,Child Srvcs Com and Scl Work,FCW,Indirect Employees,B,Misc Employee Costs,BP,02/01/2015,PAY00727504,SPAS,Specialist Assessments,480,Revenue,Payment to Individual
Brighton & Hove City Council,http://statistics.data.gov.uk/id/local-authority/00ML,Housing General Fund,BVAHOG,Homelessness,HML,Premises Related,C,Rents Payable,CC,02/01/2015,PAY00727505,TAAS,Temp Accom and Allocations,1075,Revenue,Payment to Individual
Brighton & Hove City Council,http://statistics.data.gov.uk/id/local-authority/00ML,Central Support and Overheads,BVACEN,Support Services (SSC),PPT,Supplies and Services,E,Services,EF,02/01/2015,PAY00727507,PROP,Property and Design,2425,Revenue,Payment to Individual
Brighton & Hove City Council,http://statistics.data.gov.uk/id/local-authority/00ML,Housing General Fund,BVAHOG,Hsing Benefits,HGB,Transfer Payments,G,Other Transfer Payments,GD,02/01/2015,PAY00727509,REVS,Revenues and Benefits,2175,Revenue,The Fridge Shop
Brighton & Hove City Council,http://statistics.data.gov.uk/id/local-authority/00ML,Children`s & Education Serv,BVAEDU,Management Services (DEC),MGT,Supplies and Services,E,Services,EF,02/01/2015,PAY00727510,SOCK,Social Work,235,Revenue,Payment to Individual
Brighton & Hove City Council,http://statistics.data.gov.uk/id/local-authority/00ML,Environment & Regulatory Serv,BVAERS,Cem Crem and Mortuary Services,CCM,Premises Related,C,Repair Maint n Alterations,CA,02/01/2015,PAY00727512,LIFE,Life Events,7521.77,Revenue,Facultatieve Technologies Ltd
Brighton & Hove City Council,http://statistics.data.gov.uk/id/local-authority/00ML,Environment & Regulatory Serv,BVAERS,Waste Management,WMT,Third Party Payments,F,Private Contractors,FJ,02/01/2015,PAY00727513,CICL,City Clean,4955.23,Revenue,Medisort Limited
Brighton & Hove City Council,http://statistics.data.gov.uk/id/local-authority/00ML,Housing General Fund,BVAHOG,Homelessness,HML,Premises Related,C,Rents Payable,CC,02/01/2015,PAY00727514,TAAS,Temp Accom and Allocations,950,Revenue,Edwards Property Investment Co Ltd
Brighton & Hove City Council,http://statistics.data.gov.uk/id/local-authority/00ML,Central Support and Overheads,BVACEN,Support Services (SSC),PPT,Supplies and Services,E,Services,EF,02/01/2015,PAY00727515,PROP,Property and Design,3119.9,Revenue,Stark Software International Ltd
Brighton & Hove City Council,http://statistics.data.gov.uk/id/local-authority/00ML,Adult Social Care,BVASOC,ASC Memory Cognition Support,MEM,Customer n Client Receipts,M,Fees n Charges,MB,02/01/2015,PAY00727516,COGN,Memory Cognition Support,-727.65,Revenue,Ideal Carehomes Ltd
Brighton & Hove City Council,http://statistics.data.gov.uk/id/local-authority/00ML,Adult Social Care,BVASOC,ASC Memory Cognition Support,MEM,Third Party Payments,F,Other Establishments,FH,02/01/2015,PAY00727516,COGN,Memory Cognition Support,1241.37,Revenue,Ideal Carehomes Ltd
Brighton & Hove City Council,http://statistics.data.gov.uk/id/local-authority/00ML,Children`s & Education Serv,BVAEDU,Ed Ed Other LA Attrib Sch,ELA,Transport Related,D,Public Transport,DD,02/01/2015,PAY00727517,OEDS,Other Education Support,448.8,Revenue,Payment to Individual
Brighton & Hove City Council,http://statistics.data.gov.uk/id/local-authority/00ML,Children`s & Education Serv,BVAEDU,Child Srvcs - Fostering,FLF,Third Party Payments,F,Other Establishments,FH,02/01/2015,PAY00727519,AVFM,Agency Placements\VFM,216450.03,Revenue,Families Fostering Ltd
Brighton & Hove City Council,http://statistics.data.gov.uk/id/local-authority/00ML,Children`s & Education Serv,BVAEDU,Child Srvcs - Fostering,FLF,Third Party Payments,F,Other Establishments,FH,02/01/2015,PAY00727519,DISS,Disability Services,9813.28,Revenue,Families Fostering Ltd
Brighton & Hove City Council,http://statistics.data.gov.uk/id/local-authority/00ML,Children`s & Education Serv,BVAEDU,Child Srvcs - Residential Svcs,FLR,Third Party Payments,F,Other Establishments,FH,02/01/2015,PAY00727519,AVFM,Agency Placements\VFM,78600,Revenue,Families Fostering Ltd
Brighton & Hove City Council,http://statistics.data.gov.uk/id/local-authority/00ML,Children`s & Education Serv,BVAEDU,Child Srvcs - Residential Svcs,FLR,Third Party Payments,F,Other Establishments,FH,02/01/2015,PAY00727519,DISS,Disability Services,11120,Revenue,Families Fostering Ltd
Brighton & Hove City Council,http://statistics.data.gov.uk/id/local-authority/00ML,Non I&E,BVANON,CAP Education Services,4ED,New Construction n Conversion,PB,New Construction n Conversion,PBL5,02/01/2015,PAY00727524,OEDS,Other Education Support,1190,Capital,Delta Green Environmental Design Limited
Brighton & Hove City Council,http://statistics.data.gov.uk/id/local-authority/00ML,Housing General Fund,BVAHOG,Homelessness,HML,Premises Related,C,Rents Payable,CC,02/01/2015,PAY00727526,TAAS,Temp Accom and Allocations,850,Revenue,Payment to Individual
Brighton & Hove City Council,http://statistics.data.gov.uk/id/local-authority/00ML,Adult Social Care,BVASOC,ASC Learning Disabilities,ALD,Customer n Client Receipts,M,Fees n Charges,MB,02/01/2015,PAY00727528,LDIS,Learning Disabilities,-272,Revenue,Brighton Vision
Brighton & Hove City Council,http://statistics.data.gov.uk/id/local-authority/00ML,Adult Social Care,BVASOC,ASC Learning Disabilities,ALD,Third Party Payments,F,Other Establishments,FH,02/01/2015,PAY00727528,LDIS,Learning Disabilities,2556.4,Revenue,Brighton Vision
Brighton & Hove City Council,http://statistics.data.gov.uk/id/local-authority/00ML,Children`s & Education Serv,BVAEDU,Ed Ed Other LA Attrib Sch,ELA,Transport Related,D,Public Transport,DD,02/01/2015,PAY00727530,OEDS,Other Education Support,432,Revenue,Payment to Individual
Brighton & Hove City Council,http://statistics.data.gov.uk/id/local-authority/00ML,Adult Social Care,BVASOC,Info & Early Intervention,PRV,Supplies and Services,E,Services,EF,02/01/2015,PAY00727531,CONT,Contracts,1769.66,Revenue,Payment to Individual
Brighton & Hove City Council,http://statistics.data.gov.uk/id/local-authority/00ML,Planning and Development,BVAPLA,Economic Development,ECD,Supplies and Services,E,Services,EF,02/01/2015,PAY00727535,ECOD,Economic Development,50000,Revenue,Space Makers Agency Limited
Brighton & Hove City Council,http://statistics.data.gov.uk/id/local-authority/00ML,Public Health,BVAPHE,Public Health,PHE,Third Party Payments,F,Health Authorities,FC,02/01/2015,PAY00727537,PHCM,PH Commissioning,327.8,Revenue,Homerton University Hospital NHS Foundation Trust
Brighton & Hove City Council,http://statistics.data.gov.uk/id/local-authority/00ML,Housing General Fund,BVAHOG,Homelessness,HML,Premises Related,C,Rents Payable,CC,02/01/2015,PAY00727539,TAAS,Temp Accom and Allocations,550,Revenue,Payment to Individual
Brighton & Hove City Council,http://statistics.data.gov.uk/id/local-authority/00ML,Housing General Fund,BVAHOG,Homelessness,HML,Premises Related,C,Rents Payable,CC,02/01/2015,PAY00727541,TAAS,Temp Accom and Allocations,1000,Revenue,Payment to Individual
Brighton & Hove City Council,http://statistics.data.gov.uk/id/local-authority/00ML,Public Health,BVAPHE,Public Health,PHE,Third Party Payments,F,Health Authorities,FC,02/01/2015,PAY00727543,PHCM,PH Commissioning,448.83,Revenue,Virgin Care Services Ltd (None Surrey)
Brighton & Hove City Council,http://statistics.data.gov.uk/id/local-authority/00ML,Highways and Transportation,BVAHRT,Transport Plan Policy Strategy,TPP,Supplies and Services,E,Print Stat & Gen Office Exps,ED,02/01/2015,PAY00727545,TPRS,Transport Plan and Road Safety,250,Revenue,Campbell Creative Media Ltd
Brighton & Hove City Council,http://statistics.data.gov.uk/id/local-authority/00ML,Housing General Fund,BVAHOG,Homelessness,HML,Premises Related,C,Rents Payable,CC,02/01/2015,PAY00727546,TAAS,Temp Accom and Allocations,850,Revenue,Payment to Individual
Brighton & Hove City Council,http://statistics.data.gov.uk/id/local-authority/00ML,Children`s & Education Serv,BVAEDU,Child Srvcs Leaving Care,FAL,Transfer Payments,G,Other Transfer Payments,GD,02/01/2015,PAY00727549,CHIC,Children In Care,276.81,Revenue,Payment to Individual
Brighton & Hove City Council,http://statistics.data.gov.uk/id/local-authority/00ML,Collection Fund,BVANON,Collection Fund,7WW,Unanalysed Expenditure,9999,Unanalysed Expenditure,9999L5,02/01/2015,PAY00727550,COLL,Collection Fund,1168425.53,Collection Fund,The Police & Crime Commissioner for Sussex
Brighton & Hove City Council,http://statistics.data.gov.uk/id/local-authority/00ML,Collection Fund,BVANON,Collection Fund,7WW,Unanalysed Expenditure,9999,Unanalysed Expenditure,9999L5,02/01/2015,PAY00727551,COLL,Collection Fund,690938,Collection Fund,East Sussex Fire Authority
Brighton & Hove City Council,http://statistics.data.gov.uk/id/local-authority/00ML,Cultural and Related Serv,BVACUL,Culture and Heritage,CHG,Supplies and Services,E,Services,EF,02/01/2015,PAY00727553,RPMU,Royal Pavilion and Museums,1500,Revenue,M20 IT ICT Consultancy
Brighton & Hove City Council,http://statistics.data.gov.uk/id/local-authority/00ML,Central Support and Overheads,BVACEN,Support Services (SSC),PPT,Premises Related,C,Repair Maint n Alterations,CA,02/01/2015,PAY00727554,PROP,Property and Design,240,Revenue,Drain Brain South East Limited
Brighton & Hove City Council,http://statistics.data.gov.uk/id/local-authority/00ML,Children`s & Education Serv,BVAEDU,Child Srvcs Leaving Care,FAL,Transfer Payments,G,Other Transfer Payments,GD,02/01/2015,PAY00727555,CHIC,Children In Care,600,Revenue,Payment to Individual
Brighton & Hove City Council,http://statistics.data.gov.uk/id/local-authority/00ML,Children`s & Education Serv,BVAEDU,Ed EY Central,EAE,Supplies and Services,E,Miscellaneous Expenses,EM,02/01/2015,PAY00727557,EYRS,Early Years,400,Revenue,Pulse First Aid Ltd
Brighton & Hove City Council,http://statistics.data.gov.uk/id/local-authority/00ML,Adult Social Care,BVASOC,ASC Mental Health Support,MHP,Third Party Payments,F,Other Establishments,FH,02/01/2015,PAY00727559,MENH,Mental Health Support,355.2,Revenue,Coastal Homecare (Hove) Ltd
Brighton & Hove City Council,http://statistics.data.gov.uk/id/local-authority/00ML,Adult Social Care,BVASOC,ASC Physical Support,PHY,Customer n Client Receipts,M,Fees n Charges,MB,02/01/2015,PAY00727559,PHYS,Physical Support,-664,Revenue,Coastal Homecare (Hove) Ltd
Brighton & Hove City Council,http://statistics.data.gov.uk/id/local-authority/00ML,Adult Social Care,BVASOC,ASC Physical Support,PHY,Third Party Payments,F,Other Establishments,FH,02/01/2015,PAY00727559,PHYS,Physical Support,4285.74,Revenue,Coastal Homecare (Hove) Ltd
Brighton & Hove City Council,http://statistics.data.gov.uk/id/local-authority/00ML,Non-BHC Organisations,BVANON,Non-Council,NNC,Direct Employees,A,Wages,AB,02/01/2015,PAY00727560,NBHC,Non Council,2232,Revenue,Payment to Individual
Brighton & Hove City Council,http://statistics.data.gov.uk/id/local-authority/00ML,Adult Social Care,BVASOC,Support to Carer,CAR,Third Party Payments,F,Other Establishments,FH,02/01/2015,PAY00727561,CONT,Contracts,250,Revenue,Payment to Individual
Brighton & Hove City Council,http://statistics.data.gov.uk/id/local-authority/00ML,Adult Social Care,BVASOC,ASC Physical Support,PHY,Third Party Payments,F,Other Establishments,FH,02/01/2015,PAY00727564,PHYS,Physical Support,560,Revenue,Peachy Clean
Brighton & Hove City Council,http://statistics.data.gov.uk/id/local-authority/00ML,Central Support and Overheads,BVACEN,Support Services (SSC),PPT,Supplies and Services,E,Miscellaneous Expenses,EM,02/01/2015,PAY00727568,FINS,Financial Services,3991.97,Revenue,BDI Securities UK Ltd
Brighton & Hove City Council,http://statistics.data.gov.uk/id/local-authority/00ML,Children`s & Education Serv,BVAEDU,Child Srvcs Com and Scl Work,FCW,Supplies and Services,E,Miscellaneous Expenses,EM,02/01/2015,PAY00727568,SOCK,Social Work,3500,Revenue,BDI Securities UK Ltd
Brighton & Hove City Council,http://statistics.data.gov.uk/id/local-authority/00ML,Cultural and Related Serv,BVACUL,Tourism,TRM,Supplies and Services,E,Miscellaneous Expenses,EM,02/01/2015,PAY00727568,TOMA,Tourism and Marketing,500,Revenue,BDI Securities UK Ltd
Brighton & Hove City Council,http://statistics.data.gov.uk/id/local-authority/00ML,Highways and Transportation,BVAHRT,Parking Services,PRK,Customer n Client Receipts,M,Fees n Charges,MB,02/01/2015,PAY00727568,PARK,Parking,350,Revenue,BDI Securities UK Ltd
Brighton & Hove City Council,http://statistics.data.gov.uk/id/local-authority/00ML,Non-BHC Organisations,BVANON,Trusts,TRT,Supplies and Services,E,Miscellaneous Expenses,EM,02/01/2015,PAY00727568,NBHC,Non Council,40,Revenue,BDI Securities UK Ltd
Brighton & Hove City Council,http://statistics.data.gov.uk/id/local-authority/00ML,Housing General Fund,BVAHOG,Homelessness,HML,Premises Related,C,Rents Payable,CC,02/01/2015,PAY00727569,TAAS,Temp Accom and Allocations,1050,Revenue,Payment to Individual
Brighton & Hove City Council,http://statistics.data.gov.uk/id/local-authority/00ML,Public Health,BVAPHE,Public Health,PHE,Third Party Payments,F,Health Authorities,FC,02/01/2015,PAY00727571,PHCM,PH Commissioning,1117.09,Revenue,St George`s Healthcare NHS Trust
Brighton & Hove City Council,http://statistics.data.gov.uk/id/local-authority/00ML,Housing General Fund,BVAHOG,Homelessness,HML,Premises Related,C,Rents Payable,CC,02/01/2015,PAY00727572,TAAS,Temp Accom and Allocations,900,Revenue,Payment to Individual
Brighton & Hove City Council,http://statistics.data.gov.uk/id/local-authority/00ML,Children`s & Education Serv,BVAEDU,Ed Ed Other LA Attrib Sch,ELA,Transport Related,D,Public Transport,DD,02/01/2015,PAY00727575,OEDS,Other Education Support,528.66,Revenue,Payment to Individual
Brighton & Hove City Council,http://statistics.data.gov.uk/id/local-authority/00ML,Adult Social Care,BVASOC,Info & Early Intervention,PRV,Supplies and Services,E,Services,EF,02/01/2015,PAY00727576,CONT,Contracts,1944.5,Revenue,Payment to Individual
Brighton & Hove City Council,http://statistics.data.gov.uk/id/local-authority/00ML,Central Support and Overheads,BVACEN,Support Services (SSC),PPT,Premises Related,C,Repair Maint n Alterations,CA,02/01/2015,PAY00727577,PROP,Property and Design,5202.32,Revenue,Eastnor Ltd t/a Electrical & Mechanical Services
Brighton & Hove City Council,http://statistics.data.gov.uk/id/local-authority/00ML,Environment & Regulatory Serv,BVAERS,Management Services (DEC),MGT,Transport Related,D,Contract Hire n Operating Leas,DB,02/01/2015,PAY00727578,CICL,City Clean,775,Revenue,Trash UK Ltd
Brighton & Hove City Council,http://statistics.data.gov.uk/id/local-authority/00ML,Central Support and Overheads,BVACEN,Support Services (SSC),PPT,Premises Related,C,Energy Costs,CB,02/01/2015,PAY00727580,PROP,Property and Design,8087.65,Revenue,Watson Petroleum
Brighton & Hove City Council,http://statistics.data.gov.uk/id/local-authority/00ML,Children`s & Education Serv,BVAEDU,Ed Secondary Schools,EJJ,Premises Related,C,Energy Costs,CB,02/01/2015,PAY00727580,SCHL,Schools,6791.2,Revenue,Watson Petroleum
Brighton & Hove City Council,http://statistics.data.gov.uk/id/local-authority/00ML,Housing General Fund,BVAHOG,Homelessness,HML,Premises Related,C,Rents Payable,CC,02/01/2015,PAY00727584,TAAS,Temp Accom and Allocations,1000,Revenue,Payment to Individual
Brighton & Hove City Council,http://statistics.data.gov.uk/id/local-authority/00ML,Central Support and Overheads,BVACEN,Support Services (SSC),PPT,Premises Related,C,Repair Maint n Alterations,CA,02/01/2015,PAY00727586,PROP,Property and Design,442.51,Revenue,CEMEX UK Operations Limited
Brighton & Hove City Council,http://statistics.data.gov.uk/id/local-authority/00ML,Children`s & Education Serv,BVAEDU,Ed Ed Other LA Attrib Sch,ELA,Transport Related,D,Public Transport,DD,02/01/2015,PAY00727588,OEDS,Other Education Support,512.05,Revenue,Payment to Individual
Brighton & Hove City Council,http://statistics.data.gov.uk/id/local-authority/00ML,Public Health,BVAPHE,Public Health,PHE,Third Party Payments,F,Health Authorities,FC,02/01/2015,PAY00727589,PHCM,PH Commissioning,3506.12,Revenue,SIGMA Pharmaceuticals Plc
Brighton & Hove City Council,http://statistics.data.gov.uk/id/local-authority/00ML,Adult Social Care,BVASOC,Commission & Service Delivery,CMM,Supplies and Services,E,Services,EF,02/01/2015,PAY00727590,COMM,Commissioning,1769,Revenue,Payment to Individual
Brighton & Hove City Council,http://statistics.data.gov.uk/id/local-authority/00ML,Non I&E,BVANON,CAP Social Services,4RV,Plant Machinery n Equipment,PE2,Plant Machinery n Equipment,PE2L5,02/01/2015,PAY00727592,ASIT,Assessment and SIT,506.34,Capital,Mindme
Brighton & Hove City Council,http://statistics.data.gov.uk/id/local-authority/00ML,Non I&E,BVANON,CAP Sport and Recreation,4RC,Plant Machinery n Equipment,PE2,Plant Machinery n Equipment,PE2L5,02/01/2015,PAY00727594,MJPR,Major Projects,1500,Capital,XoomTalk
Brighton & Hove City Council,http://statistics.data.gov.uk/id/local-authority/00ML,Cultural and Related Serv,BVACUL,Recreation and Sport,REC,Premises Related,C,Repair Maint n Alterations,CA,02/01/2015,PAY00727595,SEAS,Seafront Services,4400,Revenue,Bricks 2 Mortar Ltd
Brighton & Hove City Council,http://statistics.data.gov.uk/id/local-authority/00ML,Children`s & Education Serv,BVAEDU,Ed Ed Other Other,ENF,Third Party Payments,F,Other Local Authorities,FB,02/01/2015,PAY00727598,PROP,Property and Design,2475,Revenue,Flexible Learning Associates Ltd
Brighton & Hove City Council,http://statistics.data.gov.uk/id/local-authority/00ML,Adult Social Care,BVASOC,ASC Physical Support,PHY,Customer n Client Receipts,M,Fees n Charges,MB,02/01/2015,PAY00727599,PHYS,Physical Support,-84,Revenue,Diamond Resourcing PLC
Brighton & Hove City Council,http://statistics.data.gov.uk/id/local-authority/00ML,Adult Social Care,BVASOC,ASC Physical Support,PHY,Third Party Payments,F,Other Establishments,FH,02/01/2015,PAY00727599,PHYS,Physical Support,361.15,Revenue,Diamond Resourcing PLC
Brighton & Hove City Council,http://statistics.data.gov.uk/id/local-authority/00ML,Adult Social Care,BVASOC,ASC Physical Support,PHY,Customer n Client Receipts,M,Fees n Charges,MB,02/01/2015,PAY00727601,PHYS,Physical Support,-569.36,Revenue,Home of Comfort
Brighton & Hove City Council,http://statistics.data.gov.uk/id/local-authority/00ML,Adult Social Care,BVASOC,ASC Physical Support,PHY,Third Party Payments,F,Other Establishments,FH,02/01/2015,PAY00727601,PHYS,Physical Support,1969.96,Revenue,Home of Comfort
Brighton & Hove City Council,http://statistics.data.gov.uk/id/local-authority/00ML,Non I&E,BVANON,CAP Public Health,4PH,Vehicles,PE1,Vehicles,PE1L5,02/01/2015,PAY00727606,PUPO,Public Protection,117000,Capital,Green Urban Technologies Ltd
Brighton & Hove City Council,http://statistics.data.gov.uk/id/local-authority/00ML,Central Support and Overheads,BVACEN,Support Services (SSC),PPT,Indirect Employees,B,Training,BM,02/01/2015,PAY00727607,SFPR,Strategic Finance and Proc,720,Revenue,Power Seminars Ltd
Brighton & Hove City Council,http://statistics.data.gov.uk/id/local-authority/00ML,Children`s & Education Serv,BVAEDU,Management Services (DEC),MGT,Supplies and Services,E,Services,EF,02/01/2015,PAY00727609,SOCK,Social Work,850,Revenue,Boyce Hatton Solicitors
Brighton & Hove City Council,http://statistics.data.gov.uk/id/local-authority/00ML,Adult Social Care,BVASOC,Info & Early Intervention,PRV,Supplies and Services,E,Services,EF,02/01/2015,PAY00727613,CONT,Contracts,708.1,Revenue,Payment to Individual
Brighton & Hove City Council,http://statistics.data.gov.uk/id/local-authority/00ML,Adult Social Care,BVASOC,Support to Carer,CAR,Third Party Payments,F,Other Establishments,FH,02/01/2015,PAY00727614,CONT,Contracts,250,Revenue,Payment to Individual
Brighton & Hove City Council,http://statistics.data.gov.uk/id/local-authority/00ML,Adult Social Care,BVASOC,Support to Carer,CAR,Third Party Payments,F,Other Establishments,FH,02/01/2015,PAY00727616,CONT,Contracts,250,Revenue,Payment to Individual
Brighton & Hove City Council,http://statistics.data.gov.uk/id/local-authority/00ML,Non I&E,BVANON,CAP Sport and Recreation,4RC,Plant Machinery n Equipment,PE2,Plant Machinery n Equipment,PE2L5,02/01/2015,PAY00727626,MJPR,Major Projects,2575.81,Capital,Switch Communications Ltd
Brighton & Hove City Council,http://statistics.data.gov.uk/id/local-authority/00ML,Children`s & Education Serv,BVAEDU,Ed EY Central,EAE,Indirect Employees,B,Advertising,BA,02/01/2015,PAY00727684,EYRS,Early Years,539.5,Revenue,Payment to Individual
Brighton & Hove City Council,http://statistics.data.gov.uk/id/local-authority/00ML,Housing General Fund,BVAHOG,Homelessness,HML,Premises Related,C,Repair Maint n Alterations,CA,02/01/2015,PAY00727759,TAAS,Temp Accom and Allocations,290.68,Revenue,Payment to Individual
Brighton & Hove City Council,http://statistics.data.gov.uk/id/local-authority/00ML,Housing General Fund,BVAHOG,Homelessness,HML,Premises Related,C,Rents Payable,CC,02/01/2015,PAY00727760,TAAS,Temp Accom and Allocations,1100,Revenue,Payment to Individual
Brighton & Hove City Council,http://statistics.data.gov.uk/id/local-authority/00ML,Environment & Regulatory Serv,BVAERS,Cem Crem and Mortuary Services,CCM,Supplies and Services,E,Services,EF,07/01/2015,PAY00727761,LIFE,Life Events,621.67,Revenue,Dignity
Brighton & Hove City Council,http://statistics.data.gov.uk/id/local-authority/00ML,Housing General Fund,BVAHOG,Homelessness,HML,Premises Related,C,Rents Payable,CC,07/01/2015,PAY00727763,TAAS,Temp Accom and Allocations,599,Revenue,Payment to Individual
Brighton & Hove City Council,http://statistics.data.gov.uk/id/local-authority/00ML,Children`s & Education Serv,BVAEDU,Child Srvcs - Other Fam Supp,FFX,Transfer Payments,G,Other Transfer Payments,GD,07/01/2015,PAY00727764,FAMP,Families\Prevention,1400,Revenue,Greenways Guest House
Brighton & Hove City Council,http://statistics.data.gov.uk/id/local-authority/00ML,Children`s & Education Serv,BVAEDU,Child Srvcs - Othr LAC Svcs,FLX,Transfer Payments,G,Other Transfer Payments,GD,07/01/2015,PAY00727764,CHIC,Children In Care,1400,Revenue,Greenways Guest House
Brighton & Hove City Council,http://statistics.data.gov.uk/id/local-authority/00ML,Adult Social Care,BVASOC,ASC Memory Cognition Support,MEM,Customer n Client Receipts,M,Fees n Charges,MB,07/01/2015,PAY00727771,COGN,Memory Cognition Support,-365,Revenue,Mears Care
Brighton & Hove City Council,http://statistics.data.gov.uk/id/local-authority/00ML,Adult Social Care,BVASOC,ASC Memory Cognition Support,MEM,Third Party Payments,F,Other Establishments,FH,07/01/2015,PAY00727771,COGN,Memory Cognition Support,1424.7,Revenue,Mears Care
Brighton & Hove City Council,http://statistics.data.gov.uk/id/local-authority/00ML,Adult Social Care,BVASOC,ASC Mental Health Support,MHP,Customer n Client Receipts,M,Fees n Charges,MB,07/01/2015,PAY00727771,MENH,Mental Health Support,-114,Revenue,Mears Care
Brighton & Hove City Council,http://statistics.data.gov.uk/id/local-authority/00ML,Adult Social Care,BVASOC,ASC Mental Health Support,MHP,Third Party Payments,F,Other Establishments,FH,07/01/2015,PAY00727771,MENH,Mental Health Support,1174.7,Revenue,Mears Care
Brighton & Hove City Council,http://statistics.data.gov.uk/id/local-authority/00ML,Adult Social Care,BVASOC,ASC Physical Support,PHY,Customer n Client Receipts,M,Fees n Charges,MB,07/01/2015,PAY00727771,PHYS,Physical Support,-2310,Revenue,Mears Care
Brighton & Hove City Council,http://statistics.data.gov.uk/id/local-authority/00ML,Adult Social Care,BVASOC,ASC Physical Support,PHY,Third Party Payments,F,Other Establishments,FH,07/01/2015,PAY00727771,PHYS,Physical Support,17255.65,Revenue,Mears Care
Brighton & Hove City Council,http://statistics.data.gov.uk/id/local-authority/00ML,Adult Social Care,BVASOC,ASC Sensory Support,AHV,Customer n Client Receipts,M,Fees n Charges,MB,07/01/2015,PAY00727771,SORY,Sensory Support,-102,Revenue,Mears Care
Brighton & Hove City Council,http://statistics.data.gov.uk/id/local-authority/00ML,Adult Social Care,BVASOC,ASC Sensory Support,AHV,Third Party Payments,F,Other Establishments,FH,07/01/2015,PAY00727771,SORY,Sensory Support,303.5,Revenue,Mears Care
Brighton & Hove City Council,http://statistics.data.gov.uk/id/local-authority/00ML,Children`s & Education Serv,BVAEDU,Management Services (DEC),MGT,Supplies and Services,E,Services,EF,07/01/2015,PAY00727772,SOCK,Social Work,685,Revenue,Payment to Individual
Brighton & Hove City Council,http://statistics.data.gov.uk/id/local-authority/00ML,Adult Social Care,BVASOC,Social Care Activities,ACM,Transport Related,D,Other Transport Costs,DG,07/01/2015,PAY00727774,ASIT,Assessment and SIT,450,Revenue,Gala Coral Group / Gala Leisure Ltd
Brighton & Hove City Council,http://statistics.data.gov.uk/id/local-authority/00ML,Central Services to the Public,BVACEN,Reg - Birth Death and Marriage,RBD,Supplies and Services,E,Print Stat & Gen Office Exps,ED,07/01/2015,PAY00727775,LIFE,Life Events,126,Revenue,Portsdown Office Ltd
Brighton & Hove City Council,http://statistics.data.gov.uk/id/local-authority/00ML,Children`s & Education Serv,BVAEDU,Child Srvcs Com and Scl Work,FCW,Supplies and Services,E,Equip't Furniture n Materials,EA,07/01/2015,PAY00727775,SOCK,Social Work,312.4,Revenue,Portsdown Office Ltd
Brighton & Hove City Council,http://statistics.data.gov.uk/id/local-authority/00ML,Adult Social Care,BVASOC,ASC Physical Support,PHY,Premises Related,C,Rents Payable,CC,07/01/2015,PAY00727776,CONT,Contracts,437.5,Revenue,St John the Baptist Church
Brighton & Hove City Council,http://statistics.data.gov.uk/id/local-authority/00ML,Highways and Transportation,BVAHRT,Parking Services,PRK,Supplies and Services,E,Services,EF,07/01/2015,PAY00727778,PARK,Parking,1087,Revenue,British Parking Association
Brighton & Hove City Council,http://statistics.data.gov.uk/id/local-authority/00ML,Non I&E,BVANON,Cap - Housing Services - HRA,4HR,New Construction n Conversion,PB,New Construction n Conversion,PBL5,07/01/2015,PAY00727779,HPAI,Property & Investment,13427.24,Capital,Access Mobility
Brighton & Hove City Council,http://statistics.data.gov.uk/id/local-authority/00ML,Non I&E,BVANON,Cap - Housing Services - HRA,4HR,New Construction n Conversion,PB,New Construction n Conversion,PBL5,07/01/2015,PAY00727780,HPAI,Property & Investment,224.1,Capital,Knightguard Security
Brighton & Hove City Council,http://statistics.data.gov.uk/id/local-authority/00ML,Environment & Regulatory Serv,BVAERS,Management Services (DEC),MGT,Transport Related,D,Direct Transport Costs,DA,07/01/2015,PAY00727784,CICL,City Clean,225.17,Revenue,Rossetts Commercials
Brighton & Hove City Council,http://statistics.data.gov.uk/id/local-authority/00ML,Central Services to the Public,BVACEN,Local Tax Collection,LTC,Supplies and Services,E,Communications n Computing,EH,07/01/2015,PAY00727785,REVS,Revenues and Benefits,1192.34,Revenue,Royal Mail Group Ltd
Brighton & Hove City Council,http://statistics.data.gov.uk/id/local-authority/00ML,Central Support and Overheads,BVACEN,Holding Accounts,PPH,Supplies and Services,E,Communications n Computing,EH,07/01/2015,PAY00727785,PROP,Property and Design,1838.38,Revenue,Royal Mail Group Ltd
Brighton & Hove City Council,http://statistics.data.gov.uk/id/local-authority/00ML,Housing General Fund,BVAHOG,Private Sector Hsing Renewal,PHR,Supplies and Services,E,Communications n Computing,EH,07/01/2015,PAY00727785,PSHG,Private Sector Housing,17.38,Revenue,Royal Mail Group Ltd
Brighton & Hove City Council,http://statistics.data.gov.uk/id/local-authority/00ML,Non I&E,BVANON,Cap - Housing Services - HRA,4HR,New Construction n Conversion,PB,New Construction n Conversion,PBL5,07/01/2015,PAY00727789,HPAI,Property & Investment,2025,Capital,Ascendit Lifts Ltd
Brighton & Hove City Council,http://statistics.data.gov.uk/id/local-authority/00ML,Central Support and Overheads,BVACEN,Support Services (SSC),PPT,Supplies and Services,E,Miscellaneous Expenses,EM,07/01/2015,PAY00727791,BIPR,Bulk Insurance Premia,1231.25,Revenue,ASB Law LLP
Brighton & Hove City Council,http://statistics.data.gov.uk/id/local-authority/00ML,Children`s & Education Serv,BVAEDU,Child Srvcs Direct Pymts,FFD,Third Party Payments,F,Other Establishments,FH,07/01/2015,PAY00727792,DISS,Disability Services,309,Revenue,Payment to Individual
Brighton & Hove City Council,http://statistics.data.gov.uk/id/local-authority/00ML,Housing General Fund,BVAHOG,Homelessness,HML,Premises Related,C,Rents Payable,CC,07/01/2015,PAY00727794,TAAS,Temp Accom and Allocations,4490.61,Revenue,Sanctuary Housing Association
Brighton & Hove City Council,http://statistics.data.gov.uk/id/local-authority/00ML,Housing General Fund,BVAHOG,Homelessness,HML,Premises Related,C,Rents Payable,CC,07/01/2015,PAY00727795,TAAS,Temp Accom and Allocations,2987.74,Revenue,KEM Property Services Ltd
Brighton & Hove City Council,http://statistics.data.gov.uk/id/local-authority/00ML,Adult Social Care,BVASOC,ASC Learning Disabilities,ALD,Direct Employees,A,Salaries,AA,07/01/2015,PAY00727796,DAYS,Day Services,28.64,Revenue,Guidant Group
Brighton & Hove City Council,http://statistics.data.gov.uk/id/local-authority/00ML,Adult Social Care,BVASOC,ASC Learning Disabilities,ALD,Direct Employees,A,Salaries,AA,07/01/2015,PAY00727796,LDAS,LD Accommodation Services,1369.25,Revenue,Guidant Group
Brighton & Hove City Council,http://statistics.data.gov.uk/id/local-authority/00ML,Adult Social Care,BVASOC,ASC Learning Disabilities,ALD,Direct Employees,A,Salaries,AA,07/01/2015,PAY00727796,LDIS,Learning Disabilities,965.4,Revenue,Guidant Group
Brighton & Hove City Council,http://statistics.data.gov.uk/id/local-authority/00ML,Adult Social Care,BVASOC,ASC Learning Disabilities,ALD,Direct Employees,A,Salaries,AA,07/01/2015,PAY00727796,RESP,Respite Services,717.94,Revenue,Guidant Group
Brighton & Hove City Council,http://statistics.data.gov.uk/id/local-authority/00ML,Adult Social Care,BVASOC,ASC Learning Disabilities,ALD,Direct Employees,A,Salaries,AA,07/01/2015,PAY00727796,SUPE,Supported Employment,4.63,Revenue,Guidant Group
Brighton & Hove City Council,http://statistics.data.gov.uk/id/local-authority/00ML,Adult Social Care,BVASOC,ASC Memory Cognition Support,MEM,Direct Employees,A,Salaries,AA,07/01/2015,PAY00727796,DAYS,Day Services,426.63,Revenue,Guidant Group
Brighton & Hove City Council,http://statistics.data.gov.uk/id/local-authority/00ML,Adult Social Care,BVASOC,ASC Memory Cognition Support,MEM,Direct Employees,A,Salaries,AA,07/01/2015,PAY00727796,RCOP,Resource Centres Older People,3104.81,Revenue,Guidant Group
Brighton & Hove City Council,http://statistics.data.gov.uk/id/local-authority/00ML,Adult Social Care,BVASOC,ASC Physical Support,PHY,Direct Employees,A,Salaries,AA,07/01/2015,PAY00727796,DAYS,Day Services,12,Revenue,Guidant Group
Brighton & Hove City Council,http://statistics.data.gov.uk/id/local-authority/00ML,Adult Social Care,BVASOC,ASC Physical Support,PHY,Direct Employees,A,Salaries,AA,07/01/2015,PAY00727796,HOME,Home Care,272.18,Revenue,Guidant Group
Brighton & Hove City Council,http://statistics.data.gov.uk/id/local-authority/00ML,Adult Social Care,BVASOC,ASC Physical Support,PHY,Direct Employees,A,Salaries,AA,07/01/2015,PAY00727796,RCOP,Resource Centres Older People,4988.93,Revenue,Guidant Group
Brighton & Hove City Council,http://statistics.data.gov.uk/id/local-authority/00ML,Adult Social Care,BVASOC,Assistive Equipment & Tech,AET,Direct Employees,A,Salaries,AA,07/01/2015,PAY00727796,SSCT,S75 SCT,376.5,Revenue,Guidant Group
Brighton & Hove City Council,http://statistics.data.gov.uk/id/local-authority/00ML,Adult Social Care,BVASOC,Commission & Service Delivery,CMM,Direct Employees,A,Salaries,AA,07/01/2015,PAY00727796,COMM,Commissioning,16.69,Revenue,Guidant Group
Brighton & Hove City Council,http://statistics.data.gov.uk/id/local-authority/00ML,Adult Social Care,BVASOC,Commission & Service Delivery,CMM,Direct Employees,A,Salaries,AA,07/01/2015,PAY00727796,CONT,Contracts,438,Revenue,Guidant Group
Brighton & Hove City Council,http://statistics.data.gov.uk/id/local-authority/00ML,Adult Social Care,BVASOC,Commission & Service Delivery,CMM,Indirect Employees,B,Training,BM,07/01/2015,PAY00727796,COMM,Commissioning,2.25,Revenue,Guidant Group
Brighton & Hove City Council,http://statistics.data.gov.uk/id/local-authority/00ML,Adult Social Care,BVASOC,Social Care Activities,ACM,Direct Employees,A,Salaries,AA,07/01/2015,PAY00727796,ASIT,Assessment and SIT,9273.53,Revenue,Guidant Group
Brighton & Hove City Council,http://statistics.data.gov.uk/id/local-authority/00ML,Adult Social Care,BVASOC,Social Care Activities,ACM,Direct Employees,A,Salaries,AA,07/01/2015,PAY00727796,SPFT,S75 SPFT,2673.67,Revenue,Guidant Group
Brighton & Hove City Council,http://statistics.data.gov.uk/id/local-authority/00ML,Central Services to the Public,BVACEN,Reg - Birth Death and Marriage,RBD,Direct Employees,A,Salaries,AA,07/01/2015,PAY00727796,LIFE,Life Events,1071.71,Revenue,Guidant Group
Brighton & Hove City Council,http://statistics.data.gov.uk/id/local-authority/00ML,Central Support and Overheads,BVACEN,Support Services (SSC),PPT,Direct Employees,A,Salaries,AA,07/01/2015,PAY00727796,CMNY,Communities and Equalities,338.25,Revenue,Guidant Group
Brighton & Hove City Council,http://statistics.data.gov.uk/id/local-authority/00ML,Central Support and Overheads,BVACEN,Support Services (SSC),PPT,Direct Employees,A,Salaries,AA,07/01/2015,PAY00727796,FINS,Financial Services,416.99,Revenue,Guidant Group
Brighton & Hove City Council,http://statistics.data.gov.uk/id/local-authority/00ML,Central Support and Overheads,BVACEN,Support Services (SSC),PPT,Direct Employees,A,Salaries,AA,07/01/2015,PAY00727796,ICTA,ICT,28203.07,Revenue,Guidant Group
Brighton & Hove City Council,http://statistics.data.gov.uk/id/local-authority/00ML,Central Support and Overheads,BVACEN,Support Services (SSC),PPT,Direct Employees,A,Salaries,AA,07/01/2015,PAY00727796,LEGS,Legal Services,3428.14,Revenue,Guidant Group
Brighton & Hove City Council,http://statistics.data.gov.uk/id/local-authority/00ML,Central Support and Overheads,BVACEN,Support Services (SSC),PPT,Direct Employees,A,Salaries,AA,07/01/2015,PAY00727796,ORGD,Organisational Development,381.23,Revenue,Guidant Group
Brighton & Hove City Council,http://statistics.data.gov.uk/id/local-authority/00ML,Central Support and Overheads,BVACEN,Support Services (SSC),PPT,Direct Employees,A,Salaries,AA,07/01/2015,PAY00727796,PERR,Performance & Improvement,341.53,Revenue,Guidant Group
Brighton & Hove City Council,http://statistics.data.gov.uk/id/local-authority/00ML,Central Support and Overheads,BVACEN,Support Services (SSC),PPT,Direct Employees,A,Salaries,AA,07/01/2015,PAY00727796,POLI,Policy and Initiatives,13.32,Revenue,Guidant Group
Brighton & Hove City Council,http://statistics.data.gov.uk/id/local-authority/00ML,Central Support and Overheads,BVACEN,Support Services (SSC),PPT,Direct Employees,A,Salaries,AA,07/01/2015,PAY00727796,POLY,Policy,470.75,Revenue,Guidant Group
Brighton & Hove City Council,http://statistics.data.gov.uk/id/local-authority/00ML,Central Support and Overheads,BVACEN,Support Services (SSC),PPT,Direct Employees,A,Salaries,AA,07/01/2015,PAY00727796,PROP,Property and Design,4307.07,Revenue,Guidant Group
Brighton & Hove City Council,http://statistics.data.gov.uk/id/local-authority/00ML,Children`s & Education Serv,BVAEDU,Child Srvcs Com and Scl Work,FCW,Direct Employees,A,Salaries,AA,07/01/2015,PAY00727796,DISS,Disability Services,724.2,Revenue,Guidant Group
Brighton & Hove City Council,http://statistics.data.gov.uk/id/local-authority/00ML,Children`s & Education Serv,BVAEDU,Child Srvcs Com and Scl Work,FCW,Direct Employees,A,Salaries,AA,07/01/2015,PAY00727796,SOCK,Social Work,12245.17,Revenue,Guidant Group
Brighton & Hove City Council,http://statistics.data.gov.uk/id/local-authority/00ML,Children`s & Education Serv,BVAEDU,Child Srvcs Com and Scl Work,FCW,Direct Employees,A,Salaries,AA,07/01/2015,PAY00727796,SPAS,Specialist Assessments,9.19,Revenue,Guidant Group
Brighton & Hove City Council,http://statistics.data.gov.uk/id/local-authority/00ML,Children`s & Education Serv,BVAEDU,Child Srvcs - Fostering,FLF,Direct Employees,A,Salaries,AA,07/01/2015,PAY00727796,CHIC,Children In Care,2581.52,Revenue,Guidant Group
Brighton & Hove City Council,http://statistics.data.gov.uk/id/local-authority/00ML,Children`s & Education Serv,BVAEDU,Child Srvcs Other,FAX,Direct Employees,A,Salaries,AA,07/01/2015,PAY00727796,CHIP,Child Protection,493,Revenue,Guidant Group
Brighton & Hove City Council,http://statistics.data.gov.uk/id/local-authority/00ML,Children`s & Education Serv,BVAEDU,Child Srvcs Other,FAX,Direct Employees,A,Salaries,AA,07/01/2015,PAY00727796,FAMP,Families\Prevention,3.55,Revenue,Guidant Group
Brighton & Hove City Council,http://statistics.data.gov.uk/id/local-authority/00ML,Children`s & Education Serv,BVAEDU,Child Srvcs - Other Fam Supp,FFX,Direct Employees,A,Salaries,AA,07/01/2015,PAY00727796,DISS,Disability Services,1942.98,Revenue,Guidant Group
Brighton & Hove City Council,http://statistics.data.gov.uk/id/local-authority/00ML,Children`s & Education Serv,BVAEDU,Child Srvcs - Other Fam Supp,FFX,Direct Employees,A,Salaries,AA,07/01/2015,PAY00727796,FAMP,Families\Prevention,527.65,Revenue,Guidant Group
Brighton & Hove City Council,http://statistics.data.gov.uk/id/local-authority/00ML,Children`s & Education Serv,BVAEDU,Child Srvcs - Other Fam Supp,FFX,Direct Employees,A,Salaries,AA,07/01/2015,PAY00727796,SFSC,Stronger Families Stronger Com,844.82,Revenue,Guidant Group
Brighton & Hove City Council,http://statistics.data.gov.uk/id/local-authority/00ML,Children`s & Education Serv,BVAEDU,Child Srvcs - Residential Svcs,FLR,Direct Employees,A,Salaries,AA,07/01/2015,PAY00727796,DISS,Disability Services,2722.99,Revenue,Guidant Group
Brighton & Hove City Council,http://statistics.data.gov.uk/id/local-authority/00ML,Children`s & Education Serv,BVAEDU,Child Srvcs - Yth Offender Tm,FYY,Direct Employees,A,Salaries,AA,07/01/2015,PAY00727796,FAMP,Families\Prevention,1682.49,Revenue,Guidant Group
Brighton & Hove City Council,http://statistics.data.gov.uk/id/local-authority/00ML,Children`s & Education Serv,BVAEDU,Ed Ed Other LA Attrib Sch,ELA,Direct Employees,A,Salaries,AA,07/01/2015,PAY00727796,OEDS,Other Education Support,7.5,Revenue,Guidant Group
Brighton & Hove City Council,http://statistics.data.gov.uk/id/local-authority/00ML,Children`s & Education Serv,BVAEDU,Ed EY Central,EAE,Direct Employees,A,Salaries,AA,07/01/2015,PAY00727796,EYRS,Early Years,2676.78,Revenue,Guidant Group
Brighton & Hove City Council,http://statistics.data.gov.uk/id/local-authority/00ML,Children`s & Education Serv,BVAEDU,Ed Mgmt and Support Services,EMG,Direct Employees,A,Salaries,AA,07/01/2015,PAY00727796,MUSE,Music Service,14.82,Revenue,Guidant Group
Brighton & Hove City Council,http://statistics.data.gov.uk/id/local-authority/00ML,Children`s & Education Serv,BVAEDU,Ed Mgmt and Support Services,EMG,Direct Employees,A,Salaries,AA,07/01/2015,PAY00727796,OEDS,Other Education Support,196.73,Revenue,Guidant Group
Brighton & Hove City Council,http://statistics.data.gov.uk/id/local-authority/00ML,Children`s & Education Serv,BVAEDU,Ed Mgmt and Support Services,EMG,Direct Employees,A,Salaries,AA,07/01/2015,PAY00727796,SEN,SEN,8.5,Revenue,Guidant Group
Brighton & Hove City Council,http://statistics.data.gov.uk/id/local-authority/00ML,Children`s & Education Serv,BVAEDU,Ed Special Ed,EKE,Direct Employees,A,Salaries,AA,07/01/2015,PAY00727796,SEN,SEN,3721.79,Revenue,Guidant Group
Brighton & Hove City Council,http://statistics.data.gov.uk/id/local-authority/00ML,Children`s & Education Serv,BVAEDU,Ed Special Ed,EKE,Direct Employees,A,Salaries,AA,07/01/2015,PAY00727796,SENS,Special Educational Needs,7.5,Revenue,Guidant Group
Brighton & Hove City Council,http://statistics.data.gov.uk/id/local-authority/00ML,Children`s & Education Serv,BVAEDU,Management Services (DEC),MGT,Direct Employees,A,Salaries,AA,07/01/2015,PAY00727796,OEDS,Other Education Support,477.75,Revenue,Guidant Group
Brighton & Hove City Council,http://statistics.data.gov.uk/id/local-authority/00ML,Children`s & Education Serv,BVAEDU,Management Services (DEC),MGT,Direct Employees,A,Salaries,AA,07/01/2015,PAY00727796,SOCK,Social Work,1087.75,Revenue,Guidant Group
Brighton & Hove City Council,http://statistics.data.gov.uk/id/local-authority/00ML,Cultural and Related Serv,BVACUL,Culture and Heritage,CHG,Direct Employees,A,Salaries,AA,07/01/2015,PAY00727796,RPMU,Royal Pavilion and Museums,268.03,Revenue,Guidant Group
Brighton & Hove City Council,http://statistics.data.gov.uk/id/local-authority/00ML,Cultural and Related Serv,BVACUL,Culture and Heritage,CHG,Direct Employees,A,Wages,AB,07/01/2015,PAY00727796,VENU,Venues,1946.73,Revenue,Guidant Group
Brighton & Hove City Council,http://statistics.data.gov.uk/id/local-authority/00ML,Cultural and Related Serv,BVACUL,Open Spaces,PEN,Direct Employees,A,Salaries,AA,07/01/2015,PAY00727796,CIPK,City Parks,912.58,Revenue,Guidant Group
Brighton & Hove City Council,http://statistics.data.gov.uk/id/local-authority/00ML,Cultural and Related Serv,BVACUL,Recreation and Sport,REC,Direct Employees,A,Salaries,AA,07/01/2015,PAY00727796,SDEV,Sports Development,704.51,Revenue,Guidant Group
Brighton & Hove City Council,http://statistics.data.gov.uk/id/local-authority/00ML,Environment & Regulatory Serv,BVAERS,Cem Crem and Mortuary Services,CCM,Direct Employees,A,Salaries,AA,07/01/2015,PAY00727796,LIFE,Life Events,407.15,Revenue,Guidant Group
Brighton & Hove City Council,http://statistics.data.gov.uk/id/local-authority/00ML,Environment & Regulatory Serv,BVAERS,Consumer Protection,CNP,Direct Employees,A,Salaries,AA,07/01/2015,PAY00727796,PUPO,Public Protection,585.22,Revenue,Guidant Group
Brighton & Hove City Council,http://statistics.data.gov.uk/id/local-authority/00ML,Environment & Regulatory Serv,BVAERS,Environmental Health,EVH,Direct Employees,A,Salaries,AA,07/01/2015,PAY00727796,PUPO,Public Protection,7.5,Revenue,Guidant Group
Brighton & Hove City Council,http://statistics.data.gov.uk/id/local-authority/00ML,Environment & Regulatory Serv,BVAERS,Management Services (DEC),MGT,Direct Employees,A,Salaries,AA,07/01/2015,PAY00727796,CICL,City Clean,2112.48,Revenue,Guidant Group
Brighton & Hove City Council,http://statistics.data.gov.uk/id/local-authority/00ML,Environment & Regulatory Serv,BVAERS,Street Cleansing,CLE,Direct Employees,A,Salaries,AA,07/01/2015,PAY00727796,CICL,City Clean,4074.7,Revenue,Guidant Group
Brighton & Hove City Council,http://statistics.data.gov.uk/id/local-authority/00ML,Environment & Regulatory Serv,BVAERS,Waste Management,WMT,Direct Employees,A,Salaries,AA,07/01/2015,PAY00727796,CICL,City Clean,3751.23,Revenue,Guidant Group
Brighton & Hove City Council,http://statistics.data.gov.uk/id/local-authority/00ML,Highways and Transportation,BVAHRT,Highways and Roads - Mntnce,HRM,Direct Employees,A,Salaries,AA,07/01/2015,PAY00727796,HIGH,Highways,635.05,Revenue,Guidant Group
Brighton & Hove City Council,http://statistics.data.gov.uk/id/local-authority/00ML,Highways and Transportation,BVAHRT,Management Services (DEC),MGT,Direct Employees,A,Salaries,AA,07/01/2015,PAY00727796,HOTR,Head of Transport,4222.45,Revenue,Guidant Group
Brighton & Hove City Council,http://statistics.data.gov.uk/id/local-authority/00ML,Highways and Transportation,BVAHRT,Parking Services,PRK,Direct Employees,A,Salaries,AA,07/01/2015,PAY00727796,PARK,Parking,1993.77,Revenue,Guidant Group
Brighton & Hove City Council,http://statistics.data.gov.uk/id/local-authority/00ML,Highways and Transportation,BVAHRT,Traffic Mgmnt and Road Safety,TMR,Direct Employees,A,Salaries,AA,07/01/2015,PAY00727796,TPRS,Transport Plan and Road Safety,833,Revenue,Guidant Group
Brighton & Hove City Council,http://statistics.data.gov.uk/id/local-authority/00ML,Highways and Transportation,BVAHRT,Transport Plan Policy Strategy,TPP,Direct Employees,A,Salaries,AA,07/01/2015,PAY00727796,TPRS,Transport Plan and Road Safety,307.15,Revenue,Guidant Group
Brighton & Hove City Council,http://statistics.data.gov.uk/id/local-authority/00ML,Housing General Fund,BVAHOG,Homelessness,HML,Direct Employees,A,Salaries,AA,07/01/2015,PAY00727796,ASSA,Hostel Accommodation,3064.4,Revenue,Guidant Group
Brighton & Hove City Council,http://statistics.data.gov.uk/id/local-authority/00ML,Housing General Fund,BVAHOG,Homelessness,HML,Direct Employees,A,Salaries,AA,07/01/2015,PAY00727796,HOPT,Housing Options,256,Revenue,Guidant Group
Brighton & Hove City Council,http://statistics.data.gov.uk/id/local-authority/00ML,Housing General Fund,BVAHOG,Homelessness,HML,Direct Employees,A,Salaries,AA,07/01/2015,PAY00727796,TAAS,Temp Accom and Allocations,1422.52,Revenue,Guidant Group
Brighton & Hove City Council,http://statistics.data.gov.uk/id/local-authority/00ML,Housing General Fund,BVAHOG,Homelessness,HML,Direct Employees,A,Salaries,AA,07/01/2015,PAY00727796,TRAV,Travellers,516.6,Revenue,Guidant Group
Brighton & Hove City Council,http://statistics.data.gov.uk/id/local-authority/00ML,Housing General Fund,BVAHOG,Hsing Benefits,HGB,Direct Employees,A,Salaries,AA,07/01/2015,PAY00727796,AUDB,Audit and Business Risk,414.4,Revenue,Guidant Group
Brighton & Hove City Council,http://statistics.data.gov.uk/id/local-authority/00ML,Housing General Fund,BVAHOG,Hsing Benefits,HGB,Direct Employees,A,Salaries,AA,07/01/2015,PAY00727796,REVS,Revenues and Benefits,9.69,Revenue,Guidant Group
Brighton & Hove City Council,http://statistics.data.gov.uk/id/local-authority/00ML,Housing General Fund,BVAHOG,Hsing Welfare,HGW,Direct Employees,A,Salaries,AA,07/01/2015,PAY00727796,HOSS,Supported Accommodation,438,Revenue,Guidant Group
Brighton & Hove City Council,http://statistics.data.gov.uk/id/local-authority/00ML,Housing General Fund,BVAHOG,Management Services (DEC),MGT,Direct Employees,A,Salaries,AA,07/01/2015,PAY00727796,HOHG,Head of Housing GF,4105.74,Revenue,Guidant Group
Brighton & Hove City Council,http://statistics.data.gov.uk/id/local-authority/00ML,Housing General Fund,BVAHOG,Private Sector Hsing Renewal,PHR,Direct Employees,A,Salaries,AA,07/01/2015,PAY00727796,PSHG,Private Sector Housing,1469.1,Revenue,Guidant Group
Brighton & Hove City Council,http://statistics.data.gov.uk/id/local-authority/00ML,Housing Revenue Account,BVAHOU,Housing Del & Regeneration HRA,HGD,Direct Employees,A,Salaries,AA,07/01/2015,PAY00727796,HREG,Head of Regeneration,564.57,Revenue,Guidant Group
Brighton & Hove City Council,http://statistics.data.gov.uk/id/local-authority/00ML,Housing Revenue Account,BVAHOU,Hsing Management - HRA,HGM,Direct Employees,A,Salaries,AA,07/01/2015,PAY00727796,HIII,Income Involvement Improvement,2515.63,Revenue,Guidant Group
Brighton & Hove City Council,http://statistics.data.gov.uk/id/local-authority/00ML,Housing Revenue Account,BVAHOU,Hsing Management - HRA,HGM,Direct Employees,A,Salaries,AA,07/01/2015,PAY00727796,HPAI,Property & Investment,4050.03,Revenue,Guidant Group
Brighton & Hove City Council,http://statistics.data.gov.uk/id/local-authority/00ML,Housing Revenue Account,BVAHOU,Hsing Management - HRA,HGM,Direct Employees,A,Salaries,AA,07/01/2015,PAY00727796,HTEN,Tenancy Services,5711.59,Revenue,Guidant Group
Brighton & Hove City Council,http://statistics.data.gov.uk/id/local-authority/00ML,Non-BHC Organisations,BVANON,Non-Council,NNC,Direct Employees,A,Salaries,AA,07/01/2015,PAY00727796,NBHC,Non Council,192.72,Revenue,Guidant Group
Brighton & Hove City Council,http://statistics.data.gov.uk/id/local-authority/00ML,Non-BHC Organisations,BVANON,Non-Council,NNC,Direct Employees,A,Salaries,AA,07/01/2015,PAY00727796,POLI,Policy and Initiatives,440.92,Revenue,Guidant Group
Brighton & Hove City Council,http://statistics.data.gov.uk/id/local-authority/00ML,Planning and Development,BVAPLA,Development Control,DEV,Direct Employees,A,Salaries,AA,07/01/2015,PAY00727796,DEVP,Development Planning,3020.75,Revenue,Guidant Group
Brighton & Hove City Council,http://statistics.data.gov.uk/id/local-authority/00ML,Planning and Development,BVAPLA,Environmental Initiatives,EVN,Direct Employees,A,Salaries,AA,07/01/2015,PAY00727796,HOTR,Head of Transport,5.25,Revenue,Guidant Group
Brighton & Hove City Council,http://statistics.data.gov.uk/id/local-authority/00ML,Adult Social Care,BVASOC,ASC Learning Disabilities,ALD,Customer n Client Receipts,M,Fees n Charges,MB,07/01/2015,PAY00727798,LDIS,Learning Disabilities,-350.6,Revenue,P T Hussey Autism & Aspergers Care Servs
Brighton & Hove City Council,http://statistics.data.gov.uk/id/local-authority/00ML,Adult Social Care,BVASOC,ASC Learning Disabilities,ALD,Third Party Payments,F,Other Establishments,FH,07/01/2015,PAY00727798,LDIS,Learning Disabilities,4800,Revenue,P T Hussey Autism & Aspergers Care Servs
Brighton & Hove City Council,http://statistics.data.gov.uk/id/local-authority/00ML,Children`s & Education Serv,BVAEDU,Child Srvcs Direct Pymts,FFD,Third Party Payments,F,Other Establishments,FH,07/01/2015,PAY00727799,DISS,Disability Services,409.8,Revenue,Payment to Individual
Brighton & Hove City Council,http://statistics.data.gov.uk/id/local-authority/00ML,Adult Social Care,BVASOC,ASC Physical Support,PHY,Customer n Client Receipts,M,Fees n Charges,MB,07/01/2015,PAY00727800,PHYS,Physical Support,-1745.13,Revenue,Birchgrove Healthcare (Sussex) Ltd
Brighton & Hove City Council,http://statistics.data.gov.uk/id/local-authority/00ML,Adult Social Care,BVASOC,ASC Physical Support,PHY,Third Party Payments,F,Other Establishments,FH,07/01/2015,PAY00727800,PHYS,Physical Support,7071.43,Revenue,Birchgrove Healthcare (Sussex) Ltd
Brighton & Hove City Council,http://statistics.data.gov.uk/id/local-authority/00ML,Children`s & Education Serv,BVAEDU,Ed Ed Other Other,ENF,Premises Related,C,Repair Maint n Alterations,CA,07/01/2015,PAY00727801,PROP,Property and Design,960,Revenue,Tim Jordan Grounds Maintenance Ltd
Brighton & Hove City Council,http://statistics.data.gov.uk/id/local-authority/00ML,Central Support and Overheads,BVACEN,Support Services (SSC),PPT,Supplies and Services,E,Services,EF,07/01/2015,PAY00727803,LEGS,Legal Services,295,Revenue,City & Financial Global Ltd
Brighton & Hove City Council,http://statistics.data.gov.uk/id/local-authority/00ML,Housing General Fund,BVAHOG,Homelessness,HML,Premises Related,C,Rents Payable,CC,07/01/2015,PAY00727805,TAAS,Temp Accom and Allocations,725,Revenue,Payment to Individual
Brighton & Hove City Council,http://statistics.data.gov.uk/id/local-authority/00ML,Adult Social Care,BVASOC,ASC Physical Support,PHY,Customer n Client Receipts,M,Fees n Charges,MB,07/01/2015,PAY00727806,PHYS,Physical Support,-1204.09,Revenue,Glentworth House Nursing Home
Brighton & Hove City Council,http://statistics.data.gov.uk/id/local-authority/00ML,Adult Social Care,BVASOC,ASC Physical Support,PHY,Third Party Payments,F,Other Establishments,FH,07/01/2015,PAY00727806,PHYS,Physical Support,8257.14,Revenue,Glentworth House Nursing Home
Brighton & Hove City Council,http://statistics.data.gov.uk/id/local-authority/00ML,Central Support and Overheads,BVACEN,Support Services (SSC),PPT,Third Party Payments,F,Other Establishments,FH,07/01/2015,PAY00727806,FINS,Financial Services,-1430.31,Revenue,Glentworth House Nursing Home
Brighton & Hove City Council,http://statistics.data.gov.uk/id/local-authority/00ML,Children`s & Education Serv,BVAEDU,Child Srvcs Direct Pymts,FFD,Third Party Payments,F,Other Establishments,FH,07/01/2015,PAY00727807,DISS,Disability Services,458.15,Revenue,Payment to Individual
Brighton & Hove City Council,http://statistics.data.gov.uk/id/local-authority/00ML,Adult Social Care,BVASOC,ASC Learning Disabilities,ALD,Third Party Payments,F,Other Establishments,FH,07/01/2015,PAY00727808,LDIS,Learning Disabilities,335.99,Revenue,Payment to Individual
Brighton & Hove City Council,http://statistics.data.gov.uk/id/local-authority/00ML,Central Support and Overheads,BVACEN,Support Services (SSC),PPT,Premises Related,C,Repair Maint n Alterations,CA,07/01/2015,PAY00727809,PROP,Property and Design,985,Revenue,Lee Sullivan Contract Flooring Limited
Brighton & Hove City Council,http://statistics.data.gov.uk/id/local-authority/00ML,Children`s & Education Serv,BVAEDU,Child Srvcs Direct Pymts,FFD,Third Party Payments,F,Other Establishments,FH,07/01/2015,PAY00727810,DISS,Disability Services,766.86,Revenue,Payment to Individual
Brighton & Hove City Council,http://statistics.data.gov.uk/id/local-authority/00ML,Children`s & Education Serv,BVAEDU,Ed Ed Other LA Attrib Sch,ELA,Transport Related,D,Public Transport,DD,07/01/2015,PAY00727811,OEDS,Other Education Support,357.5,Revenue,Payment to Individual
Brighton & Hove City Council,http://statistics.data.gov.uk/id/local-authority/00ML,Housing General Fund,BVAHOG,Homelessness,HML,Premises Related,C,Rents Payable,CC,07/01/2015,PAY00727813,TAAS,Temp Accom and Allocations,850,Revenue,Payment to Individual
Brighton & Hove City Council,http://statistics.data.gov.uk/id/local-authority/00ML,Children`s & Education Serv,BVAEDU,Child Srvcs Direct Pymts,FFD,Third Party Payments,F,Other Establishments,FH,07/01/2015,PAY00727814,DISS,Disability Services,297.9,Revenue,Payment to Individual
Brighton & Hove City Council,http://statistics.data.gov.uk/id/local-authority/00ML,Housing General Fund,BVAHOG,Homelessness,HML,Premises Related,C,Rents Payable,CC,07/01/2015,PAY00727815,TAAS,Temp Accom and Allocations,1000,Revenue,Payment to Individual
Brighton & Hove City Council,http://statistics.data.gov.uk/id/local-authority/00ML,Highways and Transportation,BVAHRT,Parking Services,PRK,Supplies and Services,E,Equip't Furniture n Materials,EA,07/01/2015,PAY00727816,PARK,Parking,11741.5,Revenue,Parkeon Ltd
Brighton & Hove City Council,http://statistics.data.gov.uk/id/local-authority/00ML,Children`s & Education Serv,BVAEDU,Management Services (DEC),MGT,Supplies and Services,E,Services,EF,07/01/2015,PAY00727819,SOCK,Social Work,1537.5,Revenue,Payment to Individual
Brighton & Hove City Council,http://statistics.data.gov.uk/id/local-authority/00ML,Non I&E,BVANON,Cap - Housing Services - HRA,4HR,New Construction n Conversion,PB,New Construction n Conversion,PBL5,07/01/2015,PAY00727820,HPAI,Property & Investment,1250,Capital,E N V Surveys Ltd
Brighton & Hove City Council,http://statistics.data.gov.uk/id/local-authority/00ML,Children`s & Education Serv,BVAEDU,Child Srvcs - Other Fam Supp,FFX,Transfer Payments,G,Other Transfer Payments,GD,07/01/2015,PAY00727821,FAMP,Families\Prevention,900,Revenue,Khalil Properties
Brighton & Hove City Council,http://statistics.data.gov.uk/id/local-authority/00ML,Adult Social Care,BVASOC,ASC Memory Cognition Support,MEM,Supplies and Services,E,Catering,EB,07/01/2015,PAY00727822,RCOP,Resource Centres Older People,673.58,Revenue,West Horsley Dairy Ltd
Brighton & Hove City Council,http://statistics.data.gov.uk/id/local-authority/00ML,Non I&E,BVANON,Cap - Housing Services - HRA,4HR,New Construction n Conversion,PB,New Construction n Conversion,PBL5,07/01/2015,PAY00727824,HPAI,Property & Investment,3682.5,Capital,T Brown Group Ltd
Brighton & Hove City Council,http://statistics.data.gov.uk/id/local-authority/00ML,Children`s & Education Serv,BVAEDU,Management Services (DEC),MGT,Supplies and Services,E,Services,EF,07/01/2015,PAY00727825,SOCK,Social Work,3685.2,Revenue,Payment to Individual
Brighton & Hove City Council,http://statistics.data.gov.uk/id/local-authority/00ML,Adult Social Care,BVASOC,ASC Memory Cognition Support,MEM,Supplies and Services,E,Catering,EB,07/01/2015,PAY00727828,RCOP,Resource Centres Older People,613.79,Revenue,3663 BFS Group Ltd
Brighton & Hove City Council,http://statistics.data.gov.uk/id/local-authority/00ML,Public Health,BVAPHE,Public Health,PHE,Supplies and Services,E,Miscellaneous Expenses,EM,07/01/2015,PAY00727829,PHCM,PH Commissioning,2750,Revenue,Brighton Unemployed Ctr Families Project Playroom
Brighton & Hove City Council,http://statistics.data.gov.uk/id/local-authority/00ML,Housing Revenue Account,BVAHOU,Hsing Management - HRA,HGM,Supplies and Services,E,Grants n Subscriptions,EK,07/01/2015,PAY00727831,HPAI,Property & Investment,464,Revenue,Chartered Institute Of Housing
Brighton & Hove City Council,http://statistics.data.gov.uk/id/local-authority/00ML,Children`s & Education Serv,BVAEDU,Management Services (DEC),MGT,Supplies and Services,E,Services,EF,07/01/2015,PAY00727834,SOCK,Social Work,750,Revenue,Payment to Individual
Brighton & Hove City Council,http://statistics.data.gov.uk/id/local-authority/00ML,Non I&E,BVANON,Cap - Housing Services - HRA,4HR,New Construction n Conversion,PB,New Construction n Conversion,PBL5,07/01/2015,PAY00727835,HPAI,Property & Investment,700,Capital,Gyoury Self Partnership
Brighton & Hove City Council,http://statistics.data.gov.uk/id/local-authority/00ML,Non I&E,BVANON,CAP Housing Services GF,4HG,Capital Grants,PF,Capital Grants,PFL5,07/01/2015,PAY00727836,PSHG,Private Sector Housing,6364.16,Capital,J G & J R Langridge Ltd
Brighton & Hove City Council,http://statistics.data.gov.uk/id/local-authority/00ML,Non I&E,BVANON,Cap - Housing Services - HRA,4HR,New Construction n Conversion,PB,New Construction n Conversion,PBL5,07/01/2015,PAY00727836,HPAI,Property & Investment,2750,Capital,J G & J R Langridge Ltd
Brighton & Hove City Council,http://statistics.data.gov.uk/id/local-authority/00ML,Central Support and Overheads,BVACEN,Support Services (SSC),PPT,Supplies and Services,E,Equip't Furniture n Materials,EA,07/01/2015,PAY00727837,PROP,Property and Design,3854.68,Revenue,Kent County Council Commercial Services
Brighton & Hove City Council,http://statistics.data.gov.uk/id/local-authority/00ML,Children`s & Education Serv,BVAEDU,Child Srvcs Other,FAX,Supplies and Services,E,Miscellaneous Expenses,EM,07/01/2015,PAY00727837,YOTS,Youth Service,29.98,Revenue,Kent County Council Commercial Services
Brighton & Hove City Council,http://statistics.data.gov.uk/id/local-authority/00ML,Children`s & Education Serv,BVAEDU,Ed Srvcs YP Youth Srvcs,ENY,Premises Related,C,Repair Maint n Alterations,CA,07/01/2015,PAY00727837,YOTS,Youth Service,89.99,Revenue,Kent County Council Commercial Services
Brighton & Hove City Council,http://statistics.data.gov.uk/id/local-authority/00ML,Cultural and Related Serv,BVACUL,Culture and Heritage,CHG,Supplies and Services,E,Equip't Furniture n Materials,EA,07/01/2015,PAY00727837,RPMU,Royal Pavilion and Museums,77.98,Revenue,Kent County Council Commercial Services
Brighton & Hove City Council,http://statistics.data.gov.uk/id/local-authority/00ML,Children`s & Education Serv,BVAEDU,Child Srvcs - Othr LAC Svcs,FLX,Transfer Payments,G,Other Transfer Payments,GD,07/01/2015,PAY00727838,CHIC,Children In Care,776.48,Revenue,Impact Initiatives
Brighton & Hove City Council,http://statistics.data.gov.uk/id/local-authority/00ML,Cultural and Related Serv,BVACUL,Culture and Heritage,CHG,Supplies and Services,E,Miscellaneous Expenses,EM,07/01/2015,PAY00727839,VENU,Venues,4232.4,Revenue,PMW Limited
Brighton & Hove City Council,http://statistics.data.gov.uk/id/local-authority/00ML,Children`s & Education Serv,BVAEDU,Ed Special Ed,EKE,Third Party Payments,F,Other Agencies,FL,07/01/2015,PAY00727843,SEN,SEN,11730,Revenue,Sussex Community NHS Trust
Brighton & Hove City Council,http://statistics.data.gov.uk/id/local-authority/00ML,Children`s & Education Serv,BVAEDU,Management Services (DEC),MGT,Premises Related,C,Rents Payable,CC,07/01/2015,PAY00727844,OEDS,Other Education Support,490,Revenue,Sussex County Cricket Club
Brighton & Hove City Council,http://statistics.data.gov.uk/id/local-authority/00ML,Adult Social Care,BVASOC,ASC Learning Disabilities,ALD,Premises Related,C,Cleaning n Domestic Supps,CH,07/01/2015,PAY00727846,LDAS,LD Accommodation Services,407.33,Revenue,Wightman & Parrish Ltd
Brighton & Hove City Council,http://statistics.data.gov.uk/id/local-authority/00ML,Adult Social Care,BVASOC,ASC Learning Disabilities,ALD,Supplies and Services,E,Equip't Furniture n Materials,EA,07/01/2015,PAY00727846,LDAS,LD Accommodation Services,11.85,Revenue,Wightman & Parrish Ltd
Brighton & Hove City Council,http://statistics.data.gov.uk/id/local-authority/00ML,Adult Social Care,BVASOC,ASC Physical Support,PHY,Premises Related,C,Cleaning n Domestic Supps,CH,07/01/2015,PAY00727846,DAYS,Day Services,41.32,Revenue,Wightman & Parrish Ltd
Brighton & Hove City Council,http://statistics.data.gov.uk/id/local-authority/00ML,Adult Social Care,BVASOC,ASC Physical Support,PHY,Premises Related,C,Cleaning n Domestic Supps,CH,07/01/2015,PAY00727846,RCOP,Resource Centres Older People,81,Revenue,Wightman & Parrish Ltd
Brighton & Hove City Council,http://statistics.data.gov.uk/id/local-authority/00ML,Housing General Fund,BVAHOG,Homelessness,HML,Premises Related,C,Cleaning n Domestic Supps,CH,07/01/2015,PAY00727846,ASSA,Hostel Accommodation,83.94,Revenue,Wightman & Parrish Ltd
Brighton & Hove City Council,http://statistics.data.gov.uk/id/local-authority/00ML,Adult Social Care,BVASOC,ASC Learning Disabilities,ALD,Customer n Client Receipts,M,Fees n Charges,MB,07/01/2015,PAY00727848,LDIS,Learning Disabilities,-99,Revenue,Carewatch (Brighton & Hove)
Brighton & Hove City Council,http://statistics.data.gov.uk/id/local-authority/00ML,Adult Social Care,BVASOC,ASC Learning Disabilities,ALD,Third Party Payments,F,Other Establishments,FH,07/01/2015,PAY00727848,LDIS,Learning Disabilities,734.3,Revenue,Carewatch (Brighton & Hove)
Brighton & Hove City Council,http://statistics.data.gov.uk/id/local-authority/00ML,Adult Social Care,BVASOC,ASC Memory Cognition Support,MEM,Customer n Client Receipts,M,Fees n Charges,MB,07/01/2015,PAY00727848,COGN,Memory Cognition Support,-1221,Revenue,Carewatch (Brighton & Hove)
Brighton & Hove City Council,http://statistics.data.gov.uk/id/local-authority/00ML,Adult Social Care,BVASOC,ASC Memory Cognition Support,MEM,Third Party Payments,F,Other Establishments,FH,07/01/2015,PAY00727848,COGN,Memory Cognition Support,6501,Revenue,Carewatch (Brighton & Hove)
Brighton & Hove City Council,http://statistics.data.gov.uk/id/local-authority/00ML,Adult Social Care,BVASOC,ASC Mental Health Support,MHP,Customer n Client Receipts,M,Fees n Charges,MB,07/01/2015,PAY00727848,MENH,Mental Health Support,-398,Revenue,Carewatch (Brighton & Hove)
Brighton & Hove City Council,http://statistics.data.gov.uk/id/local-authority/00ML,Adult Social Care,BVASOC,ASC Mental Health Support,MHP,Third Party Payments,F,Other Establishments,FH,07/01/2015,PAY00727848,MENH,Mental Health Support,2170.5,Revenue,Carewatch (Brighton & Hove)
Brighton & Hove City Council,http://statistics.data.gov.uk/id/local-authority/00ML,Adult Social Care,BVASOC,ASC Physical Support,PHY,Customer n Client Receipts,M,Fees n Charges,MB,07/01/2015,PAY00727848,PHYS,Physical Support,-9266.43,Revenue,Carewatch (Brighton & Hove)
Brighton & Hove City Council,http://statistics.data.gov.uk/id/local-authority/00ML,Adult Social Care,BVASOC,ASC Physical Support,PHY,Third Party Payments,F,Other Establishments,FH,07/01/2015,PAY00727848,PHYS,Physical Support,64202.39,Revenue,Carewatch (Brighton & Hove)
Brighton & Hove City Council,http://statistics.data.gov.uk/id/local-authority/00ML,Adult Social Care,BVASOC,ASC Memory Cognition Support,MEM,Premises Related,C,Cleaning n Domestic Supps,CH,07/01/2015,PAY00727849,RCOP,Resource Centres Older People,288.89,Revenue,Nursing & Hygiene Group
Brighton & Hove City Council,http://statistics.data.gov.uk/id/local-authority/00ML,Adult Social Care,BVASOC,ASC Memory Cognition Support,MEM,Customer n Client Receipts,M,Fees n Charges,MB,07/01/2015,PAY00727850,COGN,Memory Cognition Support,1464.78,Revenue,Bravery Care
Brighton & Hove City Council,http://statistics.data.gov.uk/id/local-authority/00ML,Adult Social Care,BVASOC,ASC Memory Cognition Support,MEM,Customer n Client Receipts,M,Fees n Charges,MB,07/01/2015,PAY00727851,COGN,Memory Cognition Support,3314.1,Revenue,BUPA Care Services
Brighton & Hove City Council,http://statistics.data.gov.uk/id/local-authority/00ML,Adult Social Care,BVASOC,ASC Physical Support,PHY,Customer n Client Receipts,M,Fees n Charges,MB,07/01/2015,PAY00727851,PHYS,Physical Support,-781.4,Revenue,BUPA Care Services
Brighton & Hove City Council,http://statistics.data.gov.uk/id/local-authority/00ML,Adult Social Care,BVASOC,ASC Physical Support,PHY,Third Party Payments,F,Other Establishments,FH,07/01/2015,PAY00727851,PHYS,Physical Support,3600,Revenue,BUPA Care Services
Brighton & Hove City Council,http://statistics.data.gov.uk/id/local-authority/00ML,Adult Social Care,BVASOC,Social Care Activities,ACM,Supplies and Services,E,Equip't Furniture n Materials,EA,07/01/2015,PAY00727852,ASIT,Assessment and SIT,270.91,Revenue,Optima Low Vision Services Ltd
Brighton & Hove City Council,http://statistics.data.gov.uk/id/local-authority/00ML,Housing Revenue Account,BVAHOU,Hsing Management - HRA,HGM,Supplies and Services,E,Equip't Furniture n Materials,EA,07/01/2015,PAY00727854,HTEN,Tenancy Services,1093.1,Revenue,Appello
Brighton & Hove City Council,http://statistics.data.gov.uk/id/local-authority/00ML,Non I&E,BVANON,Cap - Housing Services - HRA,4HR,New Construction n Conversion,PB,New Construction n Conversion,PBL5,07/01/2015,PAY00727855,HPAI,Property & Investment,1205,Capital,Liftability Limited
Brighton & Hove City Council,http://statistics.data.gov.uk/id/local-authority/00ML,Non I&E,BVANON,CAP Transport,4TR,New Construction n Conversion,PB,New Construction n Conversion,PBL5,07/01/2015,PAY00727856,HWEN,Highways Engineering,310.89,Capital,R J Dance (Contractors) Ltd
Brighton & Hove City Council,http://statistics.data.gov.uk/id/local-authority/00ML,Central Services to the Public,BVACEN,Local Tax Collection,LTC,Supplies and Services,E,Communications n Computing,EH,07/01/2015,PAY00727857,REVS,Revenues and Benefits,13.28,Revenue,Specialist Computer Centres Plc
Brighton & Hove City Council,http://statistics.data.gov.uk/id/local-authority/00ML,Central Support and Overheads,BVACEN,Support Services (SSC),PPT,Supplies and Services,E,Communications n Computing,EH,07/01/2015,PAY00727857,ICTA,ICT,213625.08,Revenue,Specialist Computer Centres Plc
Brighton & Hove City Council,http://statistics.data.gov.uk/id/local-authority/00ML,Children`s & Education Serv,BVAEDU,Child Srvcs - Fostering,FLF,Supplies and Services,E,Communications n Computing,EH,07/01/2015,PAY00727857,CHIC,Children In Care,451.02,Revenue,Specialist Computer Centres Plc
Brighton & Hove City Council,http://statistics.data.gov.uk/id/local-authority/00ML,Housing Revenue Account,BVAHOU,Hsing Strategy - HRA,HGT,Supplies and Services,E,Communications n Computing,EH,07/01/2015,PAY00727857,HSTR,Housing Strategy,392.78,Revenue,Specialist Computer Centres Plc
Brighton & Hove City Council,http://statistics.data.gov.uk/id/local-authority/00ML,Non I&E,BVANON,CAP Mgmnt and Suppt Services,4PT,Plant Machinery n Equipment,PE2,Plant Machinery n Equipment,PE2L5,07/01/2015,PAY00727857,ICTA,ICT,41042.3,Capital,Specialist Computer Centres Plc
Brighton & Hove City Council,http://statistics.data.gov.uk/id/local-authority/00ML,Housing General Fund,BVAHOG,Homelessness,HML,Premises Related,C,Repair Maint n Alterations,CA,07/01/2015,PAY00727859,TAAS,Temp Accom and Allocations,417,Revenue,Thomas Locksmiths Ltd
Brighton & Hove City Council,http://statistics.data.gov.uk/id/local-authority/00ML,Children`s & Education Serv,BVAEDU,Child Srvcs Asylum Seekers,FAY,Transfer Payments,G,Other Transfer Payments,GD,07/01/2015,PAY00727860,CHIC,Children In Care,940.2,Revenue,Sanctuary Housing Association
Brighton & Hove City Council,http://statistics.data.gov.uk/id/local-authority/00ML,Highways and Transportation,BVAHRT,Highways and Roads - Mntnce,HRM,Supplies and Services,E,Highways,EN,07/01/2015,PAY00727861,HIGH,Highways,1502,Revenue,Findlay Irvine Ltd
Brighton & Hove City Council,http://statistics.data.gov.uk/id/local-authority/00ML,Non I&E,BVANON,Cap - Housing Services - HRA,4HR,New Construction n Conversion,PB,New Construction n Conversion,PBL5,07/01/2015,PAY00727862,HPAI,Property & Investment,3599,Capital,Wealden Services Ltd
Brighton & Hove City Council,http://statistics.data.gov.uk/id/local-authority/00ML,Housing General Fund,BVAHOG,Homelessness,HML,Premises Related,C,Rents Payable,CC,07/01/2015,PAY00727865,TAAS,Temp Accom and Allocations,575,Revenue,Payment to Individual
Brighton & Hove City Council,http://statistics.data.gov.uk/id/local-authority/00ML,Housing General Fund,BVAHOG,Homelessness,HML,Premises Related,C,Rents Payable,CC,07/01/2015,PAY00727866,TAAS,Temp Accom and Allocations,850,Revenue,CWP Residential LLP
Brighton & Hove City Council,http://statistics.data.gov.uk/id/local-authority/00ML,Adult Social Care,BVASOC,ASC Learning Disabilities,ALD,Supplies and Services,E,Equip't Furniture n Materials,EA,07/01/2015,PAY00727869,SUPE,Supported Employment,481.34,Revenue,Ralawise Ltd
Brighton & Hove City Council,http://statistics.data.gov.uk/id/local-authority/00ML,Housing General Fund,BVAHOG,Homelessness,HML,Premises Related,C,Rents Payable,CC,07/01/2015,PAY00727871,TAAS,Temp Accom and Allocations,900,Revenue,Payment to Individual
Brighton & Hove City Council,http://statistics.data.gov.uk/id/local-authority/00ML,Children`s & Education Serv,BVAEDU,Child Srvcs Direct Pymts,FFD,Third Party Payments,F,Other Establishments,FH,07/01/2015,PAY00727872,DISS,Disability Services,586.34,Revenue,Payment to Individual
Brighton & Hove City Council,http://statistics.data.gov.uk/id/local-authority/00ML,Highways and Transportation,BVAHRT,Public Transport,PTR,Supplies and Services,E,Services,EF,07/01/2015,PAY00727876,TPRS,Transport Plan and Road Safety,1881.9,Revenue,Maggie Peake Ltd
Brighton & Hove City Council,http://statistics.data.gov.uk/id/local-authority/00ML,Housing General Fund,BVAHOG,Homelessness,HML,Premises Related,C,Rents Payable,CC,07/01/2015,PAY00727877,TAAS,Temp Accom and Allocations,1200,Revenue,Payment to Individual
Brighton & Hove City Council,http://statistics.data.gov.uk/id/local-authority/00ML,Cultural and Related Serv,BVACUL,Tourism,TRM,Supplies and Services,E,Miscellaneous Expenses,EM,07/01/2015,PAY00727878,TOMA,Tourism and Marketing,209,Revenue,Snooze Hotel Ltd
Brighton & Hove City Council,http://statistics.data.gov.uk/id/local-authority/00ML,Housing General Fund,BVAHOG,Homelessness,HML,Premises Related,C,Rents Payable,CC,07/01/2015,PAY00727879,TAAS,Temp Accom and Allocations,1050,Revenue,Geneva Investment Group Ltd
Brighton & Hove City Council,http://statistics.data.gov.uk/id/local-authority/00ML,Children`s & Education Serv,BVAEDU,Child Srvcs Leaving Care,FAL,Transfer Payments,G,Other Transfer Payments,GD,07/01/2015,PAY00727880,CHIC,Children In Care,224,Revenue,The Wolsey Hotel (Worthing) Ltd
Brighton & Hove City Council,http://statistics.data.gov.uk/id/local-authority/00ML,Housing General Fund,BVAHOG,Homelessness,HML,Premises Related,C,Rents Payable,CC,07/01/2015,PAY00727881,TAAS,Temp Accom and Allocations,650,Revenue,Payment to Individual
Brighton & Hove City Council,http://statistics.data.gov.uk/id/local-authority/00ML,Central Support and Overheads,BVACEN,Support Services (SSC),PPT,Supplies and Services,E,Services,EF,07/01/2015,PAY00727882,LEGS,Legal Services,750,Revenue,Payment to Individual
Brighton & Hove City Council,http://statistics.data.gov.uk/id/local-authority/00ML,Children`s & Education Serv,BVAEDU,Child Srvcs Direct Pymts,FFD,Third Party Payments,F,Other Establishments,FH,07/01/2015,PAY00727883,DISS,Disability Services,345,Revenue,Payment to Individual
Brighton & Hove City Council,http://statistics.data.gov.uk/id/local-authority/00ML,Children`s & Education Serv,BVAEDU,Child Srvcs Direct Pymts,FFD,Third Party Payments,F,Other Establishments,FH,07/01/2015,PAY00727885,DISS,Disability Services,332.42,Revenue,Payment to Individual
Brighton & Hove City Council,http://statistics.data.gov.uk/id/local-authority/00ML,Adult Social Care,BVASOC,ASC Learning Disabilities,ALD,Supplies and Services,E,Miscellaneous Expenses,EM,07/01/2015,PAY00727888,DAYS,Day Services,37.5,Revenue,Altodigital Networks Ltd
Brighton & Hove City Council,http://statistics.data.gov.uk/id/local-authority/00ML,Central Support and Overheads,BVACEN,Support Services (SSC),PPT,Supplies and Services,E,Communications n Computing,EH,07/01/2015,PAY00727888,ICTA,ICT,13434.57,Revenue,Altodigital Networks Ltd
Brighton & Hove City Council,http://statistics.data.gov.uk/id/local-authority/00ML,Children`s & Education Serv,BVAEDU,Child Srvcs Direct Pymts,FFD,Third Party Payments,F,Other Establishments,FH,07/01/2015,PAY00727889,DISS,Disability Services,250.7,Revenue,Payment to Individual
Brighton & Hove City Council,http://statistics.data.gov.uk/id/local-authority/00ML,Children`s & Education Serv,BVAEDU,Child Srvcs Com and Scl Work,FCW,Transport Related,D,Direct Transport Costs,DA,07/01/2015,PAY00727890,SOCK,Social Work,37.84,Revenue,Lifestyle Ford Ltd
